Workbook

Sheet CAPA AP
B17: EXECUÇÃO DE SERVIÇOS DE PERFURAÇÃO E INSTALAÇÃO DE POÇOS TUBULARES NO AMAPÁ.

Sheet Planilha Resumo AP
B2: OBJETO: EXECUÇÃO DE SERVIÇOS DE PERFURAÇÃO E INSTALAÇÃO DE POÇOS TUBULARES EM MUNICÍPIOS LOCALIZADOS NO ESTADO DO AMAPÁ, NA ÁREA DE ATUAÇÃO DA CODEVASF
B3: PLANILHA ORÇAMENTÁRIA ESTIMATIVA GERAL
B4: DATABASE DO ORÇAMENTO: NOVEMBRO/2023 - NÃO DESONERADO
B5: PLANILHA RESUMIDA AP
B6: ITEM | C6: DISCRIMINAÇÃO | D6: UND | E6: QUANT | F6: UNITÁRIO | G6: TOTAL
B7: 1 | C7: Perfuração e instalação de poço tubular parcialmente revestido, instalado com sistema fotovoltaico, bomba submersa, reservatório e bebedouro para animais. | D7: un | E7: ='Orç. AP - Parc. Rev - Sintético'!K3 -> 40 | F7: ='Orç. AP - Parc. Rev - Sintético'!I3 -> 108306.12 | G7: ='Orç. AP - Parc. Rev - Sintético'!J98 -> 4332244.91
B8: 2 | C8: Perfuração e instalação de poços poço tubular totalmente revestido, instalado com sistema fotovoltaico, bomba submersa, reservatório e bebedouro para animais. | D8: un | E8: ='Orç. AP - Tot. Rev - Sintético'!K3 -> 60 | F8: ='Orç. AP - Tot. Rev - Sintético'!I3 -> 158927.77 | G8: ='Orç. AP - Tot. Rev - Sintético'!J102 -> 9535666.42
B9: TOTAL GERAL ESTIMADO - GRUPO 01 | D9: un | E9: =SUM(E7:E8) -> 100 | G9: =SUM(G7:G8) -> 13867911.33

Sheet Orç. AP - Parc. Rev - Sintético
H1: B.D.I. SERVIÇOS | I1: B.D.I. MATERIAIS | J1: ENCARGOS SOCIAIS
A2: ='Planilha Resumo AP'!B2 -> OBJETO: EXECUÇÃO DE SERVIÇOS DE PERFURAÇÃO E INSTALAÇÃO DE POÇOS TUBULARES EM MUNICÍPIOS LOCALIZADOS NO ESTADO DO AMAPÁ, NA ÁREA DE ATUAÇÃO DA CODEVASF | H2: 25,47% | I2: 0.1528 | J2: Não Desonerado: embutido nos preços unitário dos insumos de mão de obra, de acordo com as bases.
H3: VALOR UNITÁRIO POR POÇO | I3: =ROUND(J98/K3,2) -> 108306.12 | J3: QUANTIDADE DE POÇOS | K3: 40
A4: PLANILHA ORÇAMENTÁRIA SINTÉTICA – POÇO PARCIALMENTE REVESTIDO
A5: Item | B5: Código | C5: Serviço / Material | D5: Banco | E5: Descrição | F5: Und | G5: Quant. | H5: Valor Unit | I5: Valor Unit com BDI | J5: Total | K5: Peso (%)
A6: 1 | E6: SERVIÇOS PRELIMINARES | J6: =SUM(J7:J9) -> 76209.76 | K6: =J6/$J$98 -> 0.01759128618
A7: 1.1 | B7: COMPOSIÇÃO - 001 | C7: Serviço | D7: Próprio | E7: Administração Local da Obra - Poço Parcialmente Revestido | F7: un | G7: 1 | H7: 30426.95844 | I7: 38176.7 | J7: 38176.7 | K7: 0.008812221099
A8: 1.2 | B8: COMPOSIÇÃO - 003 | C8: Serviço | D8: Próprio | E8: Serviço de locação Geológica de campo com relatório hidro geológico e perfil construtivo e geológico esperado. Relatório de Viabilidade de implantação das estruturas e vistorias preliminares | F8: un | G8: 40 | H8: 496.5 | I8: 622.96 | J8: 24918.4 | K8: 0.005751844717
A9: 1.3 | B9: COMPOSIÇÃO - 005 | C9: Serviço | D9: Próprio | E9: Placa da Obra - Padrão Governo Federal | F9: m² | G9: 28.8 | H9: 362.9275 | I9: 455.37 | J9: 13114.66 | K9: 0.003027220361
A10: 2 | E10: MOBILIZAÇÂO E DESMOBILIZAÇÂO EQUIPES DE PERFURAÇÂO E INSTALAÇÃO | J10: 211198.56 | K10: 0.04875037409
A11: 2.1 | B11: COMPOSIÇÃO - 006 | C11: Serviço | D11: Próprio | E11: Transporte de Comboio Perfuração | F11: km | G11: 9600 | H11: 4.5728368 | I11: 5.74 | J11: 55104 | K11: 0.01271950251
A12: 2.2 | B12: COMPOSIÇÃO - 007 | C12: Serviço | D12: Próprio | E12: Transporte de Comboio Instalação | F12: km | G12: 4800 | H12: 5.7916824 | I12: 7.27 | J12: 34896 | K12: 0.008054946275
A13: 2.3 | B13: COMPOSIÇÃO - 027 | C13: Serviço | D13: Próprio | E13: Transporte Hidroviário | F13: und | G13: 8 | H13: 12074.46 | I13: 15149.82 | J13: 121198.56 | K13: 0.0279759253
A14: 3 | E14: PERFURAÇÃO E COMPLETAÇÃO DE POÇO TUBULAR | J14: 1489442.14 | K14: 0.3438037717
A15: 3.1 | B15: COMPOSIÇÃO - 009 | C15: Serviço | D15: Próprio | E15: Limpeza manual , remoção de cerca, capina e instalação dos equipamentos (área do poço, painéis solares, bebedouro e reservatório) | F15: m² | G15: 2800 | H15: 1.3832 | I15: 1.74 | J15: 4872 | K15: 0.001124590161
A16: 3.2 | B16: COMPOSIÇÃO - 013 | C16: Serviço | D16: Próprio | E16: Perfuração em material inconsolidado Ø 8 1/2" | F16: m | G16: 2000 | H16: 213.626 | I16: 268.04 | J16: 536080 | K16: 0.12374185
A17: 3.3 | B17: COMPOSIÇÃO - 010 | C17: Serviço | D17: Próprio | E17: Perfuração roto pneumática utilizando martelo de fundo (DTH) em rocha Ø 6 1/8" em rocha | F17: m | G17: 2800 | H17: 171.446 | I17: 215.11 | J17: 602308 | K17: 0.1390290744
A18: 3.4 | B18: 00009854 | C18: Material | D18: SINAPI | E18: Tubo pvc de revestimento geomecanico nervurado standard, dn=154mm, comprimento=2m | F18: m | G18: 2000 | H18: 115.12 | I18: 132.71 | J18: 265420 | K18: 0.06126615773
A19: 3.5 | B19: COMPOSIÇÃO - 011 | C19: Serviço | D19: Próprio | E19: Serviço de lançamento cimentação anelar poço tubular, incluso material. | F19: m³ | G19: 36.8 | H19: 973.606 | I19: 1221.58 | J19: 44954.14 | K19: 0.01037663866
A20: 3.6 | B20: COMPOSIÇÃO - 014 | C20: Serviço | D20: Próprio | E20: Serviço de instalação de laje sanitária com dimensões (1,5x1,5x0,3) , incluso material. | F20: un | G20: 40 | H20: 713.4795 | I20: 895.2 | J20: 35808 | K20: 0.008265460689
A21: 4 | E21: PÓS PERFURAÇÃO | J21: 415432.8 | K21: 0.09589319363
A22: 4.1 | B22: 6305 | C22: Serviço | D22: ORSE | E22: Serviço de desenvolvimento com compressor 250psi / 750cfm | F22: h | G22: 160 | H22: 411.16 | I22: 515.88 | J22: 82540.8 | K22: 0.01905266247
A23: 4.2 | B23: 6312 | C23: Serviço | D23: ORSE | E23: Serviço de análise físico-química da Água incluso coleta, transporte e analise | F23: un | G23: 40 | H23: 565.21 | I23: 709.17 | J23: 28366.8 | K23: 0.006547829264
A24: 4.3 | B24: COMPOSIÇÃO - 015 | C24: Serviço | D24: Próprio | E24: Inspeção ótica em poço tubular câmera com rotação de 360º, visada lateral, com fonte própria de luz, entregue vídeo em cores e marcação de profundidades. | F24: m | G24: 1800 | H24: 38.046335 | I24: 47.74 | J24: 85932 | K24: 0.0198354437
A25: 4.4 | B25: 6314 | C25: Serviço | D25: ORSE | E25: Ensaio de Bombeamento com bomba submersível | F25: h | G25: 280 | H25: 622.21 | I25: 780.69 | J25: 218593.2 | K25: 0.0504572582
A26: 5 | E26: RESERVAÇÃO | J26: 274507.63 | K26: 0.06336383
A27: 5.1 | B27: COMPOSIÇÃO - 016 | C27: Serviço | D27: Próprio | E27: Execução e instalação de base de sustentação em concreto armado para reservatório de diâmetro 2,06m e altura 1,10m, conforme projeto, incluindo fixação de grampos da tampa. | F27: un | G27: 40 | H27: 3224.697 | I27: 4046.03 | J27: 161841.2 | K27: 0.03735735245
A28: 5.2 | B28: 00037105 | C28: Material | D28: SINAPI | E28: Fornecimento de caixa d'agua / reservatorio em poliester reforcado com fibra de vidro, 5000 litros, com tampa | F28: un | G28: 40 | H28: 2358.4 | I28: 2718.76 | J28: 108750.4 | K28: 0.02510255128
A29: 5.3 | B29: 13960 | C29: Material | D29: ORSE | E29: Fornecimento de cabo de aço 1/8" sem revestimento ( rolo c/ 100 mt) rolo | F29: rolo | G29: 3.2 | H29: 261.33 | I29: 301.26 | J29: 964.03 | K29: 0.000222524354
A30: 5.4 | B30: 094248 | C30: Material | D30: SBC | E30: Fornecimento de esticador olhal com gancho de 1/4" 6,35 mm vonder | F30: un | G30: 160 | H30: 13.05 | I30: 15.04 | J30: 2406.4 | K30: 0.000555462595
A31: 5.5 | B31: 002048 | C31: Material | D31: SBC | E31: Fornecimento de grampo (clip) para cabo de aco pesado 1/8" | F31: un | G31: 160 | H31: 2.96 | I31: 3.41 | J31: 545.6 | K31: 0.0001259393251
A32: 6 | E32: BEBEDOURO | J32: 86408.8 | K32: 0.01994550211
A33: 6.1 | B33: COMPOSIÇÃO - 017 | C33: Serviço | D33: Próprio | E33: Serviço de execução do bebedouro em concreto armado, incluso materiais. | F33: un | G33: 40 | H33: 1721.7025 | I33: 2160.22 | J33: 86408.8 | K33: 0.01994550211
A34: 7 | E34: INSTALAÇÕES HIDRÁULICAS | J34: 138372.2 | K34: 0.03194006869
A35: 7.1 | E35: INSTALAÇÕES DE CAVALETE | J35: 54282.2 | K35: 0.01252980871
A36: 7.1.1 | B36: COMPOSIÇÃO - 018 | C36: Serviço | D36: Próprio | E36: Montagem e Instalação de Tubulação e Conexões Cavalete | F36: un | G36: 40 | H36: 252.98 | I36: 317.41 | J36: 12696.4 | K36: 0.002930674573
A37: 7.1.2 | B37: 00001796 | C37: Material | D37: SINAPI | E37: Fornecimento de curva 90 graus de ferro galvanizado, com rosca bsp macho, de 1 1/4" | F37: un | G37: 40 | H37: 77.17 | I37: 88.96 | J37: 3558.4 | K37: =J37/$J$98 -> 0.0008213755395
A38: 7.1.3 | B38: 00009888 | C38: Material | D38: SINAPI | E38: Fornecimento de uniao de ferro galvanizado, com rosca bsp, com assento plano, de 1 1/4" | F38: un | G38: 40 | H38: 62.13 | I38: 71.62 | J38: 2864.8 | K38: 0.0006612737875
A39: 7.1.4 | B39: 00004180 | C39: Material | D39: SINAPI | E39: Fornecimento de niple de ferro galvanizado, com rosca bsp, de 1 1/4" | F39: un | G39: 80 | H39: 18.99 | I39: 21.89 | J39: 1751.2 | K39: 0.0004042246079
A40: 7.1.5 | B40: 00006017 | C40: Material | D40: SINAPI | E40: Fornecimento de registro gaveta bruto em latao forjado, bitola 1 1/4 " (ref 1509) | F40: un | G40: 40 | H40: 78.48 | I40: 90.47 | J40: 3618.8 | K40: 0.0008353175029
A41: 7.1.6 | B41: 00000789 | C41: Material | D41: SINAPI | E41: Fornecimento de bucha de reducao de ferro galvanizado, com rosca bsp, de 1 1/4" x 1" | F41: un | G41: 40 | H41: 17.76 | I41: 20.47 | J41: 818.8 | K41: 0.0001890013185
A42: 7.1.7 | B42: 12438 | C42: Material | D42: ORSE | E42: Fornecimento de hidrômetro multijato d= 3/4", vazão = 5,0m3/h | F42: un | G42: 40 | H42: 298.26 | I42: 343.83 | J42: 13753.2 | K42: 0.003174612767
A43: 7.1.8 | B43: 00009861 | C43: Material | D43: SINAPI | E43: Fornecimento de tubo pvc, roscavel, 1 1/4", agua fria predial | F43: m | G43: 60 | H43: 24.71 | I43: 28.49 | J43: 1709.4 | K43: 0.0003945760306
A44: 7.1.9 | B44: 002116 | C44: Material | D44: SBC | E44: Fornecimento de te de reducao ferro galvanizado 1.1/4" x 1/2" | F44: un | G44: 40 | H44: 40.49 | I44: 46.68 | J44: 1867.2 | K44: 0.0004310005641
A45: 7.1.10 | B45: 00011831 | C45: Material | D45: SINAPI | E45: Fornecimento de torneira plastica para tanque 1/2 " ou 3/4 " com bico para mangueira | F45: un | G45: 40 | H45: 18.94 | I45: 21.83 | J45: 873.2 | K45: 0.0002015583186
A46: 7.1.11 | B46: 1158 | C46: Material | D46: ORSE | E46: Fornecimento de joelho 45° ferro galvanizado d=1 1/ 4" un | F46: un | G46: 80 | H46: 32.17 | I46: 37.09 | J46: 2967.2 | K46: 0.0006849104937
A47: 7.1.12 | B47: 00004205 | C47: Material | D47: SINAPI | E47: Fornecimento de niple de reducao de ferro galvanizado, com rosca bsp, de 1 1/2" x 1 1/4" | F47: un | G47: 40 | H47: 33.32 | I47: 38.41 | J47: 1536.4 | K47: 0.0003546429235
A48: 7.1.13 | B48: 00003939 | C48: Material | D48: SINAPI | E48: Fornecimento de luva de ferro galvanizado, com rosca bsp, de 1 1/2" | F48: un | G48: 40 | H48: 25.6 | I48: 29.51 | J48: 1180.4 | K48: 0.0002724684372
A49: 7.1.14 | B49: 9569 | C49: Material | D49: ORSE | E49: Fornecimento de adaptador pvc bsxrm d= 35mm x 1 1/2", linha irriga-lf, tigre ou similar | F49: un | G49: 40 | H49: 3.04 | I49: 3.5 | J49: 140 | K49: 3.231580922e-05
A50: 7.1.15 | B50: 5128 | C50: Material | D50: ORSE | E50: Fornecimento de tampa de poço galvanizada em 6" | F50: un | G50: 40 | H50: 107.28 | I50: 123.67 | J50: 4946.8 | K50: 0.001141856036
A51: 7.2 | E51: INSTALAÇÕES DE ADUTORA, RESERVATÓRIO E BEBEDOURO | J51: 84090 | K51: =J51/$J$98 -> 0.01941025998
A52: 7.2.1 | B52: COMPOSIÇÃO - 020 | C52: Serviço | D52: Próprio | E52: Montagem e instalação da rede adutora poço-reservatório-bebedouro | F52: un | G52: 40 | H52: 965.135 | I52: 1210.95 | J52: 48438 | K52: =J52/$J$98 -> 0.01118080834
A53: 7.2.2 | B53: 9501 | C53: Material | D53: ORSE | E53: Fornecimento de tubo PVC p/irrigação LF PN 60 JE Ø 35mm, linha Irriga-LF, Tigre ou similar m | F53: m | G53: 1600 | H53: 13.06 | I53: 15.06 | J53: 24096 | K53: =J53/$J$98 -> 0.005562012421
A54: 7.2.3 | B54: 9516 | C54: Material | D54: ORSE | E54: Fornecimento de curva 90º pvc PTA/BSA soldavel d= 35mm, linha Irriga-LF, Tigre ou similar un | F54: un | G54: 160 | H54: 10.76 | I54: 12.4 | J54: 1984 | K54: 0.0004579611821
A55: 7.2.4 | B55: 00000098 | C55: Material | D55: SINAPI | E55: Fornecimento de adaptador pvc soldavel, com flange e anel de vedacao, 40 mm x 1 1/4", para caixa d'água | F55: un | G55: 80 | H55: 27.86 | I55: 32.12 | J55: 2569.6 | K55: 0.0005931335955
A56: 7.2.5 | B56: 8013 | C56: Material | D56: ORSE | E56: Fornecimento de registro esfera vs soldável para irrigação ø 35mm pç | F56: pç | G56: 40 | H56: 37.26 | I56: 42.95 | J56: 1718 | K56: 0.0003965611446
A57: 7.2.6 | B57: 00000096 | C57: Material | D57: SINAPI | E57: Fornecimento de adaptador pvc soldavel, com flange e anel de vedacao, 25 mm x 3/4", para caixa d'água | F57: un | G57: 120 | H57: 12.37 | I57: 14.26 | J57: 1711.2 | K57: 0.0003949915195
A58: 7.2.7 | B58: 14071 | C58: Material | D58: ORSE | E58: Fornecimento de tubo pvc para irrigação lf pn 60 ø 25mm, linha irriga-lf, tigre ou similar m | F58: m | G58: 80 | H58: 4.02 | I58: 4.63 | J58: 370.4 | K58: 8.54983981e-05
A59: 7.2.8 | B59: 14082 | C59: Material | D59: ORSE | E59: Fornecimento de registro esfera lf 25mm | F59: pç | G59: 80 | H59: 11.08 | I59: 12.77 | J59: 1021.6 | K59: 0.0002358130764
A60: 7.2.9 | B60: 00003529 | C60: Material | D60: SINAPI | E60: Fornecimento de joelho pvc, soldavel, 90 graus, 25 mm, cor marrom, para agua fria predial | F60: un | G60: 80 | H60: 0.73 | I60: 0.84 | J60: 67.2 | K60: 1.551158842e-05
A61: 7.2.10 | B61: 00003535 | C61: Material | D61: SINAPI | E61: Fornecimento de joelho pvc, soldavel, 90 graus, 40 mm, cor marrom, para agua fria predial | F61: un | G61: 40 | H61: 5.93 | I61: 6.84 | J61: 273.6 | K61: 6.31543243e-05
A62: 7.2.11 | B62: 00000109 | C62: Material | D62: SINAPI | E62: Fornecimento de adaptador pvc soldavel curto com bolsa e rosca, 40 mm x 1 1/4", para agua fria | F62: un | G62: 40 | H62: 3.72 | I62: 4.29 | J62: 171.6 | K62: 3.960994901e-05
A63: 7.2.12 | B63: 00011830 | C63: Material | D63: SINAPI | E63: Fornecimento de torneira de boia convencional para caixa d'agua, agua fria, 3/4", com haste e torneira metalicos e balao plastico | F63: un | G63: 40 | H63: 36.19 | I63: 41.72 | J63: 1668.8 | K63: 0.0003852044459
A64: 8 | E64: FORNECIMENTO E INSTALAÇÃO DE SISTEMA FOTOVOLTAÍCO | J64: 1236233.1 | K64: =J64/$J$98 -> 0.2853562358
A65: 8.1 | E65: INSTALAÇÕES HIDRÁULICAS | J65: 108406.34 | K65: =J65/$J$98 -> 0.02502313287
A66: 8.1.1 | B66: COMPOSIÇÃO - 019 | C66: Serviço | D66: Próprio | E66: Montagem e instalação hidráulica do kit de bombeamento | F66: un | G66: 40 | H66: 123.99 | I66: 155.57 | J66: 6222.8 | K66: =J66/$J$98 -> 0.001436391554
A67: 8.1.2 | B67: 00038200 | C67: Material | D67: SINAPI | E67: Fornecimento de corda de poliamida 12 mm tipo bombeiro, para trabalho em altura | F67: 100M | G67: 25.2 | H67: 768.29 | I67: 885.68 | J67: 22319.14 | K67: =J67/$J$98 -> 0.005151864787
A68: 8.1.3 | B68: 00009861 | C68: Material | D68: SINAPI | E68: Fornecimento de tubo pvc, roscavel, 1 1/4", agua fria predial | F68: m | G68: 2400 | H68: 24.71 | I68: 28.49 | J68: 68376 | K68: 0.01578304122
A69: 8.1.4 | B69: 00004180 | C69: Material | D69: SINAPI | E69: Fornecimento de niple de ferro galvanizado, com rosca bsp, de 1 1/4" | F69: un | G69: 40 | H69: 18.99 | I69: 21.89 | J69: 875.6 | K69: 0.0002021123039
A70: 8.1.5 | B70: 00003911 | C70: Material | D70: SINAPI | E70: Fornecimento de luva de ferro galvanizado, com rosca bsp, de 1 1/4" | F70: un | G70: 440 | H70: 20.92 | I70: 24.12 | J70: 10612.8 | K70: 0.002449723001
A71: 8.2 | E71: INSTALAÇÕES ELÉTRICAS | J71: 139448.76 | K71: 0.03218856803
A72: 8.2.1 | B72: COMPOSIÇÃO - 021 | C72: Serviço | D72: Próprio | E72: Montagem e instalação elétrica do kit de bombeamento e sistema fotovoltaico inclusive sistema de aterramento. | F72: un | G72: 40 | H72: 509.31 | I72: 639.03 | J72: 25561.2 | K72: =J72/$J$98 -> 0.005900220447
A73: 8.2.2 | B73: 00002674 | C73: Material | D73: SINAPI | E73: Fornecimento de eletroduto de pvc rigido roscavel de 3/4 ", sem luva | F73: m | G73: 600 | H73: 5.71 | I73: 6.58 | J73: 3948 | K73: =J73/$J$98 -> 0.00091130582
A74: 8.2.3 | B74: 00034622 | C74: Material | D74: SINAPI | E74: Fornecimento de cabo flexivel pvc 750 v, 3 condutores de 6,0 mm2 | F74: m | G74: 3000 | H74: 24.69 | I74: 28.46 | J74: 85380 | K74: 0.01970802708
A75: 8.2.4 | B75: 00012034 | C75: Material | D75: SINAPI | E75: Fornecimento de curva 180 graus, de pvc rigido roscavel, de 3/4", para eletroduto | F75: un | G75: 40 | H75: 5.21 | I75: 6.01 | J75: 240.4 | K75: 5.549086097e-05
A76: 8.2.5 | B76: 00039272 | C76: Material | D76: SINAPI | E76: Fornecimento de curva 90 graus, curta, de pvc rigido roscavel, de 3/4", para eletroduto | F76: un | G76: 80 | H76: 2.85 | I76: 3.29 | J76: 263.2 | K76: 6.075372133e-05
A77: 8.2.6 | B77: 00003379 | C77: Material | D77: SINAPI | E77: Fornecimento de haste de aterramento em aco com 3,00 m de comprimento e dn = 5/8", revestida com baixa camada de cobre, sem conector | F77: un | G77: 26.8 | H77: 82.61 | I77: 95.23 | J77: 2552.16 | K77: 0.000589107969
A78: 8.2.7 | B78: 00001891 | C78: Material | D78: SINAPI | E78: Fornecimento de luva em pvc rigido roscavel, de 3/4", para eletroduto | F78: un | G78: 360 | H78: 1.32 | I78: 1.52 | J78: 547.2 | K78: 0.0001263086486
A79: 8.2.8 | B79: 00000425 | C79: Material | D79: SINAPI | E79: Fornecimento de grampo metalico tipo olhal para haste de aterramento de 5/8'', condutor de *10* a 50 mm2 | F79: un | G79: 80 | H79: 7.84 | I79: 9.04 | J79: 723.2 | K79: 0.0001669342373
A80: 8.2.9 | B80: 00034643 | C80: Material | D80: SINAPI | E80: Fornecimento de caixa de inspecao para aterramento e para raios, em polipropileno, diametro = 300 mm x altura = 400 mm | F80: un | G80: 80 | H80: 46.66 | I80: 53.79 | J80: 4303.2 | K80: 0.0009932956445
A81: 8.2.10 | B81: 00000867 | C81: Material | D81: SINAPI | E81: Fornecimento de cabo de cobre nu 50 mm2 meio-duro | F81: m | G81: 220 | H81: 62.81 | I81: 72.41 | J81: 15930.2 | K81: 0.0036771236
A82: 8.3 | E82: ESTRUTURA DE FIXAÇÃO PARA MÓDULOS FOTOVOLTAICOS | J82: 92800 | K82: 0.02142076497
A83: 8.3.1 | B83: COMPOSIÇÃO - 022 | C83: Serviço | D83: Próprio | E83: Serviço de fixação de estruturas para os módulos fotovoltaicos e suportes de concreto, incluso materiais. | F83: m² | G83: 320 | H83: 231.130675 | I83: 290 | J83: 92800 | K83: =J83/$J$98 -> 0.02142076497
A84: 8.4 | E84: FORNECIMENTO DE KIT DE BOMBEAMENTO FOTOVOLTAICO | J84: 895578 | K84: 0.2067237699
A85: 8.4.1 | B85: COTAÇÃO-002 | C85: Material | D85: Próprio | E85: Fornecimento de kit de bombeamento fotovoltaico, incluindo uma bomba CC de 1500W com imã permanente e sem escovas, controladora de carga, disjuntor CC adequado, caixa de proteção metálica, módulos compatíveis com a geração de 2200Wp (potência mínima de 550 W por módulo) e componentes elétricos necessários como cabos, conectores MC4 e presilhas de fixação. | F85: un | G85: 40 | H85: 19421.8 | I85: 22389.45 | J85: 895578 | K85: 0.2067237699
A86: 9 | E86: URBANIZAÇÃO | J86: 166565.4 | K86: 0.03844782635
A87: 9.1 | E87: CERCA | J87: 122841.6 | K87: 0.02835518364
A88: 9.1.1 | B88: COMPOSIÇÃO - 023 | C88: Serviço | D88: Próprio | E88: Cerca com mourões de concreto de 15x15cm, espaçados de 3m e cravados a 0,5m, escoras de 10x10cm nos cantos, e 9 fios de arame de aço ovalado 15x17. | F88: m | G88: 1120 | H88: 87.41278 | I88: 109.68 | J88: 122841.6 | K88: =J88/$J$98 -> 0.02835518364
A89: 9.2 | E89: PORTÃO | J89: 43723.8 | K89: 0.01009264271
A90: 9.2.1 | B90: COMPOSIÇÃO - 024 | C90: Serviço | D90: Próprio | E90: Serviço de instalação de portão de ferro com suporte e batedor conforme projeto, incluso material | F90: m² | G90: 60 | H90: 580.80151 | I90: 728.73 | J90: 43723.8 | K90: =J90/$J$98 -> 0.01009264271
A91: 10 | E91: OUTROS SERVIÇOS | J91: 237874.52 | K91: 0.05490791147
A92: 10.1 | B92: COMPOSIÇÃO - 025 | C92: Serviço | D92: Próprio | E92: Serviço de lançamento de concreto para acabamento do tamponamento, incluso material. | F92: m³ | G92: 5.46 | H92: 850 | I92: 1066.5 | J92: 5823.09 | K92: =J92/$J$98 -> 0.001344127611
A93: 10.2 | B93: COMPOSIÇÃO - 026 | C93: Serviço | D93: Próprio | E93: Serviço de execução do tamponamento, incluso pedra britada desinfectada. | F93: m³ | G93: 5.46 | H93: 344.299 | I93: 431.99 | J93: 2358.67 | K93: 0.0005444452124
A94: 10.5 | B94: M3929 | C94: Material | D94: SICRO3 | E94: Fornecimento de tubo em aço-carbono - E = 3,00 mm e D = 150 mm (6”) | F94: m | G94: 750 | H94: 186.1286 | I94: 214.57 | J94: 160927.5 | K94: 0.03714644563
A95: 10.6 | B95: COTAÇÃO-007 | C95: Material | D95: Próprio | E95: Fornecimento de tubo de revestimento geomecânico classe standart Ø 4" com junta roscável. | F95: m | G95: 500 | H95: 82.5 | I95: 95.11 | J95: 47555 | K95: 0.01097698791
A96: 10.7 | B96: COTAÇÃO-005 | C96: Material | D96: Próprio | E96: Fornecimento tubo filtro geomecânico classe standart Ø 4" com junta roscável. | F96: m | G96: 100 | H96: 86.02 | I96: 99.16 | J96: 9916 | K96: 0.002288882602
A97: 10.8 | B97: 5073 | C97: Material | D97: ORSE | E97: Fornecimento de Pré-filtro comum | F97: m³ | G97: 6.05 | H97: 1619.38 | I97: 1866.82 | J97: 11294.26 | K97: 0.00260702251
I98: Total | J98: =SUM(J91,J86,J64,J34,J32,J26,J21,J14,J10,J6) -> 4332244.91
A101: _______________________________________________________________ Cássio Oliveira Lopes Analista em Desenvolvimento Regional - AR/GSA/UAS CODEVASF – SEDE _______________________________________________________________ Catheriny Soares Andrade Moraes Analista em Desenvolvimento Regional - AR/GSA/UAS CODEVASF – SEDE _______________________________________________________________ Iago Guilherme dos Santos Engenheiro Pleno - AR/GSA/UAS Engeplus Engenharia e Consultoria LTDA _______________________________________________________________ Micheline Mirapalheta Dias Engenheiro Sênior - AR/GSA/UAS Engeplus Engenharia e Consultoria LTDA

Sheet Orç. AP - Parc. Rev - Analítico
J1: ENCARGOS SOCIAIS
B2: OBJETO: EXECUÇÃO DE SERVIÇOS DE PERFURAÇÃO E INSTALAÇÃO DE POÇOS TUBULARES EM MUNICÍPIOS LOCALIZADOS NO ESTADO DO AMAPÁ, NA ÁREA DE ATUAÇÃO DA CODEVASF | J2: Não Desonerado: embutido nos preços unitário dos insumos de mão de obra, de acordo com as bases.
B3: PLANILHA ORÇAMENTÁRIA ANALÍTICA – POÇO PARCIALMENTE REVESTIDO
B4: 1 | E4: SERVIÇOS PRELIMINARES | K4: 2019
B5: 1.1 | C5: Código | D5: Banco | E5: Descrição | F5: Tipo | H5: Und | I5: Quant. | J5: Valor Unit | K5: Total
B6: Composição | C6: COMPOSIÇÃO - 001 | D6: Próprio | E6: Administração Local da Obra - Poço Parcialmente Revestido | F6: SERP - SERVIÇOS PRELIMINARES | H6: un | I6: 1 | J6: =K6 -> 30426.95844 | K6: =SUM(K7:K13) -> 30426.95844
B7: Composição Auxiliar | C7: 92138 | D7: SINAPI | E7: CAMINHONETE COM MOTOR A DIESEL, POTÊNCIA 180 CV, CABINE DUPLA, 4X4 - CHP DIURNO. AF_11/2015 | F7: CHOR - CUSTOS HORÁRIOS DE MÁQUINAS E EQUIPAMENTOS | H7: CHP | I7: 35.06493506 | J7: 90.81 | K7: =J7*I7 -> 3184.246753
B8: Composição Auxiliar | C8: 92139 | D8: SINAPI | E8: CAMINHONETE COM MOTOR A DIESEL, POTÊNCIA 180 CV, CABINE DUPLA, 4X4 - CHI DIURNO. AF_11/2015 | F8: CHOR - CUSTOS HORÁRIOS DE MÁQUINAS E EQUIPAMENTOS | H8: CHI | I8: 42.85714286 | J8: 37.3 | K8: =J8*I8 -> 1598.571429
B9: Composição Auxiliar | C9: 93572 | D9: SINAPI | E9: ENCARREGADO GERAL DE OBRAS COM ENCARGOS COMPLEMENTARES | F9: SEDI - SERVIÇOS DIVERSOS | H9: MES | I9: 0.7792207792 | J9: 4411.66 | K9: 3437.657143
B10: Composição Auxiliar | C10: 93565 | D10: SINAPI | E10: ENGENHEIRO CIVIL DE OBRA JUNIOR COM ENCARGOS COMPLEMENTARES | F10: SEDI - SERVIÇOS DIVERSOS | H10: MES | I10: 1.038961039 | J10: 19584.39 | K10: 20347.41818
B11: Insumo | C11: 00014250 | D11: SINAPI | E11: ENERGIA ELETRICA COMERCIAL, BAIXA TENSAO, RELATIVA AO CONSUMO DE ATE 100 KWH, INCLUINDO ICMS, PIS/PASEP E COFINS | F11: Material | H11: KWH | I11: 363.6363636 | J11: 0.93 | K11: =J11*I11 -> 338.1818182
B12: Insumo | C12: 00044480 | D12: SINAPI | E12: TARIFA "A" ENTRE 0 E 20M3 FORNECIMENTO D'AGUA | F12: Taxas | H12: m³ | I12: 15.58441558 | J12: 17.59 | K12: =J12*I12 -> 274.1298701
B13: Insumo | C13: 4298 | D13: ORSE | E13: Aluguel de container - Escritório com banheiro - 6,20 x 2,40m, equipado com Ar condicionado mês | F13: Serviços | H13: mês | I13: 0.7792207792 | J13: 1600 | K13: 1246.753247
B15: 1.2 | C15: Código | D15: Banco | E15: Descrição | F15: Tipo | H15: Und | I15: Quant. | J15: Valor Unit | K15: Total
B16: Composição | C16: COMPOSIÇÃO - 003 | D16: Próprio | E16: Serviço de locação Geológica de campo com relatório hidro geológico e perfil construtivo e geológico esperado. Relatório de Viabilidade de implantação das estruturas e vistorias preliminares | F16: SERT - SERVIÇOS TÉCNICOS | H16: un | I16: 1 | J16: 496.5 | K16: =SUM(K17:K19) -> 496.5
B17: Composição Auxiliar | C17: 30.01.45 | D17: EMBASA | E17: GEOLOGO SENIOR | F17: 3001 | H17: hora | I17: 5 | J17: 79.73 | K17: =J17*I17 -> 398.65
B18: Insumo | C18: 5896 | D18: ORSE | E18: Veículo tipo sedan ou pick-up capacidade 0,6 ton h | F18: Equipamento | H18: h | I18: 5 | J18: 8.33 | K18: =J18*I18 -> 41.65
B19: Insumo | C19: 00004222 | D19: SINAPI | E19: GASOLINA COMUM | F19: Material | H19: L | I19: 10 | J19: 5.62 | K19: =J19*I19 -> 56.2
B21: 1.3 | C21: Código | D21: Banco | E21: Descrição | F21: Tipo | H21: Und | I21: Quant. | J21: Valor Unit | K21: Total
B22: Composição | C22: COMPOSIÇÃO - 005 | D22: Próprio | E22: Placa da Obra - Padrão Governo Federal | F22: SEDI - SERVIÇOS DIVERSOS | H22: m² | I22: 1 | J22: =K22 -> 362.9275 | K22: =SUM(K23:K29) -> 362.9275
B23: Composição Auxiliar | C23: 88262 | D23: SINAPI | E23: CARPINTEIRO DE FORMAS COM ENCARGOS COMPLEMENTARES | F23: SEDI - SERVIÇOS DIVERSOS | H23: H | I23: 1 | J23: 23.07 | K23: =J23*I23 -> 23.07
B24: Composição Auxiliar | C24: 88316 | D24: SINAPI | E24: SERVENTE COM ENCARGOS COMPLEMENTARES | F24: SEDI - SERVIÇOS DIVERSOS | H24: H | I24: 2 | J24: 17.29 | K24: =J24*I24 -> 34.58
B25: Composição Auxiliar | C25: 94975 | D25: SINAPI | E25: CONCRETO FCK = 15MPA, TRAÇO 1:3,4:3,5 (EM MASSA SECA DE CIMENTO/ AREIA MÉDIA/ BRITA 1) - PREPARO MANUAL. AF_05/2021 | F25: FUES - FUNDAÇÕES E ESTRUTURAS | H25: m³ | I25: 0.01 | J25: 661.55 | K25: 6.6155
B26: Insumo | C26: 00004491 | D26: SINAPI | E26: PONTALETE *7,5 X 7,5* CM EM PINUS, MISTA OU EQUIVALENTE DA REGIAO - BRUTA | F26: Material | H26: M | I26: 4 | J26: 10.57 | K26: =J26*I26 -> 42.28
B27: Insumo | C27: 00004813 | D27: SINAPI | E27: PLACA DE OBRA (PARA CONSTRUCAO CIVIL) EM CHAPA GALVANIZADA *N. 22*, ADESIVADA, DE *2,4 X 1,2* M (SEM POSTES PARA FIXACAO) | F27: Material | H27: m² | I27: 1 | J27: 250 | K27: =J27*I27 -> 250
B28: Insumo | C28: 00005075 | D28: SINAPI | E28: PREGO DE ACO POLIDO COM CABECA 18 X 30 (2 3/4 X 10) | F28: Material | H28: KG | I28: 0.11 | J28: 20.2 | K28: 2.222
B29: Insumo | C29: 00004417 | D29: SINAPI | E29: SARRAFO NAO APARELHADO *2,5 X 7* CM, EM MACARANDUBA/MASSARANDUBA, ANGELIM, PEROBA-ROSA OU EQUIVALENTE DA REGIAO - BRUTA | F29: Material | H29: M | I29: 1 | J29: 4.16 | K29: 4.16
B31: 2 | E31: MOBILIZAÇÂO E DESMOBILIZAÇÂO EQUIPES DE PERFURAÇÂO E INSTALAÇÃO | K31: 2246.4
B32: 2.1 | C32: Código | D32: Banco | E32: Descrição | F32: Tipo | H32: Und | I32: Quant. | J32: Valor Unit | K32: Total
B33: Composição | C33: COMPOSIÇÃO - 006 | D33: Próprio | E33: Transporte de Comboio Perfuração | F33: TRAN - TRANSPORTES, CARGAS E DESCARGAS | H33: km | I33: 1 | J33: =K33 -> 4.5728368 | K33: =SUM(K34:K35) -> 4.5728368
B34: Composição Auxiliar | C34: 5824 | D34: SINAPI | E34: CAMINHÃO TOCO, PBT 16.000 KG, CARGA ÚTIL MÁX. 10.685 KG, DIST. ENTRE EIXOS 4,8 M, POTÊNCIA 189 CV, INCLUSIVE CARROCERIA FIXA ABERTA DE MADEIRA P/ TRANSPORTE GERAL DE CARGA SECA, DIMEN. APROX. 2,5 X 7,00 X 0,50 M - CHP DIURNO. AF_06/2014 | F34: CHOR - CUSTOS HORÁRIOS DE MÁQUINAS E EQUIPAMENTOS | H34: CHP | I34: 0.01666 | J34: 218.32 | K34: =J34*I34 -> 3.6372112
B35: Composição Auxiliar | C35: 5826 | D35: SINAPI | E35: CAMINHÃO TOCO, PBT 16.000 KG, CARGA ÚTIL MÁX. 10.685 KG, DIST. ENTRE EIXOS 4,8 M, POTÊNCIA 189 CV, INCLUSIVE CARROCERIA FIXA ABERTA DE MADEIRA P/ TRANSPORTE GERAL DE CARGA SECA, DIMEN. APROX. 2,5 X 7,00 X 0,50 M - CHI DIURNO. AF_06/2014 | F35: CHOR - CUSTOS HORÁRIOS DE MÁQUINAS E EQUIPAMENTOS | H35: CHI | I35: 0.01666 | J35: 56.16 | K35: 0.9356256
B37: 2.2 | C37: Código | D37: Banco | E37: Descrição | F37: Tipo | H37: Und | I37: Quant. | J37: Valor Unit | K37: Total
B38: Composição | C38: COMPOSIÇÃO - 007 | D38: Próprio | E38: Transporte de Comboio Instalação | F38: TRAN - TRANSPORTES, CARGAS E DESCARGAS | H38: km | I38: 1 | J38: =K38 -> 5.7916824 | K38: =SUM(K39:K40) -> 5.7916824
B39: Composição Auxiliar | C39: 5928 | D39: SINAPI | E39: GUINDAUTO HIDRÁULICO, CAPACIDADE MÁXIMA DE CARGA 6200 KG, MOMENTO MÁXIMO DE CARGA 11,7 TM, ALCANCE MÁXIMO HORIZONTAL 9,70 M, INCLUSIVE CAMINHÃO TOCO PBT 16.000 KG, POTÊNCIA DE 189 CV - CHP DIURNO. AF_06/2014 | F39: CHOR - CUSTOS HORÁRIOS DE MÁQUINAS E EQUIPAMENTOS | H39: CHP | I39: 0.01666 | J39: 280.53 | K39: =J39*I39 -> 4.6736298
B40: Composição Auxiliar | C40: 5930 | D40: SINAPI | E40: GUINDAUTO HIDRÁULICO, CAPACIDADE MÁXIMA DE CARGA 6200 KG, MOMENTO MÁXIMO DE CARGA 11,7 TM, ALCANCE MÁXIMO HORIZONTAL 9,70 M, INCLUSIVE CAMINHÃO TOCO PBT 16.000 KG, POTÊNCIA DE 189 CV - CHI DIURNO. AF_06/2014 | F40: CHOR - CUSTOS HORÁRIOS DE MÁQUINAS E EQUIPAMENTOS | H40: CHI | I40: 0.01666 | J40: 67.11 | K40: 1.1180526
B42: 2.3 | C42: Código | D42: Banco | E42: Descrição | F42: Tipo | H42: Und | I42: Quant. | J42: Valor Unit | K42: Total
B43: Composição | C43: COMPOSIÇÃO - 027 | D43: Próprio | E43: Transporte Hidroviário | F43: TRAN - TRANSPORTES, CARGAS E DESCARGAS | H43: und | I43: 1 | J43: =K43 -> 12074.46 | K43: =K44 -> 12074.46
B44: Insumo | C44: COTAÇÃO-009 | D44: Próprio | E44: Custos, taxas e seguro travessia hidroviária para perfuração poço parcialmente revestido | F44: SERVIÇO | H44: und | I44: 1 | J44: =Cotações!K15 -> 12074.46 | K44: =J44*I44 -> 12074.46
B46: 3 | E46: PERFURAÇÃO E COMPLETAÇÃO DE POÇO TUBULAR | K46: 37859.21
B47: 3.1 | C47: Código | D47: Banco | E47: Descrição | F47: Tipo | H47: Und | I47: Quant. | J47: Valor Unit | K47: Total
B48: Composição | C48: COMPOSIÇÃO - 009 | D48: Próprio | E48: Limpeza manual , remoção de cerca, capina e instalação dos equipamentos (área do poço, painéis solares, bebedouro e reservatório) | F48: SEDI - SERVIÇOS DIVERSOS | H48: m² | I48: 1 | J48: =K48 -> 1.3832 | K48: =K49 -> 1.3832
B49: Composição Auxiliar | C49: 88316 | D49: SINAPI | E49: SERVENTE COM ENCARGOS COMPLEMENTARES | F49: SEDI - SERVIÇOS DIVERSOS | H49: H | I49: 0.08 | J49: 17.29 | K49: =J49*I49 -> 1.3832
B51: 3.2 | C51: Código | D51: Banco | E51: Descrição | F51: Tipo | H51: Und | I51: Quant. | J51: Valor Unit | K51: Total
B52: Composição | C52: COMPOSIÇÃO - 013 | D52: Próprio | E52: Perfuração em material inconsolidado Ø 8 1/2" | F52: SERT - SERVIÇOS TÉCNICOS | H52: m | I52: 1 | J52: =K52 -> 213.626 | K52: =SUM(K53:K55) -> 213.626
B53: Composição Auxiliar | C53: 88263 | D53: SINAPI | E53: CAVOUQUEIRO OU OPERADOR PERFURATRIZ/ROMPEDOR COM ENCARGOS COMPLEMENTARES | F53: SEDI - SERVIÇOS DIVERSOS | H53: H | I53: 0.2 | J53: 23.81 | K53: =J53*I53 -> 4.762
B54: Composição Auxiliar | C54: 88316 | D54: SINAPI | E54: SERVENTE COM ENCARGOS COMPLEMENTARES | F54: SEDI - SERVIÇOS DIVERSOS | H54: H | I54: 0.6 | J54: 17.29 | K54: 10.374
B55: Insumo | C55: 5071 | D55: ORSE | E55: Perfuração rocha sedimentar sedimento / camadas inconsolidadas dn 8.1/2 a 9.1/2" - até 150m m | F55: Serviços | H55: m | I55: 1 | J55: 198.49 | K55: 198.49
B57: 3.3 | C57: Código | D57: Banco | E57: Descrição | F57: Tipo | H57: Und | I57: Quant. | J57: Valor Unit | K57: Total
B58: Composição | C58: COMPOSIÇÃO - 010 | D58: Próprio | E58: Perfuração roto pneumática utilizando martelo de fundo (DTH) em rocha Ø 6 1/8" em rocha | F58: SERT - SERVIÇOS TÉCNICOS | H58: m | I58: 1 | J58: =K58 -> 171.446 | K58: =SUM(K59:K61) -> 171.446
B59: Composição Auxiliar | C59: 88263 | D59: SINAPI | E59: CAVOUQUEIRO OU OPERADOR PERFURATRIZ/ROMPEDOR COM ENCARGOS COMPLEMENTARES | F59: SEDI - SERVIÇOS DIVERSOS | H59: H | I59: 0.2 | J59: 23.81 | K59: =J59*I59 -> 4.762
B60: Composição Auxiliar | C60: 88316 | D60: SINAPI | E60: SERVENTE COM ENCARGOS COMPLEMENTARES | F60: SEDI - SERVIÇOS DIVERSOS | H60: H | I60: 0.6 | J60: 17.29 | K60: 10.374
B61: Insumo | C61: 5051 | D61: ORSE | E61: Perfuraçao em rocha metassedimentar - metassedimento alterado / compacto dn 6" (poço 120m) m | F61: Serviços | H61: m | I61: 1 | J61: 156.31 | K61: 156.31
B63: 3.5 | C63: Código | D63: Banco | E63: Descrição | F63: Tipo | H63: Und | I63: Quant. | J63: Valor Unit | K63: Total
B64: Composição | C64: COMPOSIÇÃO - 011 | D64: Próprio | E64: Serviço de lançamento cimentação anelar poço tubular, incluso material. | F64: SEDI - SERVIÇOS DIVERSOS | H64: m³ | I64: 1 | J64: =K64 -> 973.606 | K64: =SUM(K65:K67) -> 973.606
B65: Composição Auxiliar | C65: 1903 | D65: ORSE | E65: Argamassa cimento e areia traço t-1 (1:3) - 1 saco cimento 50kg / 3 padiolas areia dim. 0.35 x 0.45 x 0.23 m - Confecção mecânica e transporte | F65: Argamassas | H65: m³ | I65: 1 | J65: 675.41 | K65: =J65*I65 -> 675.41
B66: Composição Auxiliar | C66: 88316 | D66: SINAPI | E66: SERVENTE COM ENCARGOS COMPLEMENTARES | F66: SEDI - SERVIÇOS DIVERSOS | H66: H | I66: 7.4 | J66: 17.29 | K66: 127.946
B67: Insumo | C67: 00000124 | D67: SINAPI | E67: ADITIVO ACELERADOR DE PEGA E ENDURECIMENTO PARA ARGAMASSAS E CONCRETOS, LIQUIDO E ISENTO DE CLORETOS | F67: Material | H67: L | I67: 5 | J67: 34.05 | K67: 170.25
B69: 3.6 | C69: Código | D69: Banco | E69: Descrição | F69: Tipo | H69: Und | I69: Quant. | J69: Valor Unit | K69: Total
B70: Composição | C70: COMPOSIÇÃO - 014 | D70: Próprio | E70: Serviço de instalação de laje sanitária com dimensões (1,5x1,5x0,3) , incluso material. | F70: SEDI - SERVIÇOS DIVERSOS | H70: un | I70: 1 | J70: =K70 -> 713.4795 | K70: =SUM(K71:K74) -> 713.4795
B71: Composição Auxiliar | C71: 92522 | D71: SINAPI | E71: MONTAGEM E DESMONTAGEM DE FÔRMA DE LAJE MACIÇA, PÉ-DIREITO SIMPLES, EM CHAPA DE MADEIRA COMPENSADA RESINADA, 8 UTILIZAÇÕES. AF_09/2020 | F71: FUES - FUNDAÇÕES E ESTRUTURAS | H71: m² | I71: 1.8 | J71: 48.25 | K71: =J71*I71 -> 86.85
B72: Composição Auxiliar | C72: 93358 | D72: SINAPI | E72: ESCAVAÇÃO MANUAL DE VALA COM PROFUNDIDADE MENOR OU IGUAL A 1,30 M. AF_02/2021 | F72: MOVT - MOVIMENTO DE TERRA | H72: m³ | I72: 0.225 | J72: 68.4 | K72: 15.39
B73: Composição Auxiliar | C73: 94975 | D73: SINAPI | E73: CONCRETO FCK = 15MPA, TRAÇO 1:3,4:3,5 (EM MASSA SECA DE CIMENTO/ AREIA MÉDIA/ BRITA 1) - PREPARO MANUAL. AF_05/2021 | F73: FUES - FUNDAÇÕES E ESTRUTURAS | H73: m³ | I73: 0.675 | J73: 661.55 | K73: 446.54625
B74: Composição Auxiliar | C74: 103670 | D74: SINAPI | E74: LANÇAMENTO COM USO DE BALDES, ADENSAMENTO E ACABAMENTO DE CONCRETO EM ESTRUTURAS. AF_02/2022 | F74: FUES - FUNDAÇÕES E ESTRUTURAS | H74: m³ | I74: 0.675 | J74: 243.99 | K74: 164.69325
B76: 4 | E76: PÓS PERFURAÇÃO | K76: 9956.16
B77: 4.3 | C77: Código | D77: Banco | E77: Descrição | F77: Tipo | H77: Und | I77: Quant. | J77: Valor Unit | K77: Total
B78: Composição | C78: COMPOSIÇÃO - 015 | D78: Próprio | E78: Inspeção ótica em poço tubular câmera com rotação de 360º, visada lateral, com fonte própria de luz, entregue vídeo em cores e marcação de profundidades. | F78: SEES - SERVIÇOS ESPECIAIS | H78: m | I78: 1 | J78: =K78 -> 38.046335 | K78: =SUM(K79:K83) -> 38.046335
B79: Insumo | C79: H020050004 | D79: EMBASA | E79: APARELHO DE PERFILAGEM OPTICA | F79: Material | H79: M | I79: 1 | J79: 4.4 | K79: =J79*I79 -> 4.4
B80: Insumo | C80: B590000022 | D80: EMBASA | E80: TECNICO MEDIO | F80: Mão de Obra | H80: H | I80: 0.0835 | J80: 48.54 | K80: 4.05309
B81: Insumo | C81: B590000028 | D81: EMBASA | E81: AUXILIAR TECNICO | F81: Mão de Obra | H81: H | I81: 0.0835 | J81: 22.47 | K81: 1.876245
B82: Insumo | C82: F020000340 | D82: EMBASA | E82: DIÁRIA PARA PROFISSIONAL (INTERIOR) | F82: Material | H82: DIA | I82: 0.021 | J82: 227 | K82: 4.767
B83: Insumo | C83: F030000250 | D83: EMBASA | E83: LOCAÇÃO DE VEÍCULO PICK UP TIPO SAVEIRO OU SIMILAR | F83: Material | H83: DIA | I83: 0.25 | J83: 91.8 | K83: 22.95
B85: 5 | E85: RESERVAÇÃO | K85: 6862.69
B86: 5.1 | C86: Código | D86: Banco | E86: Descrição | F86: Tipo | H86: Und | I86: Quant. | J86: Valor Unit | K86: Total
B87: Composição | C87: COMPOSIÇÃO - 016 | D87: Próprio | E87: Execução e instalação de base de sustentação em concreto armado para reservatório de diâmetro 2,06m e altura 1,10m, conforme projeto, incluindo fixação de grampos da tampa. | F87: SEDI - SERVIÇOS DIVERSOS | H87: un | I87: 1 | J87: =K87 -> 3224.697 | K87: =SUM(K88:K106) -> 3224.697
B88: Composição Auxiliar | C88: 5928 | D88: SINAPI | E88: GUINDAUTO HIDRÁULICO, CAPACIDADE MÁXIMA DE CARGA 6200 KG, MOMENTO MÁXIMO DE CARGA 11,7 TM, ALCANCE MÁXIMO HORIZONTAL 9,70 M, INCLUSIVE CAMINHÃO TOCO PBT 16.000 KG, POTÊNCIA DE 189 CV - CHP DIURNO. AF_06/2014 | F88: CHOR - CUSTOS HORÁRIOS DE MÁQUINAS E EQUIPAMENTOS | H88: CHP | I88: 2.5 | J88: 280.53 | K88: =J88*I88 -> 701.325
B89: Composição Auxiliar | C89: 88310 | D89: SINAPI | E89: PINTOR COM ENCARGOS COMPLEMENTARES | F89: SEDI - SERVIÇOS DIVERSOS | H89: H | I89: 0.3 | J89: 24.67 | K89: 7.401
B90: Composição Auxiliar | C90: 100301 | D90: SINAPI | E90: AJUDANTE DE PINTOR COM ENCARGOS COMPLEMENTARES | F90: SEDI - SERVIÇOS DIVERSOS | H90: H | I90: 0.1 | J90: 20.61 | K90: 2.061
B91: Composição Auxiliar | C91: 88309 | D91: SINAPI | E91: PEDREIRO COM ENCARGOS COMPLEMENTARES | F91: SEDI - SERVIÇOS DIVERSOS | H91: H | I91: 5.55 | J91: 23.45 | K91: 130.1475
B92: Composição Auxiliar | C92: 88316 | D92: SINAPI | E92: SERVENTE COM ENCARGOS COMPLEMENTARES | F92: SEDI - SERVIÇOS DIVERSOS | H92: H | I92: 10 | J92: 17.29 | K92: 172.9
B93: Composição Auxiliar | C93: 88245 | D93: SINAPI | E93: ARMADOR COM ENCARGOS COMPLEMENTARES | F93: SEDI - SERVIÇOS DIVERSOS | H93: H | I93: 3 | J93: 23.25 | K93: 69.75
B94: Composição Auxiliar | C94: 88262 | D94: SINAPI | E94: CARPINTEIRO DE FORMAS COM ENCARGOS COMPLEMENTARES | F94: SEDI - SERVIÇOS DIVERSOS | H94: H | I94: 2 | J94: 23.07 | K94: 46.14
B95: Composição Auxiliar | C95: 87445 | D95: SINAPI | E95: BETONEIRA CAPACIDADE NOMINAL 400 L, CAPACIDADE DE MISTURA 310 L, MOTOR A DIESEL POTÊNCIA 5,0 HP, SEM CARREGADOR - CHP DIURNO. AF_05/2023 | F95: CHOR - CUSTOS HORÁRIOS DE MÁQUINAS E EQUIPAMENTOS | H95: CHP | I95: 2.8548 | J95: 5.66 | K95: 16.158168
B96: Composição Auxiliar | C96: 88377 | D96: SINAPI | E96: OPERADOR DE BETONEIRA ESTACIONÁRIA/MISTURADOR COM ENCARGOS COMPLEMENTARES | F96: SEDI - SERVIÇOS DIVERSOS | H96: H | I96: 2.8548 | J96: 15.84 | K96: 45.220032
B97: Insumo | C97: 00007155 | D97: SINAPI | E97: TELA DE ACO SOLDADA NERVURADA, CA-60, Q-138, (2,20 KG/M2), DIAMETRO DO FIO = 4,2 MM, LARGURA = 2,45 M, ESPACAMENTO DA MALHA = 10 X 10 CM | F97: Material | H97: m² | I97: 6 | J97: 18.29 | K97: =J97*I97 -> 109.74
B98: Insumo | C98: 00000370 | D98: SINAPI | E98: AREIA MEDIA - POSTO JAZIDA/FORNECEDOR (RETIRADO NA JAZIDA, SEM TRANSPORTE) | F98: Material | H98: m³ | I98: 1.36 | J98: 113.33 | K98: 154.1288
B99: Insumo | C99: 00001379 | D99: SINAPI | E99: CIMENTO PORTLAND COMPOSTO CP II-32 | F99: Material | H99: KG | I99: 565.75 | J99: 1.07 | K99: 605.3525
B100: Insumo | C100: 00004718 | D100: SINAPI | E100: PEDRA BRITADA N. 2 (19 A 38 MM) POSTO PEDREIRA/FORNECEDOR, SEM FRETE | F100: Material | H100: m³ | I100: 0.33 | J100: 280 | K100: 92.4
B101: Insumo | C101: 00004721 | D101: SINAPI | E101: PEDRA BRITADA N. 1 (9,5 a 19 MM) POSTO PEDREIRA/FORNECEDOR, SEM FRETE | F101: Material | H101: m³ | I101: 0.98 | J101: 278.53 | K101: 272.9594
B102: Insumo | C102: 00003767 | D102: SINAPI | E102: LIXA EM FOLHA PARA PAREDE OU MADEIRA, NUMERO 120, COR VERMELHA | F102: Material | H102: UN | I102: 0.12 | J102: 0.79 | K102: 0.0948
B103: Insumo | C103: 00007356 | D103: SINAPI | E103: TINTA LATEX ACRILICA PREMIUM, COR BRANCO FOSCO | F103: Material | H103: L | I103: 0.18 | J103: 20.14 | K103: 3.6252
B104: Insumo | C104: 00000032 | D104: SINAPI | E104: ACO CA-50, 6,3 MM, VERGALHAO | F104: Material | H104: KG | I104: 9.3 | J104: 11.09 | K104: 103.137
B105: Insumo | C105: 00043059 | D105: SINAPI | E105: ACO CA-60, 4,2 MM, OU 5,0 MM, OU 6,0 MM, OU 7,0 MM, VERGALHAO | F105: Material | H105: KG | I105: 3.04 | J105: 9.95 | K105: 30.248
B106: Insumo | C106: 00043681 | D106: SINAPI | E106: CHAPA/PAINEL DE MADEIRA COMPENSADA RESINADA (MADEIRITE RESINADO ROSA) PARA FORMA DE CONCRETO, DE 2200 x 1100 MM, E = 8 A 12 MM | F106: Material | H106: m² | I106: 17.46 | J106: 37.91 | K106: 661.9086
B108: 6 | E108: BEBEDOURO | K108: 2160.22
B109: 6.1 | C109: Código | D109: Banco | E109: Descrição | F109: Tipo | H109: Und | I109: Quant. | J109: Valor Unit | K109: Total
B110: Composição | C110: COMPOSIÇÃO - 017 | D110: Próprio | E110: Serviço de execução do bebedouro em concreto armado, incluso materiais. | F110: SEDI - SERVIÇOS DIVERSOS | H110: un | I110: 1 | J110: =K110 -> 1721.7025 | K110: =SUM(K111:K129) -> 1721.7025
B111: Composição Auxiliar | C111: 5928 | D111: SINAPI | E111: GUINDAUTO HIDRÁULICO, CAPACIDADE MÁXIMA DE CARGA 6200 KG, MOMENTO MÁXIMO DE CARGA 11,7 TM, ALCANCE MÁXIMO HORIZONTAL 9,70 M, INCLUSIVE CAMINHÃO TOCO PBT 16.000 KG, POTÊNCIA DE 189 CV - CHP DIURNO. AF_06/2014 | F111: CHOR - CUSTOS HORÁRIOS DE MÁQUINAS E EQUIPAMENTOS | H111: CHP | I111: 2 | J111: 280.53 | K111: =J111*I111 -> 561.06
B112: Composição Auxiliar | C112: 87445 | D112: SINAPI | E112: BETONEIRA CAPACIDADE NOMINAL 400 L, CAPACIDADE DE MISTURA 310 L, MOTOR A DIESEL POTÊNCIA 5,0 HP, SEM CARREGADOR - CHP DIURNO. AF_05/2023 | F112: CHOR - CUSTOS HORÁRIOS DE MÁQUINAS E EQUIPAMENTOS | H112: CHP | I112: 0.5 | J112: 5.66 | K112: 2.83
B113: Composição Auxiliar | C113: 88377 | D113: SINAPI | E113: OPERADOR DE BETONEIRA ESTACIONÁRIA/MISTURADOR COM ENCARGOS COMPLEMENTARES | F113: SEDI - SERVIÇOS DIVERSOS | H113: H | I113: 0.5 | J113: 15.84 | K113: 7.92
B114: Composição Auxiliar | C114: 88310 | D114: SINAPI | E114: PINTOR COM ENCARGOS COMPLEMENTARES | F114: SEDI - SERVIÇOS DIVERSOS | H114: H | I114: 0.3 | J114: 24.67 | K114: 7.401
B115: Composição Auxiliar | C115: 100301 | D115: SINAPI | E115: AJUDANTE DE PINTOR COM ENCARGOS COMPLEMENTARES | F115: SEDI - SERVIÇOS DIVERSOS | H115: H | I115: 0.1 | J115: 20.61 | K115: 2.061
B116: Composição Auxiliar | C116: 88245 | D116: SINAPI | E116: ARMADOR COM ENCARGOS COMPLEMENTARES | F116: SEDI - SERVIÇOS DIVERSOS | H116: H | I116: 3 | J116: 23.25 | K116: 69.75
B117: Composição Auxiliar | C117: 88262 | D117: SINAPI | E117: CARPINTEIRO DE FORMAS COM ENCARGOS COMPLEMENTARES | F117: SEDI - SERVIÇOS DIVERSOS | H117: H | I117: 2 | J117: 23.07 | K117: 46.14
B118: Composição Auxiliar | C118: 88316 | D118: SINAPI | E118: SERVENTE COM ENCARGOS COMPLEMENTARES | F118: SEDI - SERVIÇOS DIVERSOS | H118: H | I118: 5 | J118: 17.29 | K118: 86.45
B119: Composição Auxiliar | C119: 88309 | D119: SINAPI | E119: PEDREIRO COM ENCARGOS COMPLEMENTARES | F119: SEDI - SERVIÇOS DIVERSOS | H119: H | I119: 4 | J119: 23.45 | K119: 93.8
B120: Insumo | C120: 00043055 | D120: SINAPI | E120: ACO CA-50, 12,5 MM OU 16,0 MM, VERGALHAO | F120: Material | H120: KG | I120: 12 | J120: 9.11 | K120: =J120*I120 -> 109.32
B121: Insumo | C121: 00043059 | D121: SINAPI | E121: ACO CA-60, 4,2 MM, OU 5,0 MM, OU 6,0 MM, OU 7,0 MM, VERGALHAO | F121: Material | H121: KG | I121: 13 | J121: 9.95 | K121: 129.35
B122: Insumo | C122: 00000032 | D122: SINAPI | E122: ACO CA-50, 6,3 MM, VERGALHAO | F122: Material | H122: KG | I122: 6 | J122: 11.09 | K122: 66.54
B123: Insumo | C123: 00000370 | D123: SINAPI | E123: AREIA MEDIA - POSTO JAZIDA/FORNECEDOR (RETIRADO NA JAZIDA, SEM TRANSPORTE) | F123: Material | H123: m³ | I123: 0.32 | J123: 113.33 | K123: 36.2656
B124: Insumo | C124: 00001379 | D124: SINAPI | E124: CIMENTO PORTLAND COMPOSTO CP II-32 | F124: Material | H124: KG | I124: 127 | J124: 1.07 | K124: 135.89
B125: Insumo | C125: 00004718 | D125: SINAPI | E125: PEDRA BRITADA N. 2 (19 A 38 MM) POSTO PEDREIRA/FORNECEDOR, SEM FRETE | F125: Material | H125: m³ | I125: 0.08 | J125: 280 | K125: 22.4
B126: Insumo | C126: 00004721 | D126: SINAPI | E126: PEDRA BRITADA N. 1 (9,5 a 19 MM) POSTO PEDREIRA/FORNECEDOR, SEM FRETE | F126: Material | H126: m³ | I126: 0.23 | J126: 278.53 | K126: 64.0619
B127: Insumo | C127: 00003767 | D127: SINAPI | E127: LIXA EM FOLHA PARA PAREDE OU MADEIRA, NUMERO 120, COR VERMELHA | F127: Material | H127: UN | I127: 0.12 | J127: 0.79 | K127: 0.0948
B128: Insumo | C128: 00007356 | D128: SINAPI | E128: TINTA LATEX ACRILICA PREMIUM, COR BRANCO FOSCO | F128: Material | H128: L | I128: 0.18 | J128: 20.14 | K128: 3.6252
B129: Insumo | C129: 00043681 | D129: SINAPI | E129: CHAPA/PAINEL DE MADEIRA COMPENSADA RESINADA (MADEIRITE RESINADO ROSA) PARA FORMA DE CONCRETO, DE 2200 x 1100 MM, E = 8 A 12 MM | F129: Material | H129: m² | I129: 7.3 | J129: 37.91 | K129: 276.743
B131: 7 | E131: INSTALAÇÕES HIDRÁULICAS | K131: 3459.32
B132: 7.1 | E132: INSTALAÇÕES DE CAVALETE | K132: 1357.06
B133: 7.1.1 | C133: Código | D133: Banco | E133: Descrição | F133: Tipo | H133: Und | I133: Quant. | J133: Valor Unit | K133: Total
B134: Composição | C134: COMPOSIÇÃO - 018 | D134: Próprio | E134: Montagem e Instalação de Tubulação e Conexões Cavalete | F134: INHI - INSTALAÇÕES HIDROS SANITÁRIAS | H134: un | I134: 1 | J134: =K134 -> 252.98 | K134: =SUM(K135:K138) -> 252.98
B135: Composição Auxiliar | C135: 88248 | D135: SINAPI | E135: AUXILIAR DE ENCANADOR OU BOMBEIRO HIDRÁULICO COM ENCARGOS COMPLEMENTARES | F135: SEDI - SERVIÇOS DIVERSOS | H135: H | I135: 3 | J135: 18.63 | K135: =J135*I135 -> 55.89
B136: Composição Auxiliar | C136: 88267 | D136: SINAPI | E136: ENCANADOR OU BOMBEIRO HIDRÁULICO COM ENCARGOS COMPLEMENTARES | F136: SEDI - SERVIÇOS DIVERSOS | H136: H | I136: 3 | J136: 22.7 | K136: 68.1
B137: Insumo | C137: 00000122 | D137: SINAPI | E137: ADESIVO PLASTICO PARA PVC, FRASCO COM *850* GR | F137: Material | H137: UN | I137: 1 | J137: 60.47 | K137: =J137*I137 -> 60.47
B138: Insumo | C138: 00020083 | D138: SINAPI | E138: SOLUCAO PREPARADORA / LIMPADORA PARA PVC, FRASCO COM 1000 CM3 | F138: Material | H138: UN | I138: 1 | J138: 68.52 | K138: 68.52
B140: 7.2 | E140: INSTALAÇÕES DE ADUTORA, RESERVATÓRIO E BEBEDOURO | K140: 2102.26
B141: 7.2.1 | C141: Código | D141: Banco | E141: Descrição | F141: Tipo | H141: Und | I141: Quant. | J141: Valor Unit | K141: Total
B142: Composição | C142: COMPOSIÇÃO - 020 | D142: Próprio | E142: Montagem e instalação da rede adutora poço-reservatório-bebedouro | F142: SEDI - SERVIÇOS DIVERSOS | H142: un | I142: 1 | J142: =K142 -> 965.135 | K142: =SUM(K143:K149) -> 965.135
B143: Composição Auxiliar | C143: 88316 | D143: SINAPI | E143: SERVENTE COM ENCARGOS COMPLEMENTARES | F143: SEDI - SERVIÇOS DIVERSOS | H143: H | I143: 6 | J143: 17.29 | K143: =J143*I143 -> 103.74
B144: Composição Auxiliar | C144: 93358 | D144: SINAPI | E144: ESCAVAÇÃO MANUAL DE VALA COM PROFUNDIDADE MENOR OU IGUAL A 1,30 M. AF_02/2021 | F144: MOVT - MOVIMENTO DE TERRA | H144: m³ | I144: 4.5 | J144: 68.4 | K144: 307.8
B145: Composição Auxiliar | C145: 88267 | D145: SINAPI | E145: ENCANADOR OU BOMBEIRO HIDRÁULICO COM ENCARGOS COMPLEMENTARES | F145: SEDI - SERVIÇOS DIVERSOS | H145: H | I145: 6 | J145: 22.7 | K145: 136.2
B146: Composição Auxiliar | C146: 93382 | D146: SINAPI | E146: REATERRO MANUAL DE VALAS, COM COMPACTADOR DE SOLOS DE PERCUSSÃO. AF_08/2023 | F146: MOVT - MOVIMENTO DE TERRA | H146: m³ | I146: 4.5 | J146: 22.62 | K146: 101.79
B147: Composição Auxiliar | C147: 96995 | D147: SINAPI | E147: REATERRO MANUAL APILOADO COM SOQUETE. AF_10/2017 | F147: MOVT - MOVIMENTO DE TERRA | H147: m³ | I147: 4.5 | J147: 41.47 | K147: 186.615
B148: Insumo | C148: 00000122 | D148: SINAPI | E148: ADESIVO PLASTICO PARA PVC, FRASCO COM *850* GR | F148: Material | H148: UN | I148: 1 | J148: 60.47 | K148: =J148*I148 -> 60.47
B149: Insumo | C149: 00020083 | D149: SINAPI | E149: SOLUCAO PREPARADORA / LIMPADORA PARA PVC, FRASCO COM 1000 CM3 | F149: Material | H149: UN | I149: 1 | J149: 68.52 | K149: 68.52
B151: 8 | E151: FORNECIMENTO E INSTALAÇÃO DE SISTEMA FOTOVOLTAÍCO | K151: 30809.35
B152: 8.1 | E152: INSTALAÇÕES HIDRÁULICAS | K152: 2613.68
B153: 8.1.1 | C153: Código | D153: Banco | E153: Descrição | F153: Tipo | H153: Und | I153: Quant. | J153: Valor Unit | K153: Total
B154: Composição | C154: COMPOSIÇÃO - 019 | D154: Próprio | E154: Montagem e instalação hidráulica do kit de bombeamento | F154: INHI - INSTALAÇÕES HIDROS SANITÁRIAS | H154: un | I154: 1 | J154: =K154 -> 123.99 | K154: =SUM(K155:K156) -> 123.99
B155: Composição Auxiliar | C155: 88267 | D155: SINAPI | E155: ENCANADOR OU BOMBEIRO HIDRÁULICO COM ENCARGOS COMPLEMENTARES | F155: SEDI - SERVIÇOS DIVERSOS | H155: H | I155: 3 | J155: 22.7 | K155: =J155*I155 -> 68.1
B156: Composição Auxiliar | C156: 88248 | D156: SINAPI | E156: AUXILIAR DE ENCANADOR OU BOMBEIRO HIDRÁULICO COM ENCARGOS COMPLEMENTARES | F156: SEDI - SERVIÇOS DIVERSOS | H156: H | I156: 3 | J156: 18.63 | K156: 55.89
B158: 8.2 | E158: INSTALAÇÕES ELÉTRICAS | K158: 3486.22
B159: 8.2.1 | C159: Código | D159: Banco | E159: Descrição | F159: Tipo | H159: Und | I159: Quant. | J159: Valor Unit | K159: Total
B160: Composição | C160: COMPOSIÇÃO - 021 | D160: Próprio | E160: Montagem e instalação elétrica do kit de bombeamento e sistema fotovoltaico inclusive sistema de aterramento. | F160: INEL - INSTALAÇÃO ELÉTRICA/ELETRIFICAÇÃO E ILUMINAÇÃO EXTERNA | H160: un | I160: 1 | J160: =K160 -> 509.31 | K160: =SUM(K161:K165) -> 509.31
B161: Composição Auxiliar | C161: 88264 | D161: SINAPI | E161: ELETRICISTA COM ENCARGOS COMPLEMENTARES | F161: SEDI - SERVIÇOS DIVERSOS | H161: H | I161: 8 | J161: 25.65 | K161: =J161*I161 -> 205.2
B162: Composição Auxiliar | C162: 88247 | D162: SINAPI | E162: AUXILIAR DE ELETRICISTA COM ENCARGOS COMPLEMENTARES | F162: SEDI - SERVIÇOS DIVERSOS | H162: H | I162: 8 | J162: 19.61 | K162: 156.88
B163: Composição Auxiliar | C163: 90777 | D163: SINAPI | E163: ENGENHEIRO CIVIL DE OBRA JUNIOR COM ENCARGOS COMPLEMENTARES | F163: SEDI - SERVIÇOS DIVERSOS | H163: H | I163: 1 | J163: 113.14 | K163: 113.14
B164: Insumo | C164: 00020111 | D164: SINAPI | E164: FITA ISOLANTE ADESIVA ANTICHAMA, USO ATE 750 V, EM ROLO DE 19 MM X 20 M | F164: Material | H164: UN | I164: 1 | J164: 30 | K164: =J164*I164 -> 30
B165: Insumo | C165: 00000404 | D165: SINAPI | E165: FITA ISOLANTE DE BORRACHA AUTOFUSAO, USO ATE 69 KV (ALTA TENSAO) | F165: Material | H165: M | I165: 1 | J165: 4.09 | K165: =J165*I165 -> 4.09
B167: 8.3 | E167: ESTRUTURA DE FIXAÇÃO PARA MÓDULOS FOTOVOLTAICOS | K167: 2320
B168: 8.3.1 | C168: Código | D168: Banco | E168: Descrição | F168: Tipo | H168: Und | I168: Quant. | J168: Valor Unit | K168: Total
B169: Composição | C169: COMPOSIÇÃO - 022 | D169: Próprio | E169: Serviço de fixação de estruturas para os módulos fotovoltaicos e suportes de concreto, incluso materiais. | F169: SEDI - SERVIÇOS DIVERSOS | H169: m² | I169: 1 | J169: =K169 -> 231.130675 | K169: =SUM(K170:K173) -> 231.130675
B170: Composição Auxiliar | C170: 94975 | D170: SINAPI | E170: CONCRETO FCK = 15MPA, TRAÇO 1:3,4:3,5 (EM MASSA SECA DE CIMENTO/ AREIA MÉDIA/ BRITA 1) - PREPARO MANUAL. AF_05/2021 | F170: FUES - FUNDAÇÕES E ESTRUTURAS | H170: m³ | I170: 0.0945 | J170: 661.55 | K170: =J170*I170 -> 62.516475
B171: Composição Auxiliar | C171: 93358 | D171: SINAPI | E171: ESCAVAÇÃO MANUAL DE VALA COM PROFUNDIDADE MENOR OU IGUAL A 1,30 M. AF_02/2021 | F171: MOVT - MOVIMENTO DE TERRA | H171: m³ | I171: 0.0625 | J171: 68.4 | K171: =J171*I171 -> 4.275
B172: Composição Auxiliar | C172: 96534 | D172: SINAPI | E172: FABRICAÇÃO, MONTAGEM E DESMONTAGEM DE FÔRMA PARA BLOCO DE COROAMENTO, EM MADEIRA SERRADA, E=25 MM, 4 UTILIZAÇÕES. AF_06/2017 | F172: FUES - FUNDAÇÕES E ESTRUTURAS | H172: m² | I172: 0.032 | J172: 73.1 | K172: 2.3392
B173: Insumo | C173: COTAÇÃO-003 | D173: Próprio | E173: Fornecimento suporte fabricado em material metálico resistente a corrosão e ataque químico do solo fabricado em alumínio ou aço galvanizado ou aço zincado ou similares, a ser fixado nos blocos de concreto | F173: Material | H173: m² | I173: 1 | J173: 162 | K173: =J173*I173 -> 162
B175: 9 | E175: URBANIZAÇÃO | K175: 4163.86
B176: 9.1 | E176: CERCA | K176: 3070.76
B177: 9.1.1 | C177: Código | D177: Banco | E177: Descrição | F177: Tipo | H177: Und | I177: Quant. | J177: Valor Unit | K177: Total
B178: Composição | C178: COMPOSIÇÃO - 023 | D178: Próprio | E178: Cerca com mourões de concreto de 15x15cm, espaçados de 3m e cravados a 0,5m, escoras de 10x10cm nos cantos, e 9 fios de arame de aço ovalado 15x17. | F178: SEDI - SERVIÇOS DIVERSOS | H178: m | I178: 1 | J178: =K178 -> 87.41278 | K178: =SUM(K179:K185) -> 87.41278
B179: Composição Auxiliar | C179: 88309 | D179: SINAPI | E179: PEDREIRO COM ENCARGOS COMPLEMENTARES | F179: SEDI - SERVIÇOS DIVERSOS | H179: H | I179: 0.335 | J179: 23.45 | K179: =J179*I179 -> 7.85575
B180: Composição Auxiliar | C180: 88316 | D180: SINAPI | E180: SERVENTE COM ENCARGOS COMPLEMENTARES | F180: SEDI - SERVIÇOS DIVERSOS | H180: H | I180: 0.671 | J180: 17.29 | K180: =J180*I180 -> 11.60159
B181: Composição Auxiliar | C181: 94975 | D181: SINAPI | E181: CONCRETO FCK = 15MPA, TRAÇO 1:3,4:3,5 (EM MASSA SECA DE CIMENTO/ AREIA MÉDIA/ BRITA 1) - PREPARO MANUAL. AF_05/2021 | F181: FUES - FUNDAÇÕES E ESTRUTURAS | H181: m³ | I181: 0.0288 | J181: 661.55 | K181: 19.05264
B182: Insumo | C182: 00043130 | D182: SINAPI | E182: ARAME GALVANIZADO 12 BWG, D = 2,76 MM (0,048 KG/M) OU 14 BWG, D = 2,11 MM (0,026 KG/M) | F182: Material | H182: KG | I182: 0.098 | J182: 30.9 | K182: 3.0282
B183: Insumo | C183: 00000346 | D183: SINAPI | E183: ARAME DE ACO OVALADO 15 X 17 ( 45,7 KG, 700 KGF), ROLO 1000 M | F183: Material | H183: KG | I183: 0.405 | J183: 36.6 | K183: =J183*I183 -> 14.823
B184: Insumo | C184: 00004111 | D184: SINAPI | E184: ESCORA PRE-MOLDADA EM CONCRETO, *10 X 10* CM, H = 2,30M | F184: Material | H184: UN | I184: 0.16 | J184: 70.12 | K184: 11.2192
B185: Insumo | C185: I1533 | D185: SEINFRA | E185: MOURÃO CONCRETO BASE 15X15CM H=2.3 C/ 12 FUROS | F185: Material | H185: UN | I185: 0.42 | J185: 47.22 | K185: 19.8324
B187: 9.2 | E187: PORTÃO | K187: 1093.1
B188: 9.2.1 | C188: Código | D188: Banco | E188: Descrição | F188: Tipo | H188: Und | I188: Quant. | J188: Valor Unit | K188: Total
B189: Composição | C189: COMPOSIÇÃO - 024 | D189: Próprio | E189: Serviço de instalação de portão de ferro com suporte e batedor conforme projeto, incluso material | F189: SEDI - SERVIÇOS DIVERSOS | H189: m² | I189: 1 | J189: =K189 -> 580.80151 | K189: =SUM(K190:K194) -> 580.80151
B190: Composição Auxiliar | C190: 88309 | D190: SINAPI | E190: PEDREIRO COM ENCARGOS COMPLEMENTARES | F190: SEDI - SERVIÇOS DIVERSOS | H190: H | I190: 1.5 | J190: 23.45 | K190: =J190*I190 -> 35.175
B191: Composição Auxiliar | C191: 88316 | D191: SINAPI | E191: SERVENTE COM ENCARGOS COMPLEMENTARES | F191: SEDI - SERVIÇOS DIVERSOS | H191: H | I191: 1.5 | J191: 17.29 | K191: 25.935
B192: Insumo | C192: 00000367 | D192: SINAPI | E192: AREIA GROSSA - POSTO JAZIDA/FORNECEDOR (RETIRADO NA JAZIDA, SEM TRANSPORTE) | F192: Material | H192: m³ | I192: 0.061 | J192: 114.81 | K192: 7.00341
B193: Insumo | C193: 00001379 | D193: SINAPI | E193: CIMENTO PORTLAND COMPOSTO CP II-32 | F193: Material | H193: KG | I193: 4.83 | J193: 1.07 | K193: 5.1681
B194: Insumo | C194: 00004948 | D194: SINAPI | E194: PORTAO DE ABRIR / GIRO, EM GRADIL DE METALON REDONDO DE 3/4" VERTICAL, COM REQUADRO, ACABAMENTO NATURAL - COMPLETO | F194: Material | H194: m² | I194: 1 | J194: 507.52 | K194: 507.52
B196: 10 | E196: OUTROS SERVIÇOS | K196: 5922.8
B197: 10.1 | C197: Código | D197: Banco | E197: Descrição | F197: Tipo | H197: Und | I197: Quant. | J197: Valor Unit | K197: Total
B198: Composição | C198: COMPOSIÇÃO - 025 | D198: Próprio | E198: Serviço de lançamento de concreto para acabamento do tamponamento, incluso material. | F198: SEDI - SERVIÇOS DIVERSOS | H198: m³ | I198: 1 | J198: 850 | K198: =SUM(K199:K200) -> 850
B199: Composição Auxiliar | C199: 103670 | D199: SINAPI | E199: LANÇAMENTO COM USO DE BALDES, ADENSAMENTO E ACABAMENTO DE CONCRETO EM ESTRUTURAS. AF_02/2022 | F199: FUES - FUNDAÇÕES E ESTRUTURAS | H199: m³ | I199: 1 | J199: 243.99 | K199: =J199*I199 -> 243.99
B200: Composição Auxiliar | C200: 94974 | D200: SINAPI | E200: CONCRETO MAGRO PARA LASTRO, TRAÇO 1:4,5:4,5 (EM MASSA SECA DE CIMENTO/ AREIA MÉDIA/ BRITA 1) - PREPARO MANUAL. AF_05/2021 | F200: FUES - FUNDAÇÕES E ESTRUTURAS | H200: m³ | I200: 1 | J200: 606.01 | K200: =J200*I200 -> 606.01
B202: 10.2 | C202: Código | D202: Banco | E202: Descrição | F202: Tipo | H202: Und | I202: Quant. | J202: Valor Unit | K202: Total
B203: Composição | C203: COMPOSIÇÃO - 026 | D203: Próprio | E203: Serviço de execução do tamponamento, incluso pedra britada desinfectada. | F203: SEDI - SERVIÇOS DIVERSOS | H203: un | I203: 1 | J203: =K203 -> 344.299 | K203: =SUM(K204:K206) -> 344.299
B204: Composição Auxiliar | C204: 88316 | D204: SINAPI | E204: SERVENTE COM ENCARGOS COMPLEMENTARES | F204: SEDI - SERVIÇOS DIVERSOS | H204: H | I204: 0.1 | J204: 17.29 | K204: =J204*I204 -> 1.729
B205: Insumo | C205: 00004720 | D205: SINAPI | E205: PEDRA BRITADA N. 0, OU PEDRISCO (4,8 A 9,5 MM) POSTO PEDREIRA/FORNECEDOR, SEM FRETE | F205: Material | H205: m³ | I205: 1 | J205: 321.57 | K205: =J205*I205 -> 321.57
B206: Insumo | C206: D240000003 | D206: EMBASA | E206: HIPOCLORITO DE SÓDIO | F206: Material | H206: L | I206: 5 | J206: 4.2 | K206: =J206*I206 -> 21
B208: _______________________________________________________________ Cássio Oliveira Lopes Analista em Desenvolvimento Regional - AR/GSA/UAS CODEVASF – SEDE _______________________________________________________________ Catheriny Soares Andrade Moraes Analista em Desenvolvimento Regional - AR/GSA/UAS CODEVASF – SEDE _______________________________________________________________ Iago Guilherme dos Santos Engenheiro Pleno - AR/GSA/UAS Engeplus Engenharia e Consultoria LTDA _______________________________________________________________ Micheline Mirapalheta Dias Engenheiro Sênior - AR/GSA/UAS Engeplus Engenharia e Consultoria LTDA

Sheet Crono. AP - Parc.Rev
C1: MINISTÉRIO DO DESENVOLVIMENTO REGIONAL - MDR COMPANHIA DE DESENVOLVIMENTO DOS VALES DO SÃO FRANCISCO E DO PARNAÍBA ÁREA DE REVITALIZAÇÃO E SUSTENTABILIDADE SOCIOAMBIENTAL
A6: OBJETO: EXECUÇÃO DE SERVIÇOS DE PERFURAÇÃO E INSTALAÇÃO DE POÇOS TUBULARES EM MUNICÍPIOS LOCALIZADOS NO ESTADO DO AMAPÁ, NA ÁREA DE ATUAÇÃO DA CODEVASF
A8: CRONOGRAMA FÍSICO-FINANCEIRO
A10: ITEM | B10: ESPECIFICAÇÃO DOS SERVIÇOS | C10: VALOR TOTAL (R$) | D10: Mês 01 | E10: Mês 02 | F10: Mês 03 | G10: Mês 04 | H10: Mês 05 | I10: Mês 06 | J10: Mês 07 | K10: Mês 08 | L10: Mês 09 | M10: Mês 10 | N10: Mês 11 | O10: Mês 12
A11: 1 | B11: ='Orç. AP - Parc. Rev - Sintético'!E6 -> SERVIÇOS PRELIMINARES | C11: ='Orç. AP - Parc. Rev - Sintético'!J6 -> 76209.76 | D11: =$C$11/12 -> 6350.813333 | E11: =$C$11/12 -> 6350.813333 | F11: 6350.813333 | G11: 6350.813333 | H11: 6350.813333 | I11: 6350.813333 | J11: 6350.813333 | K11: 6350.813333 | L11: 6350.813333 | M11: 6350.813333 | N11: 6350.813333 | O11: 6350.813333
A12: 2 | B12: ='Orç. AP - Parc. Rev - Sintético'!E10 -> MOBILIZAÇÂO E DESMOBILIZAÇÂO EQUIPES DE PERFURAÇÂO E INSTALAÇÃO | C12: ='Orç. AP - Parc. Rev - Sintético'!J10 -> 211198.56 | D12: =$C$12/12 -> 17599.88 | E12: =$C$12/12 -> 17599.88 | F12: 17599.88 | G12: 17599.88 | H12: 17599.88 | I12: 17599.88 | J12: 17599.88 | K12: 17599.88 | L12: 17599.88 | M12: 17599.88 | N12: 17599.88 | O12: 17599.88
A13: 3 | B13: ='Orç. AP - Parc. Rev - Sintético'!E14 -> PERFURAÇÃO E COMPLETAÇÃO DE POÇO TUBULAR | C13: ='Orç. AP - Parc. Rev - Sintético'!J14 -> 1489442.14 | D13: =$C$13/12 -> 124120.1783 | E13: =$C$13/12 -> 124120.1783 | F13: 124120.1783 | G13: 124120.1783 | H13: 124120.1783 | I13: 124120.1783 | J13: 124120.1783 | K13: 124120.1783 | L13: 124120.1783 | M13: 124120.1783 | N13: 124120.1783 | O13: 124120.1783
A14: 4 | B14: ='Orç. AP - Parc. Rev - Sintético'!E21 -> PÓS PERFURAÇÃO | C14: ='Orç. AP - Parc. Rev - Sintético'!J21 -> 415432.8 | D14: =$C$14/12 -> 34619.4 | E14: =$C$14/12 -> 34619.4 | F14: 34619.4 | G14: 34619.4 | H14: 34619.4 | I14: 34619.4 | J14: 34619.4 | K14: 34619.4 | L14: 34619.4 | M14: 34619.4 | N14: 34619.4 | O14: 34619.4
A15: 5 | B15: ='Orç. AP - Parc. Rev - Sintético'!E26 -> RESERVAÇÃO | C15: ='Orç. AP - Parc. Rev - Sintético'!J26 -> 274507.63 | D15: =$C$15/12 -> 22875.63583 | E15: =$C$15/12 -> 22875.63583 | F15: 22875.63583 | G15: 22875.63583 | H15: 22875.63583 | I15: 22875.63583 | J15: 22875.63583 | K15: 22875.63583 | L15: 22875.63583 | M15: 22875.63583 | N15: 22875.63583 | O15: 22875.63583
A16: 6 | B16: ='Orç. AP - Parc. Rev - Sintético'!E32 -> BEBEDOURO | C16: ='Orç. AP - Parc. Rev - Sintético'!J32 -> 86408.8 | D16: =$C$16/12 -> 7200.733333 | E16: =$C$16/12 -> 7200.733333 | F16: 7200.733333 | G16: 7200.733333 | H16: 7200.733333 | I16: 7200.733333 | J16: 7200.733333 | K16: 7200.733333 | L16: 7200.733333 | M16: 7200.733333 | N16: 7200.733333 | O16: 7200.733333
A17: 7 | B17: ='Orç. AP - Parc. Rev - Sintético'!E34 -> INSTALAÇÕES HIDRÁULICAS | C17: ='Orç. AP - Parc. Rev - Sintético'!J34 -> 138372.2 | D17: =$C$17/12 -> 11531.01667 | E17: =$C$17/12 -> 11531.01667 | F17: 11531.01667 | G17: 11531.01667 | H17: 11531.01667 | I17: 11531.01667 | J17: 11531.01667 | K17: 11531.01667 | L17: 11531.01667 | M17: 11531.01667 | N17: 11531.01667 | O17: 11531.01667
A18: 8 | B18: ='Orç. AP - Parc. Rev - Sintético'!E64 -> FORNECIMENTO E INSTALAÇÃO DE SISTEMA FOTOVOLTAÍCO | C18: ='Orç. AP - Parc. Rev - Sintético'!J64 -> 1236233.1 | D18: =$C$18/12 -> 103019.425 | E18: =$C$18/12 -> 103019.425 | F18: 103019.425 | G18: 103019.425 | H18: 103019.425 | I18: 103019.425 | J18: 103019.425 | K18: 103019.425 | L18: 103019.425 | M18: 103019.425 | N18: 103019.425 | O18: 103019.425
A19: 9 | B19: ='Orç. AP - Parc. Rev - Sintético'!E86 -> URBANIZAÇÃO | C19: ='Orç. AP - Parc. Rev - Sintético'!J86 -> 166565.4 | D19: =$C$19/12 -> 13880.45 | E19: =$C$19/12 -> 13880.45 | F19: 13880.45 | G19: 13880.45 | H19: 13880.45 | I19: 13880.45 | J19: 13880.45 | K19: 13880.45 | L19: 13880.45 | M19: 13880.45 | N19: 13880.45 | O19: 13880.45
A20: 10 | B20: ='Orç. AP - Parc. Rev - Sintético'!E91 -> OUTROS SERVIÇOS | C20: ='Orç. AP - Parc. Rev - Sintético'!J91 -> 237874.52 | D20: =$C$20/12 -> 19822.87667 | E20: =$C$20/12 -> 19822.87667 | F20: 19822.87667 | G20: 19822.87667 | H20: 19822.87667 | I20: 19822.87667 | J20: 19822.87667 | K20: 19822.87667 | L20: 19822.87667 | M20: 19822.87667 | N20: 19822.87667 | O20: 19822.87667
A21: TOTAL | C21: =SUM(C11:C20) -> 4332244.91 | D21: =SUM(D11:D20) -> 361020.4092 | E21: =SUM(E11:E20) -> 361020.4092 | F21: 361020.4092 | G21: 361020.4092 | H21: 361020.4092 | I21: 361020.4092 | J21: 361020.4092 | K21: 361020.4092 | L21: 361020.4092 | M21: 361020.4092 | N21: 361020.4092 | O21: 361020.4092
A22: PERCENTUAL | D22: =D21/$C$21 -> 0.08333333333 | E22: 0.08333333333 | F22: 0.08333333333 | G22: 0.08333333333 | H22: 0.08333333333 | I22: 0.08333333333 | J22: 0.08333333333 | K22: 0.08333333333 | L22: 0.08333333333 | M22: 0.08333333333 | N22: 0.08333333333 | O22: 0.08333333333
A23: CUSTO ACUMULADO | D23: =D21 -> 361020.4092 | E23: =E21+D23 -> 722040.8183 | F23: =F21+E23 -> 1083061.228 | G23: 1444081.637 | H23: 1805102.046 | I23: 2166122.455 | J23: 2527142.864 | K23: 2888163.273 | L23: 3249183.683 | M23: 3610204.092 | N23: 3971224.501 | O23: 4332244.91
A24: PERCENTUAL ACUMULADO | D24: =D22 -> 0.08333333333 | E24: =E22+D24 -> 0.1666666667 | F24: 0.25 | G24: 0.3333333333 | H24: 0.4166666667 | I24: 0.5 | J24: 0.5833333333 | K24: 0.6666666667 | L24: 0.75 | M24: 0.8333333333 | N24: 0.9166666667 | O24: 1

Sheet Orç. AP - Tot. Rev - Sintético
H1: B.D.I. SERVIÇO | I1: B.D.I. MATERIAL | J1: ENCARGOS SOCIAIS
A2: OBJETO: EXECUÇÃO DE SERVIÇOS DE PERFURAÇÃO E INSTALAÇÃO DE POÇOS TUBULARES EM MUNICÍPIOS LOCALIZADOS NO ESTADO DO AMAPÁ, NA ÁREA DE ATUAÇÃO DA CODEVASF | H2: 25,47% | I2: 0.1528 | J2: Não Desonerado: embutido nos preços unitário dos insumos de mão de obra, de acordo com as bases.
H3: VALOR UNITÁRIO POR POÇO | I3: =ROUND(J102/K3,2) -> 158927.77 | J3: QUANTIDADE DE POÇOS | K3: 60
A4: PLANILHA ORÇAMENTÁRIA SINTÉTICA – POÇO TOTALMENTE REVESTIDO
A5: Item | B5: Código | C5: Serviço / Material | D5: Banco | E5: Descrição | F5: Und | G5: Quant. | H5: Valor Unit | I5: Valor Unit com BDI | J5: Total | K5: Peso (%)
A6: 1 | E6: SERVIÇOS PRELIMINARES | J6: =SUM(J7:J9) -> 489676.67 | K6: =J6/$J$102 -> 0.05135211829
A7: 1.1 | B7: COMPOSIÇÃO - 002 | C7: Serviço | D7: Próprio | E7: Administração Local da Obra - Poço Totalmente Revestido | F7: un | G7: 1 | H7: 344805.2077 | I7: 432627.09 | J7: 432627.09 | K7: 0.04536936077
A8: 1.2 | B8: COMPOSIÇÃO - 003 | C8: Serviço | D8: Próprio | E8: Serviço de locação Geológica de campo com relatório hidro geológico e perfil construtivo e geológico esperado. Relatório de Viabilidade de implantação das estruturas e vistorias preliminares | F8: un | G8: 60 | H8: 496.5 | I8: 622.96 | J8: 37377.6 | K8: 0.00391976799
A9: 1.3 | B9: COMPOSIÇÃO - 005 | C9: Serviço | D9: Próprio | E9: Placa da Obra - Padrão Governo Federal | F9: m² | G9: 43.2 | H9: 362.9275 | I9: 455.37 | J9: 19671.98 | K9: 0.002062989531
A10: 2 | E10: MOBILIZAÇÂO E DESMOBILIZAÇÂO EQUIPES PERFURAÇÂO E INSTALAÇÃO | J10: 328641.84 | K10: 0.03446448581
A11: 2.1 | B11: COMPOSIÇÃO - 006 | C11: Serviço | D11: Próprio | E11: Transporte de Comboio Perfuração | F11: km | G11: 14400 | H11: 4.5728368 | I11: 5.74 | J11: 82656 | K11: 0.008668088454
A12: 2.2 | B12: COMPOSIÇÃO - 007 | C12: Serviço | D12: Próprio | E12: Transporte de Comboio Instalação | F12: km | G12: 7200 | H12: 5.7913492 | I12: 7.27 | J12: 52344 | K12: 0.005489285981
A13: 2.3 | B13: COMPOSIÇÃO - 008 | C13: Serviço | D13: Próprio | E13: Transporte de água em caminhão pipa para preparo do fluído de perfuração rotativa | F13: km | G13: 1800 | H13: 5.244568 | I13: 6.58 | J13: 11844 | K13: 0.00124207365
A14: 2.4 | B14: COMPOSIÇÃO - 029 | C14: Serviço | D14: Próprio | E14: Transporte Hidroviário | F14: und | G14: 12 | H14: 12074.46 | I14: 15149.82 | J14: 181797.84 | K14: 0.01906503772
A15: 3 | E15: PERFURAÇÃO E COMPLETAÇÃO DE POÇO TUBULAR | J15: 4738700.73 | K15: 0.4969448931
A16: 3.1 | B16: COMPOSIÇÃO - 009 | C16: Serviço | D16: Próprio | E16: Limpeza manual , remoção de cerca, capina e instalação dos equipamentos (área do poço, painéis solares, bebedouro e reservatório) | F16: m² | G16: 4200 | H16: 1.3832 | I16: 1.74 | J16: 7308 | K16: 0.0007663858694
A17: 3.2 | B17: COMPOSIÇÃO - 012 | C17: Serviço | D17: Próprio | E17: Perfuração rotativa com circulação direta Ø 9.1/2" | F17: m | G17: 9000 | H17: 259.034 | I17: 325.01 | J17: 2925090 | K17: 0.306752551
A18: 3.3 | B18: COTAÇÃO-007 | C18: Material | D18: Próprio | E18: Fornecimento tubo de revestimento geomecânico classe standart Ø 4" com junta roscável. | F18: m | G18: 8040 | H18: 82.5 | I18: 95.11 | J18: 764684.4 | K18: 0.08019202501
A19: 3.4 | B19: COTAÇÃO-005 | C19: Material | D19: Próprio | E19: Fornecimento tubo filtro geomecânico classe standart Ø 4" com junta roscável. | F19: m | G19: 960 | H19: 86.02 | I19: 99.16 | J19: 95193.6 | K19: 0.009982899549
A20: 3.5 | B20: A.09.000.020926 | C20: Material | D20: CPOS/CDHU | E20: Fornecimento de centralizador de coluna para poço profundo, diâmetro de 4´ | F20: un | G20: 600 | H20: 298.01 | I20: 343.55 | J20: 206130 | K20: 0.02161673772
A21: 3.6 | B21: 00009875 | C21: Material | D21: SINAPI | E21: Fornecimento de tubo pvc, soldavel, de 50 mm, agua fria (nbr-5648) - tubo de recarga prè filtro | F21: m | G21: 420 | H21: 15.5 | I21: 17.87 | J21: 7505.4 | K21: 0.0007870870969
A22: 3.7 | B22: I5785 | C22: Material | D22: SEINFRA | E22: Fornecimento de cap pvc femea standard dn 100 | F22: un | G22: 60 | H22: 98.13 | I22: 113.12 | J22: 6787.2 | K22: 0.000711769865
A23: 3.8 | B23: 5073 | C23: Material | D23: ORSE | E23: Fornecimento de pré-filtro comum | F23: m³ | G23: 327 | H23: 1619.38 | I23: 1866.82 | J23: 610450.14 | K23: 0.06401756449
A24: 3.9 | B24: 00043366 | C24: Material | D24: SINAPI | E24: Fornecimento de bentonita, argila constituida por montmorilonita | F24: kg | G24: 27000 | H24: 1.54 | I24: 1.78 | J24: 48060 | K24: 0.005040025299
A25: 3.10 | B25: COMPOSIÇÃO - 011 | C25: Serviço | D25: Próprio | E25: Serviço de lançamento cimentação anelar poço tubular, incluso material. | F25: m³ | G25: 11.28 | H25: 973.646 | I25: 1221.63 | J25: 13779.99 | K25: 0.001445099838
A26: 3.11 | B26: COMPOSIÇÃO - 014 | C26: Serviço | D26: Próprio | E26: Serviço de instalação de laje sanitária com dimensões (1,5x1,5x0,3) , incluso material. | F26: un | G26: 60 | H26: 713.4795 | I26: 895.2 | J26: 53712 | K26: 0.005632747375
A27: 4 | E27: PÓS PERFURAÇÃO | J27: 643237.8 | K27: 0.06745598804
A28: 4.1 | B28: 6305 | C28: Serviço | D28: ORSE | E28: Serviço de desenvolvimento com compressor 250psi / 750cfm | F28: h | G28: 240 | H28: 411.16 | I28: 515.88 | J28: 123811.2 | K28: 0.01298401124
A29: 4.2 | B29: 6312 | C29: Serviço | D29: ORSE | E29: Serviço de análise físico-química da Água incluso coleta, transporte e analise | F29: un | G29: 60 | H29: 565.21 | I29: 709.17 | J29: 42550.2 | K29: 0.004462215657
A30: 4.3 | B30: COMPOSIÇÃO - 015 | C30: Serviço | D30: Próprio | E30: Inspeção ótica em poço tubular câmera com rotação de 360º, visada lateral, com fonte própria de luz, entregue vídeo em cores e marcação de profundidades. | F30: m | G30: 3750 | H30: 38.046335 | I30: 47.74 | J30: 179025 | K30: 0.01877425154
A31: 4.4 | B31: 6314 | C31: Serviço | D31: ORSE | E31: Ensaio de Bombeamento com bomba submersível | F31: h | G31: 420 | H31: 565.21 | I31: 709.17 | J31: 297851.4 | K31: 0.0312355096
A32: 5 | E32: RESERVAÇÃO | J32: 411759.65 | K32: 0.04318100402
A33: 5.1 | B33: COMPOSIÇÃO - 016 | C33: Serviço | D33: Próprio | E33: Execução e instalação de base de sustentação em concreto armado para reservatório de diâmetro 2,06m e altura 1,10m, conforme projeto, incluindo fixação de grampos da tampa. | F33: un | G33: 60 | H33: 3224.672 | I33: 4046 | J33: 242760 | K33: 0.02545810532
A34: 5.2 | B34: 00037105 | C34: Material | D34: SINAPI | E34: Fornecimento de caixa d'agua / reservatorio em poliester reforcado com fibra de vidro, 5000 litros, com tampa | F34: un | G34: 60 | H34: 2358.4 | I34: 2718.76 | J34: 163125.6 | K34: 0.01710689036
A35: 5.3 | B35: 13960 | C35: Material | D35: ORSE | E35: Fornecimento de cabo de aço 1/8" sem revestimento ( rolo c/ 100 mt) rolo | F35: rolo | G35: 4.8 | H35: 261.33 | I35: 301.26 | J35: 1446.05 | K35: 0.0001516464541
A36: 5.4 | B36: 094248 | C36: Material | D36: SBC | E36: Fornecimento de esticador olhal com gancho de 1/4" 6,35 mm vonder | F36: un | G36: 240 | H36: 13.05 | I36: 15.04 | J36: 3609.6 | K36: 0.0003785367316
A37: 5.5 | B37: 002048 | C37: Material | D37: SBC | E37: Fornecimento de grampo (clip) para cabo de aco pesado 1/8" | F37: un | G37: 240 | H37: 2.96 | I37: 3.41 | J37: 818.4 | K37: 8.582514991e-05
A38: 6 | E38: BEBEDOURO | J38: 129612 | K38: =J38/$J$102 -> 0.01359233789
A39: 6.1 | B39: COMPOSIÇÃO - 017 | C39: Serviço | D39: Próprio | E39: Serviço de execução do bebedouro em concreto armado, incluso materiais. | F39: un | G39: 60 | H39: 1721.6825 | I39: 2160.2 | J39: 129612 | K39: 0.01359233789
A40: 7 | E40: INSTALAÇÕES HIDRÁULICAS | J40: 207558.9 | K40: 0.02176658566
A41: 7.1 | E41: INSTALAÇÕES DE CAVALETE | J41: 81423.3 | K41: 0.008538815895
A42: 7.1.1 | B42: COMPOSIÇÃO - 018 | C42: Serviço | D42: Próprio | E42: Montagem e Instalação de Tubulação e Conexões Cavalete | F42: un | G42: 60 | H42: 252.98 | I42: 317.41 | J42: 19044.6 | K42: 0.001997196542
A43: 7.1.2 | B43: 00001796 | C43: Material | D43: SINAPI | E43: Fornecimento de curva 90 graus de ferro galvanizado, com rosca bsp macho, de 1 1/4" | F43: un | G43: 60 | H43: 77.17 | I43: 88.96 | J43: 5337.6 | K43: 0.0005597511243
A44: 7.1.3 | B44: 00009888 | C44: Material | D44: SINAPI | E44: Fornecimento de uniao de ferro galvanizado, com rosca bsp, com assento plano, de 1 1/4" | F44: un | G44: 60 | H44: 62.13 | I44: 71.62 | J44: 4297.2 | K44: 0.0004506449587
A45: 7.1.4 | B45: 00004180 | C45: Material | D45: SINAPI | E45: Fornecimento de niple de ferro galvanizado, com rosca bsp, de 1 1/4" | F45: un | G45: 120 | H45: 18.99 | I45: 21.89 | J45: 2626.8 | K45: 0.0002754710457
A46: 7.1.5 | B46: 00006017 | C46: Material | D46: SINAPI | E46: Fornecimento de registro gaveta bruto em latao forjado, bitola 1 1/4 " (ref 1509) | F46: un | G46: 60 | H46: 78.48 | I46: 90.47 | J46: 5428.2 | K46: 0.0005692522956
A47: 7.1.6 | B47: 00000789 | C47: Material | D47: SINAPI | E47: Fornecimento de bucha de reducao de ferro galvanizado, com rosca bsp, de 1 1/4" x 1" | F47: un | G47: 60 | H47: 17.76 | I47: 20.47 | J47: 1228.2 | K47: 0.0001288006465
A48: 7.1.7 | B48: 12438 | C48: Material | D48: ORSE | E48: Fornecimento de hidrômetro multijato d= 3/4", vazão = 5,0m3/h | F48: un | G48: 60 | H48: 298.26 | I48: 343.83 | J48: 20629.8 | K48: 0.002163435579
A49: 7.1.8 | B49: 00009861 | C49: Material | D49: SINAPI | E49: Fornecimento de tubo pvc, roscavel, 1 1/4", agua fria predial | F49: m | G49: 90 | H49: 24.71 | I49: 28.49 | J49: 2564.1 | K49: 0.0002688957318
A50: 7.1.9 | B50: 002116 | C50: Material | D50: SBC | E50: Fornecimento de te de reducao ferro galvanizado 1.1/4" x 1/2" | F50: un | G50: 60 | H50: 40.49 | I50: 46.68 | J50: 2800.8 | K50: 0.0002937183283
A51: 7.1.10 | B51: 00011831 | C51: Material | D51: SINAPI | E51: Fornecimento de torneira plastica para tanque 1/2 " ou 3/4 " com bico para mangueira | F51: un | G51: 60 | H51: 18.94 | I51: 21.83 | J51: 1309.8 | K51: 0.0001373579929
A52: 7.1.11 | B52: 1158 | C52: Material | D52: ORSE | E52: Fornecimento de joelho 45° ferro galvanizado d=1 1/ 4" | F52: un | G52: 120 | H52: 32.17 | I52: 37.09 | J52: 4450.8 | K52: 0.0004667529047
A53: 7.1.12 | B53: 00004205 | C53: Material | D53: SINAPI | E53: Fornecimento de niple de reducao de ferro galvanizado, com rosca bsp, de 1 1/2" x 1 1/4" | F53: un | G53: 60 | H53: 33.32 | I53: 38.41 | J53: 2304.6 | K53: 0.000241682112
A54: 7.1.13 | B54: 00003939 | C54: Material | D54: SINAPI | E54: Fornecimento de luva de ferro galvanizado, com rosca bsp, de 1 1/2" | F54: un | G54: 60 | H54: 25.6 | I54: 29.51 | J54: 1770.6 | K54: 0.0001856818309
A55: 7.1.14 | B55: 9569 | C55: Material | D55: ORSE | E55: Fornecimento de adaptador pvc bsxrm d= 35mm x 1 1/2", linha irriga-lf, tigre ou similar | F55: un | G55: 60 | H55: 3.04 | I55: 3.5 | J55: 210 | K55: 2.202258246e-05
A56: 7.1.15 | B56: 5128 | C56: Material | D56: ORSE | E56: Fornecimento de tampa de poço galvanizada em 6" | F56: un | G56: 60 | H56: 107.28 | I56: 123.67 | J56: 7420.2 | K56: 0.0007781522206
A57: 7.2 | E57: INSTALAÇÕES DE ADUTORA, RESERVATÓRIO E BEBEDOURO | J57: 126135.6 | K57: 0.01322776977
A58: 7.2.1 | B58: COMPOSIÇÃO - 020 | C58: Serviço | D58: Próprio | E58: Montagem e instalação da rede adutora poço-reservatório-bebedouro | F58: un | G58: 60 | H58: 965.14 | I58: 1210.96 | J58: 72657.6 | K58: 0.007619561843
A59: 7.2.2 | B59: 9501 | C59: Material | D59: ORSE | E59: Fornecimento de tubo PVC p/irrigação LF PN 60 JE Ø 35mm, linha Irriga-LF, Tigre ou similar | F59: m | G59: 2400 | H59: 13.06 | I59: 15.06 | J59: 36144 | K59: 0.003790401049
A60: 7.2.3 | B60: 9516 | C60: Material | D60: ORSE | E60: Fornecimento de curva 90º pvc PTA/BSA soldavel d= 35mm, linha Irriga-LF, Tigre ou similar | F60: un | G60: 240 | H60: 10.76 | I60: 12.4 | J60: 2976 | K60: 0.0003120914542
A61: 7.2.4 | B61: 00000098 | C61: Material | D61: SINAPI | E61: Fornecimento de adaptador pvc soldavel, com flange e anel de vedacao, 40 mm x 1 1/4", para caixa d'água | F61: un | G61: 120 | H61: 27.86 | I61: 32.12 | J61: 3854.4 | K61: 0.0004042087705
A62: 7.2.5 | B62: 8013 | C62: Material | D62: ORSE | E62: Fornecimento de registro esfera VS soldável para irrigação Ø 35mm | F62: pç | G62: 60 | H62: 37.26 | I62: 42.95 | J62: 2577 | K62: 0.0002702485476
A63: 7.2.6 | B63: 00000096 | C63: Material | D63: SINAPI | E63: Fornecimento de adaptador pvc soldavel, com flange e anel de vedacao, 25 mm x 3/4", para caixa d'água | F63: un | G63: 180 | H63: 12.37 | I63: 14.26 | J63: 2566.8 | K63: 0.0002691788793
A64: 7.2.7 | B64: 14071 | C64: Material | D64: ORSE | E64: Fornecimento de tubo PVC para irrigação LF PN 60 Ø 25mm, linha Irriga-LF, Tigre ou similar | F64: m | G64: 120 | H64: 4.02 | I64: 4.63 | J64: 555.6 | K64: 5.826546101e-05
A65: 7.2.8 | B65: 14082 | C65: Material | D65: ORSE | E65: Fornecimento de registro esfera LF 25mm | F65: pç | G65: 120 | H65: 11.08 | I65: 12.77 | J65: 1532.4 | K65: 0.0001607019303
A66: 7.2.9 | B66: 00003529 | C66: Material | D66: SINAPI | E66: Fornecimento de joelho pvc, soldavel, 90 graus, 25 mm, para agua fria | F66: un | G66: 120 | H66: 0.73 | I66: 0.84 | J66: 100.8 | K66: 1.057083958e-05
A67: 7.2.10 | B67: 00003535 | C67: Material | D67: SINAPI | E67: Fornecimento de joelho pvc, soldavel, 90 graus, 40 mm, para agua fria | F67: un | G67: 60 | H67: 5.93 | I67: 6.84 | J67: 410.4 | K67: 4.303841828e-05
A68: 7.2.11 | B68: 00000109 | C68: Material | D68: SINAPI | E68: Fornecimento de adaptador pvc soldavel curto com bolsa e rosca, 40 mm x 1 1/4", para agua fria | F68: un | G68: 60 | H68: 3.72 | I68: 4.29 | J68: 257.4 | K68: 2.699339392e-05
A69: 7.2.12 | B69: 00011830 | C69: Material | D69: SINAPI | E69: Fornecimento de torneira de boia convencional para caixa d'agua, agua fria, 3/4", com haste e torneira metalicos e balao plastico | F69: un | G69: 60 | H69: 36.19 | I69: 41.72 | J69: 2503.2 | K69: =J69/$J$102 -> 0.0002625091829
A70: 8 | E70: FORNECIMENTO E INSTALAÇÃO DE SISTEMA FOTOVOLTAÍCO | J70: 2231794.75 | K70: 0.2340470662
A71: 8.1 | E71: INSTALAÇÕES HIDRÁULICAS | J71: 237069.74 | K71: 0.02486137094
A72: 8.1.1 | B72: COMPOSIÇÃO - 019 | C72: Serviço | D72: Próprio | E72: Montagem e instalação hidráulica do kit de bombeamento | F72: un | G72: 60 | H72: 123.99 | I72: 155.57 | J72: 9334.2 | K72: 0.0009788723293
A73: 8.1.2 | B73: 00038200 | C73: Material | D73: SINAPI | E73: Fornecimento de corda de poliamida 12 mm tipo bombeiro, para trabalho em altura | F73: 100m | G73: 55.8 | H73: 768.29 | I73: 885.68 | J73: 49420.94 | K73: 0.005182746315
A74: 8.1.3 | B74: 00009861 | C74: Material | D74: SINAPI | E74: Fornecimento de tubo pvc, roscavel, 1 1/4", agua fria predial | F74: m | G74: 5400 | H74: 24.71 | I74: 28.49 | J74: 153846 | K74: 0.01613374391
A75: 8.1.4 | B75: 00004180 | C75: Material | D75: SINAPI | E75: Fornecimento de niple de ferro galvanizado, com rosca bsp, de 1 1/4" | F75: un | G75: 60 | H75: 18.99 | I75: 21.89 | J75: 1313.4 | K75: 0.0001377355228
A76: 8.1.5 | B76: 00003911 | C76: Material | D76: SINAPI | E76: Fornecimento de luva de ferro galvanizado, com rosca bsp, de 1 1/4" | F76: un | G76: 960 | H76: 20.92 | I76: 24.12 | J76: 23155.2 | K76: 0.002428272863
A77: 8.2 | E77: INSTALAÇÕES ELÉTRICAS | J77: 269033.21 | K77: 0.02821336214
A78: 8.2.1 | B78: COMPOSIÇÃO - 021 | C78: Serviço | D78: Próprio | E78: Montagem e instalação elétrica do kit de bombeamento e sistema fotovoltaico inclusive sistema de aterramento. | F78: un | G78: 60 | H78: 509.31 | I78: 639.03 | J78: 38341.8 | K78: 0.004020883105
A79: 8.2.2 | B79: 00002674 | C79: Material | D79: SINAPI | E79: Fornecimento de eletroduto de pvc rigido roscavel de 3/4 ", sem luva | F79: m | G79: 900 | H79: 5.71 | I79: 6.58 | J79: 5922 | K79: 0.0006210368252
A80: 8.2.3 | B80: 00034622 | C80: Material | D80: SINAPI | E80: Fornecimento de cabo flexivel pvc 750 v, 3 condutores de 6,0 mm2 | F80: m | G80: 6300 | H80: 24.69 | I80: 28.46 | J80: 179298 | K80: 0.0188028809
A81: 8.2.4 | B81: 00012034 | C81: Material | D81: SINAPI | E81: Fornecimento de curva 180 graus, de pvc rigido roscavel, de 3/4", para eletroduto | F81: un | G81: 60 | H81: 5.21 | I81: 6.01 | J81: 360.6 | K81: 3.781592016e-05
A82: 8.2.5 | B82: 00039272 | C82: Material | D82: SINAPI | E82: Fornecimento de curva 90 graus, curta, de pvc rigido roscavel, de 3/4", para eletroduto | F82: un | G82: 120 | H82: 2.85 | I82: 3.29 | J82: 394.8 | K82: 4.140245502e-05
A83: 8.2.6 | B83: 00003379 | C83: Material | D83: SINAPI | E83: Fornecimento de haste de aterramento em aco com 3,00 m de comprimento e dn = 5/8", revestida com baixa camada de cobre, sem conector | F83: un | G83: 39.6 | H83: 82.61 | I83: 95.23 | J83: 3771.11 | K83: 0.0003954741949
A84: 8.2.7 | B84: 00001891 | C84: Material | D84: SINAPI | E84: Fornecimento de luva em pvc rigido roscavel, de 3/4", para eletroduto | F84: un | G84: 540 | H84: 1.32 | I84: 1.52 | J84: 820.8 | K84: 8.607683657e-05
A85: 8.2.8 | B85: 00000425 | C85: Material | D85: SINAPI | E85: Fornecimento de grampo metalico tipo olhal para haste de aterramento de 5/8'', condutor de *10* a 50 mm2 | F85: un | G85: 120 | H85: 7.84 | I85: 9.04 | J85: 1084.8 | K85: 0.0001137623688
A86: 8.2.9 | B86: 00034643 | C86: Material | D86: SINAPI | E86: Fornecimento de caixa de inspecao para aterramento e para raios, em polipropileno, diametro = 300 mm x altura = 400 mm | F86: un | G86: 120 | H86: 46.66 | I86: 53.79 | J86: 6454.8 | K86: 0.000676911263
A87: 8.2.10 | B87: 00000867 | C87: Material | D87: SINAPI | E87: Fornecimento de cabo de cobre nu 50 mm2 meio-duro | F87: m | G87: 450 | H87: 62.81 | I87: 72.41 | J87: 32584.5 | K87: 0.003417118276
A88: 8.3 | E88: ESTRUTURA DE FIXAÇÃO PARA MÓDULOS FOTOVOLTÁICOS | J88: 208800 | K88: 0.02189673913
A89: 8.3.1 | B89: COMPOSIÇÃO - 022 | C89: Serviço | D89: Próprio | E89: Serviço de fixação de estruturas para os módulos fotovoltaicos e suportes de concreto, incluso materiais. | F89: m² | G89: 720 | H89: 231.130995 | I89: 290 | J89: 208800 | K89: 0.02189673913
A90: 8.4 | E90: FORNECIMENTO DE KIT DE BOMBEAMENTO FOTOVOLTAICO | J90: 1516891.8 | K90: 0.159075594
A91: 8.4.1 | B91: COTAÇÃO-001 | C91: Material | D91: Próprio | E91: Fornecimento de kit de bombeamento fotovoltaico, incluindo uma bomba CC de 2200W com imã permanente sem escovas, controladora de carga externa, disjuntor CC, caixa de proteção metálica, módulos compatíveis com a geração de 3300Wp (potência mínima de 550 W por módulo) e componentes elétricos necessários como cabos, conectores MC4 e presilhas de fixação. | F91: un | G91: 60 | H91: 21930.54 | I91: 25281.53 | J91: 1516891.8 | K91: 0.159075594
A92: 9 | E92: URBANIZAÇÃO | J92: 249848.1 | K92: 0.0262014304
A93: 9.1 | E93: CERCA | J93: 184262.4 | K93: 0.01932349475
A94: 9.1.1 | B94: COMPOSIÇÃO - 023 | C94: Serviço | D94: Próprio | E94: Cerca com mourões de concreto de 15x15cm, espaçados de 3m e cravados a 0,5m, escoras de 10x10cm nos cantos, e 9 fios de arame de aço ovalado 15x17. | F94: m | G94: 1680 | H94: 87.41278 | I94: 109.68 | J94: 184262.4 | K94: 0.01932349475
A95: 9.2 | E95: PORTÃO | J95: 65585.7 | K95: 0.006877935648
A96: 9.2.1 | B96: COMPOSIÇÃO - 024 | C96: Serviço | D96: Próprio | E96: Serviço de instalação de portão de ferro com suporte e batedor conforme projeto, incluso material | F96: m² | G96: 90 | H96: 580.80151 | I96: 728.73 | J96: 65585.7 | K96: 0.006877935648
A97: 10 | E97: OUTROS SERVIÇOS | J97: 104835.98 | K97: 0.01099409054
A98: 10.1 | B98: COMPOSIÇÃO - 025 | C98: Serviço | D98: Próprio | E98: Serviço de lançamento de concreto para acabamento do tamponamento, incluso material. | F98: m³ | G98: 7.3 | H98: 850 | I98: 1066.5 | J98: 7785.45 | K98: 0.0008164557837
A99: 10.2 | B99: COMPOSIÇÃO - 026 | C99: Serviço | D99: Próprio | E99: Serviço de execução do tamponamento, incluso pedra britada desinfectada. | F99: m³ | G99: 7.3 | H99: 344.299 | I99: 431.99 | J99: 3153.53 | K99: 0.000330708926
A100: 10.3 | B100: COTAÇÃO-006 | C100: Material | D100: Próprio | E100: Fornecimento tubo revestimento geomecânico classe reforçado Ø 4 1/2" com junta roscável. | F100: m | G100: 750 | H100: 92.4 | I100: 106.52 | J100: 79890 | K100: 0.008378019583
A101: 10.4 | B101: COTAÇÃO-004 | C101: Material | D101: Próprio | E101: Fornecimento tubo filtro geomecânico classe reforçado diâmetro Ø 4 1/2" com junta roscável. | F101: m | G101: 150 | H101: 81 | I101: 93.38 | J101: 14007 | K101: 0.00146890625
I102: Total | J102: =SUM(J97,J92,J70,J40,J38,J32,J15,J10,J6,J27) -> 9535666.42
A103: Cássio Oliveira Lopes Analista em Desenvolvimento Regional - AR/GSA/UAS CODEVASF – SEDE _______________________________________________________________ Catheriny Soares Andrade Moraes Analista em Desenvolvimento Regional - AR/GSA/UAS CODEVASF – SEDE _______________________________________________________________ Iago Guilherme dos Santos Engenheiro Pleno - AR/GSA/UAS Engeplus Engenharia e Consultoria LTDA _______________________________________________________________ Micheline Mirapalheta Dias Engenheiro Sênior - AR/GSA/UAS Engeplus Engenharia e Consultoria LTDA

Sheet Orç. AP - Tot. Rev - Analítico
I1: ENCARGOS SOCIAIS
A2: OBJETO: EXECUÇÃO DE SERVIÇOS DE PERFURAÇÃO E INSTALAÇÃO DE POÇOS TUBULARES EM MUNICÍPIOS LOCALIZADOS NO ESTADO DO AMAPÁ, NA ÁREA DE ATUAÇÃO DA CODEVASF | I2: Não Desonerado: embutido nos preços unitário dos insumos de mão de obra, de acordo com as bases.
A3: PLANILHA ORÇAMENTÁRIA ANALÍTICA – POÇO TOTALMENTE REVESTIDO
A4: 1 | D4: SERVIÇOS PRELIMINARES | J4: 10579.71
A5: 1.1 | B5: Código | C5: Banco | D5: Descrição | E5: Tipo | G5: Und | H5: Quant. | I5: Valor Unit | J5: Total
A6: Composição | B6: COMPOSIÇÃO - 002 | C6: Próprio | D6: Administração Local da Obra - Poço Totalmente Revestido | E6: SERP - SERVIÇOS PRELIMINARES | G6: un | H6: 1 | I6: =J6 -> 344805.2077 | J6: =SUM(J7:J13) -> 344805.2077
A7: Composição Auxiliar | B7: 92138 | C7: SINAPI | D7: CAMINHONETE COM MOTOR A DIESEL, POTÊNCIA 180 CV, CABINE DUPLA, 4X4 - CHP DIURNO. AF_11/2015 | E7: CHOR - CUSTOS HORÁRIOS DE MÁQUINAS E EQUIPAMENTOS | G7: CHP | H7: 415.3846154 | I7: 90.81 | J7: =I7*H7 -> 37721.07692
A8: Composição Auxiliar | B8: 92139 | C8: SINAPI | D8: CAMINHONETE COM MOTOR A DIESEL, POTÊNCIA 180 CV, CABINE DUPLA, 4X4 - CHI DIURNO. AF_11/2015 | E8: CHOR - CUSTOS HORÁRIOS DE MÁQUINAS E EQUIPAMENTOS | G8: CHI | H8: 507.6923077 | I8: 37.3 | J8: =I8*H8 -> 18936.92308
A9: Composição Auxiliar | B9: 93572 | C9: SINAPI | D9: ENCARREGADO GERAL DE OBRAS COM ENCARGOS COMPLEMENTARES | E9: SEDI - SERVIÇOS DIVERSOS | G9: MES | H9: 9.230769231 | I9: 4411.66 | J9: 40723.01538
A10: Composição Auxiliar | B10: 93565 | C10: SINAPI | D10: ENGENHEIRO CIVIL DE OBRA JUNIOR COM ENCARGOS COMPLEMENTARES | E10: SEDI - SERVIÇOS DIVERSOS | G10: MES | H10: 11.53846154 | I10: 19584.39 | J10: 225973.7308
A11: Insumo | B11: 00014250 | C11: SINAPI | D11: ENERGIA ELETRICA COMERCIAL, BAIXA TENSAO, RELATIVA AO CONSUMO DE ATE 100 KWH, INCLUINDO ICMS, PIS/PASEP E COFINS | E11: Material | G11: KWH | H11: 3692.307692 | I11: 0.93 | J11: =I11*H11 -> 3433.846154
A12: Insumo | B12: 00044480 | C12: SINAPI | D12: TARIFA "A" ENTRE 0 E 20M3 FORNECIMENTO D'AGUA | E12: Taxas | G12: m³ | H12: 184.6153846 | I12: 17.59 | J12: =I12*H12 -> 3247.384615
A13: Insumo | B13: 4298 | C13: ORSE | D13: Aluguel de container - Escritório com banheiro - 6,20 x 2,40m, equipado com Ar condicionado mês | E13: Serviços | G13: mês | H13: 9.230769231 | I13: 1600 | J13: 14769.23077
A15: 1.2 | B15: Código | C15: Banco | D15: Descrição | E15: Tipo | G15: Und | H15: Quant. | I15: Valor Unit | J15: Total
A16: Composição | B16: COMPOSIÇÃO - 003 | C16: Próprio | D16: Serviço de locação Geológica de campo com relatório hidro geológico e perfil construtivo e geológico esperado. Relatório de Viabilidade de implantação das estruturas e vistorias preliminares | E16: SERT - SERVIÇOS TÉCNICOS | G16: un | H16: 1 | I16: =J16 -> 496.5 | J16: =SUM(J17:J19) -> 496.5
A17: Composição Auxiliar | B17: 30.01.45 | C17: EMBASA | D17: GEOLOGO SENIOR | E17: 3001 | G17: hora | H17: 5 | I17: 79.73 | J17: =I17*H17 -> 398.65
A18: Insumo | B18: 5896 | C18: ORSE | D18: Veículo tipo sedan ou pick-up capacidade 0,6 ton h | E18: Equipamento | G18: h | H18: 5 | I18: 8.33 | J18: =I18*H18 -> 41.65
A19: Insumo | B19: 00004222 | C19: SINAPI | D19: GASOLINA COMUM | E19: Material | G19: L | H19: 10 | I19: 5.62 | J19: =I19*H19 -> 56.2
A21: 1.3 | B21: Código | C21: Banco | D21: Descrição | E21: Tipo | G21: Und | H21: Quant. | I21: Valor Unit | J21: Total
A22: Composição | B22: COMPOSIÇÃO - 005 | C22: Próprio | D22: Placa da Obra - Padrão Governo Federal | E22: SEDI - SERVIÇOS DIVERSOS | G22: m² | H22: 1 | I22: =J22 -> 362.9275 | J22: =SUM(J23:J29) -> 362.9275
A23: Composição Auxiliar | B23: 88262 | C23: SINAPI | D23: CARPINTEIRO DE FORMAS COM ENCARGOS COMPLEMENTARES | E23: SEDI - SERVIÇOS DIVERSOS | G23: H | H23: 1 | I23: 23.07 | J23: =I23*H23 -> 23.07
A24: Composição Auxiliar | B24: 88316 | C24: SINAPI | D24: SERVENTE COM ENCARGOS COMPLEMENTARES | E24: SEDI - SERVIÇOS DIVERSOS | G24: H | H24: 2 | I24: 17.29 | J24: 34.58
A25: Composição Auxiliar | B25: 94975 | C25: SINAPI | D25: CONCRETO FCK = 15MPA, TRAÇO 1:3,4:3,5 (EM MASSA SECA DE CIMENTO/ AREIA MÉDIA/ BRITA 1) - PREPARO MANUAL. AF_05/2021 | E25: FUES - FUNDAÇÕES E ESTRUTURAS | G25: m³ | H25: 0.01 | I25: 661.55 | J25: 6.6155
A26: Insumo | B26: 00004491 | C26: SINAPI | D26: PONTALETE *7,5 X 7,5* CM EM PINUS, MISTA OU EQUIVALENTE DA REGIAO - BRUTA | E26: Material | G26: M | H26: 4 | I26: 10.57 | J26: 42.28
A27: Insumo | B27: 00004813 | C27: SINAPI | D27: PLACA DE OBRA (PARA CONSTRUCAO CIVIL) EM CHAPA GALVANIZADA *N. 22*, ADESIVADA, DE *2,4 X 1,2* M (SEM POSTES PARA FIXACAO) | E27: Material | G27: m² | H27: 1 | I27: 250 | J27: 250
A28: Insumo | B28: 00005075 | C28: SINAPI | D28: PREGO DE ACO POLIDO COM CABECA 18 X 30 (2 3/4 X 10) | E28: Material | G28: KG | H28: 0.11 | I28: 20.2 | J28: 2.222
A29: Insumo | B29: 00004417 | C29: SINAPI | D29: SARRAFO NAO APARELHADO *2,5 X 7* CM, EM MACARANDUBA/MASSARANDUBA, ANGELIM, PEROBA-ROSA OU EQUIVALENTE DA REGIAO - BRUTA | E29: Material | G29: M | H29: 1 | I29: 4.16 | J29: 4.16
A31: 2 | D31: MOBILIZAÇÂO E DESMOBILIZAÇÂO EQUIPES PERFURAÇÂO E INSTALAÇÃO | J31: 2448.3
A32: 2.1 | B32: Código | C32: Banco | D32: Descrição | E32: Tipo | G32: Und | H32: Quant. | I32: Valor Unit | J32: Total
A33: Composição | B33: COMPOSIÇÃO - 006 | C33: Próprio | D33: Transporte de Comboio Perfuração | E33: TRAN - TRANSPORTES, CARGAS E DESCARGAS | G33: km | H33: 1 | I33: =J33 -> 4.5728368 | J33: =SUM(J34:J35) -> 4.5728368
A34: Composição Auxiliar | B34: 5824 | C34: SINAPI | D34: CAMINHÃO TOCO, PBT 16.000 KG, CARGA ÚTIL MÁX. 10.685 KG, DIST. ENTRE EIXOS 4,8 M, POTÊNCIA 189 CV, INCLUSIVE CARROCERIA FIXA ABERTA DE MADEIRA P/ TRANSPORTE GERAL DE CARGA SECA, DIMEN. APROX. 2,5 X 7,00 X 0,50 M - CHP DIURNO. AF_06/2014 | E34: CHOR - CUSTOS HORÁRIOS DE MÁQUINAS E EQUIPAMENTOS | G34: CHP | H34: 0.01666 | I34: 218.32 | J34: =I34*H34 -> 3.6372112
A35: Composição Auxiliar | B35: 5826 | C35: SINAPI | D35: CAMINHÃO TOCO, PBT 16.000 KG, CARGA ÚTIL MÁX. 10.685 KG, DIST. ENTRE EIXOS 4,8 M, POTÊNCIA 189 CV, INCLUSIVE CARROCERIA FIXA ABERTA DE MADEIRA P/ TRANSPORTE GERAL DE CARGA SECA, DIMEN. APROX. 2,5 X 7,00 X 0,50 M - CHI DIURNO. AF_06/2014 | E35: CHOR - CUSTOS HORÁRIOS DE MÁQUINAS E EQUIPAMENTOS | G35: CHI | H35: 0.01666 | I35: 56.16 | J35: 0.9356256
A37: 2.2 | B37: Código | C37: Banco | D37: Descrição | E37: Tipo | G37: Und | H37: Quant. | I37: Valor Unit | J37: Total
A38: Composição | B38: COMPOSIÇÃO - 007 | C38: Próprio | D38: Transporte de Comboio Instalação | E38: TRAN - TRANSPORTES, CARGAS E DESCARGAS | G38: km | H38: 1 | I38: =J38 -> 5.7913492 | J38: =SUM(J39:J40) -> 5.7913492
A39: Composição Auxiliar | B39: 5928 | C39: SINAPI | D39: GUINDAUTO HIDRÁULICO, CAPACIDADE MÁXIMA DE CARGA 6200 KG, MOMENTO MÁXIMO DE CARGA 11,7 TM, ALCANCE MÁXIMO HORIZONTAL 9,70 M, INCLUSIVE CAMINHÃO TOCO PBT 16.000 KG, POTÊNCIA DE 189 CV - CHP DIURNO. AF_06/2014 | E39: CHOR - CUSTOS HORÁRIOS DE MÁQUINAS E EQUIPAMENTOS | G39: CHP | H39: 0.01666 | I39: 280.52 | J39: =I39*H39 -> 4.6734632
A40: Composição Auxiliar | B40: 5930 | C40: SINAPI | D40: GUINDAUTO HIDRÁULICO, CAPACIDADE MÁXIMA DE CARGA 6200 KG, MOMENTO MÁXIMO DE CARGA 11,7 TM, ALCANCE MÁXIMO HORIZONTAL 9,70 M, INCLUSIVE CAMINHÃO TOCO PBT 16.000 KG, POTÊNCIA DE 189 CV - CHI DIURNO. AF_06/2014 | E40: CHOR - CUSTOS HORÁRIOS DE MÁQUINAS E EQUIPAMENTOS | G40: CHI | H40: 0.01666 | I40: 67.1 | J40: 1.117886
A42: 2.3 | B42: Código | C42: Banco | D42: Descrição | E42: Tipo | G42: Und | H42: Quant. | I42: Valor Unit | J42: Total
A43: Composição | B43: COMPOSIÇÃO - 008 | C43: Próprio | D43: Transporte de água em caminhão pipa para preparo do fluído de perfuração rotativa | E43: TRAN - TRANSPORTES, CARGAS E DESCARGAS | G43: km | H43: 1 | I43: =J43 -> 5.244568 | J43: =SUM(J44:J45) -> 5.244568
A44: Composição Auxiliar | B44: 6259 | C44: SINAPI | D44: CAMINHÃO PIPA 6.000 L, PESO BRUTO TOTAL 13.000 KG, DISTÂNCIA ENTRE EIXOS 4,80 M, POTÊNCIA 189 CV INCLUSIVE TANQUE DE AÇO PARA TRANSPORTE DE ÁGUA, CAPACIDADE 6 M3 - CHP DIURNO. AF_06/2014 | E44: CHOR - CUSTOS HORÁRIOS DE MÁQUINAS E EQUIPAMENTOS | G44: CHP | H44: 0.01666 | I44: 259.42 | J44: =I44*H44 -> 4.3219372
A45: Composição Auxiliar | B45: 6260 | C45: SINAPI | D45: CAMINHÃO PIPA 6.000 L, PESO BRUTO TOTAL 13.000 KG, DISTÂNCIA ENTRE EIXOS 4,80 M, POTÊNCIA 189 CV INCLUSIVE TANQUE DE AÇO PARA TRANSPORTE DE ÁGUA, CAPACIDADE 6 M3 - CHI DIURNO. AF_06/2014 | E45: CHOR - CUSTOS HORÁRIOS DE MÁQUINAS E EQUIPAMENTOS | G45: CHI | H45: 0.01666 | I45: 55.38 | J45: 0.9226308
A47: 2.4 | B47: Código | C47: Banco | D47: Descrição | E47: Tipo | G47: Und | H47: Quant. | I47: Valor Unit | J47: Total
A48: Composição | B48: COMPOSIÇÃO - 029 | C48: Próprio | D48: Transporte Hidroviário | E48: TRAN - TRANSPORTES, CARGAS E DESCARGAS | G48: und | H48: 1 | I48: =J48 -> 12074.46 | J48: =J49 -> 12074.46
A49: Insumo | B49: COTAÇÃO-008 | C49: Próprio | D49: Custos, taxas e seguro travessia hidroviária para perfuração poço totalmente revestido | E49: SERVIÇO | G49: und | H49: 1 | I49: =Cotações!K14 -> 12074.46 | J49: =I49*H49 -> 12074.46
A51: 3 | D51: PERFURAÇÃO E COMPLETAÇÃO DE POÇO TUBULAR | J51: 78969.38
A52: 3.1 | B52: Código | C52: Banco | D52: Descrição | E52: Tipo | G52: Und | H52: Quant. | I52: Valor Unit | J52: Total
A53: Composição | B53: COMPOSIÇÃO - 009 | C53: Próprio | D53: Limpeza manual , remoção de cerca, capina e instalação dos equipamentos (área do poço, painéis solares, bebedouro e reservatório) | E53: SEDI - SERVIÇOS DIVERSOS | G53: m² | H53: 1 | I53: =J53 -> 1.3832 | J53: =J54 -> 1.3832
A54: Composição Auxiliar | B54: 88316 | C54: SINAPI | D54: SERVENTE COM ENCARGOS COMPLEMENTARES | E54: SEDI - SERVIÇOS DIVERSOS | G54: H | H54: 0.08 | I54: 17.29 | J54: =I54*H54 -> 1.3832
A56: 3.2 | B56: Código | C56: Banco | D56: Descrição | E56: Tipo | G56: Und | H56: Quant. | I56: Valor Unit | J56: Total
A57: Composição | B57: COMPOSIÇÃO - 012 | C57: Próprio | D57: Perfuração rotativa com circulação direta Ø 9.1/2" | E57: SERT - SERVIÇOS TÉCNICOS | G57: m | H57: 1 | I57: =J57 -> 259.034 | J57: =SUM(J58:J60) -> 259.034
A58: Composição Auxiliar | B58: 88263 | C58: SINAPI | D58: CAVOUQUEIRO OU OPERADOR PERFURATRIZ/ROMPEDOR COM ENCARGOS COMPLEMENTARES | E58: SEDI - SERVIÇOS DIVERSOS | G58: H | H58: 0.8 | I58: 23.81 | J58: =I58*H58 -> 19.048
A59: Composição Auxiliar | B59: 88316 | C59: SINAPI | D59: SERVENTE COM ENCARGOS COMPLEMENTARES | E59: SEDI - SERVIÇOS DIVERSOS | G59: H | H59: 2.4 | I59: 17.29 | J59: 41.496
A60: Insumo | B60: 5071 | C60: ORSE | D60: Perfuração rocha sedimentar sedimento / camadas inconsolidadas dn 8.1/2 a 9.1/2" - até 150m m | E60: Serviços | G60: m | H60: 1 | I60: 198.49 | J60: =I60*H60 -> 198.49
A62: 3.10 | B62: Código | C62: Banco | D62: Descrição | E62: Tipo | G62: Und | H62: Quant. | I62: Valor Unit | J62: Total
A63: Composição | B63: COMPOSIÇÃO - 011 | C63: Próprio | D63: Serviço de lançamento cimentação anelar poço tubular, incluso material. | E63: SEDI - SERVIÇOS DIVERSOS | G63: m³ | H63: 1 | I63: =J63 -> 973.646 | J63: =SUM(J64:J66) -> 973.646
A64: Composição Auxiliar | B64: 1903 | C64: ORSE | D64: Argamassa cimento e areia traço t-1 (1:3) - 1 saco cimento 50kg / 3 padiolas areia dim. 0.35 x 0.45 x 0.23 m - Confecção mecânica e transporte | E64: Argamassas | G64: m³ | H64: 1 | I64: 675.45 | J64: =I64*H64 -> 675.45
A65: Composição Auxiliar | B65: 88316 | C65: SINAPI | D65: SERVENTE COM ENCARGOS COMPLEMENTARES | E65: SEDI - SERVIÇOS DIVERSOS | G65: H | H65: 7.4 | I65: 17.29 | J65: 127.946
A66: Insumo | B66: 00000124 | C66: SINAPI | D66: ADITIVO ACELERADOR DE PEGA E ENDURECIMENTO PARA ARGAMASSAS E CONCRETOS, LIQUIDO E ISENTO DE CLORETOS | E66: Material | G66: L | H66: 5 | I66: 34.05 | J66: =I66*H66 -> 170.25
A68: 3.11 | B68: Código | C68: Banco | D68: Descrição | E68: Tipo | G68: Und | H68: Quant. | I68: Valor Unit | J68: Total
A69: Composição | B69: COMPOSIÇÃO - 014 | C69: Próprio | D69: Serviço de instalação de laje sanitária com dimensões (1,5x1,5x0,3) , incluso material. | E69: SEDI - SERVIÇOS DIVERSOS | G69: un | H69: 1 | I69: =J69 -> 713.4795 | J69: =SUM(J70:J73) -> 713.4795
A70: Composição Auxiliar | B70: 92522 | C70: SINAPI | D70: MONTAGEM E DESMONTAGEM DE FÔRMA DE LAJE MACIÇA, PÉ-DIREITO SIMPLES, EM CHAPA DE MADEIRA COMPENSADA RESINADA, 8 UTILIZAÇÕES. AF_09/2020 | E70: FUES - FUNDAÇÕES E ESTRUTURAS | G70: m² | H70: 1.8 | I70: 48.25 | J70: =I70*H70 -> 86.85
A71: Composição Auxiliar | B71: 93358 | C71: SINAPI | D71: ESCAVAÇÃO MANUAL DE VALA COM PROFUNDIDADE MENOR OU IGUAL A 1,30 M. AF_02/2021 | E71: MOVT - MOVIMENTO DE TERRA | G71: m³ | H71: 0.225 | I71: 68.4 | J71: 15.39
A72: Composição Auxiliar | B72: 94975 | C72: SINAPI | D72: CONCRETO FCK = 15MPA, TRAÇO 1:3,4:3,5 (EM MASSA SECA DE CIMENTO/ AREIA MÉDIA/ BRITA 1) - PREPARO MANUAL. AF_05/2021 | E72: FUES - FUNDAÇÕES E ESTRUTURAS | G72: m³ | H72: 0.675 | I72: 661.55 | J72: 446.54625
A73: Composição Auxiliar | B73: 103670 | C73: SINAPI | D73: LANÇAMENTO COM USO DE BALDES, ADENSAMENTO E ACABAMENTO DE CONCRETO EM ESTRUTURAS. AF_02/2022 | E73: FUES - FUNDAÇÕES E ESTRUTURAS | G73: m³ | H73: 0.675 | I73: 243.99 | J73: 164.69325
A75: 4 | D75: PÓS PERFURAÇÃO | J75: 10385.82
A76: 4.3 | B76: Código | C76: Banco | D76: Descrição | E76: Tipo | G76: Und | H76: Quant. | I76: Valor Unit | J76: Total
A77: Composição | B77: COMPOSIÇÃO - 015 | C77: Próprio | D77: Inspeção ótica em poço tubular câmera com rotação de 360º, visada lateral, com fonte própria de luz, entregue vídeo em cores e marcação de profundidades. | E77: SEES - SERVIÇOS ESPECIAIS | G77: m | H77: 1 | I77: =J77 -> 38.046335 | J77: =SUM(J78:J82) -> 38.046335
A78: Insumo | B78: H020050004 | C78: EMBASA | D78: APARELHO DE PERFILAGEM OPTICA | E78: Material | G78: M | H78: 1 | I78: 4.4 | J78: =I78*H78 -> 4.4
A79: Insumo | B79: B590000022 | C79: EMBASA | D79: TECNICO MEDIO | E79: Mão de Obra | G79: H | H79: 0.0835 | I79: 48.54 | J79: 4.05309
A80: Insumo | B80: B590000028 | C80: EMBASA | D80: AUXILIAR TECNICO | E80: Mão de Obra | G80: H | H80: 0.0835 | I80: 22.47 | J80: 1.876245
A81: Insumo | B81: F020000340 | C81: EMBASA | D81: DIÁRIA PARA PROFISSIONAL (INTERIOR) | E81: Material | G81: DIA | H81: 0.021 | I81: 227 | J81: 4.767
A82: Insumo | B82: F030000250 | C82: EMBASA | D82: LOCAÇÃO DE VEÍCULO PICK UP TIPO SAVEIRO OU SIMILAR | E82: Material | G82: DIA | H82: 0.25 | I82: 91.8 | J82: 22.95
A84: 5 | D84: RESERVAÇÃO | J84: 6862.67
A85: 5.1 | B85: Código | C85: Banco | D85: Descrição | E85: Tipo | G85: Und | H85: Quant. | I85: Valor Unit | J85: Total
A86: Composição | B86: COMPOSIÇÃO - 016 | C86: Próprio | D86: Execução e instalação de base de sustentação em concreto armado para reservatório de diâmetro 2,06m e altura 1,10m, conforme projeto, incluindo fixação de grampos da tampa. | E86: SEDI - SERVIÇOS DIVERSOS | G86: un | H86: 1 | I86: =J86 -> 3224.672 | J86: =SUM(J87:J105) -> 3224.672
A87: Composição Auxiliar | B87: 5928 | C87: SINAPI | D87: GUINDAUTO HIDRÁULICO, CAPACIDADE MÁXIMA DE CARGA 6200 KG, MOMENTO MÁXIMO DE CARGA 11,7 TM, ALCANCE MÁXIMO HORIZONTAL 9,70 M, INCLUSIVE CAMINHÃO TOCO PBT 16.000 KG, POTÊNCIA DE 189 CV - CHP DIURNO. AF_06/2014 | E87: CHOR - CUSTOS HORÁRIOS DE MÁQUINAS E EQUIPAMENTOS | G87: CHP | H87: 2.5 | I87: 280.52 | J87: =I87*H87 -> 701.3
A88: Composição Auxiliar | B88: 88310 | C88: SINAPI | D88: PINTOR COM ENCARGOS COMPLEMENTARES | E88: SEDI - SERVIÇOS DIVERSOS | G88: H | H88: 0.3 | I88: 24.67 | J88: 7.401
A89: Composição Auxiliar | B89: 100301 | C89: SINAPI | D89: AJUDANTE DE PINTOR COM ENCARGOS COMPLEMENTARES | E89: SEDI - SERVIÇOS DIVERSOS | G89: H | H89: 0.1 | I89: 20.61 | J89: 2.061
A90: Composição Auxiliar | B90: 88309 | C90: SINAPI | D90: PEDREIRO COM ENCARGOS COMPLEMENTARES | E90: SEDI - SERVIÇOS DIVERSOS | G90: H | H90: 5.55 | I90: 23.45 | J90: 130.1475
A91: Composição Auxiliar | B91: 88316 | C91: SINAPI | D91: SERVENTE COM ENCARGOS COMPLEMENTARES | E91: SEDI - SERVIÇOS DIVERSOS | G91: H | H91: 10 | I91: 17.29 | J91: 172.9
A92: Composição Auxiliar | B92: 88245 | C92: SINAPI | D92: ARMADOR COM ENCARGOS COMPLEMENTARES | E92: SEDI - SERVIÇOS DIVERSOS | G92: H | H92: 3 | I92: 23.25 | J92: 69.75
A93: Composição Auxiliar | B93: 88262 | C93: SINAPI | D93: CARPINTEIRO DE FORMAS COM ENCARGOS COMPLEMENTARES | E93: SEDI - SERVIÇOS DIVERSOS | G93: H | H93: 2 | I93: 23.07 | J93: 46.14
A94: Composição Auxiliar | B94: 87445 | C94: SINAPI | D94: BETONEIRA CAPACIDADE NOMINAL 400 L, CAPACIDADE DE MISTURA 310 L, MOTOR A DIESEL POTÊNCIA 5,0 HP, SEM CARREGADOR - CHP DIURNO. AF_05/2023 | E94: CHOR - CUSTOS HORÁRIOS DE MÁQUINAS E EQUIPAMENTOS | G94: CHP | H94: 2.8548 | I94: 5.66 | J94: 16.158168
A95: Composição Auxiliar | B95: 88377 | C95: SINAPI | D95: OPERADOR DE BETONEIRA ESTACIONÁRIA/MISTURADOR COM ENCARGOS COMPLEMENTARES | E95: SEDI - SERVIÇOS DIVERSOS | G95: H | H95: 2.8548 | I95: 15.84 | J95: 45.220032
A96: Insumo | B96: 00007155 | C96: SINAPI | D96: TELA DE ACO SOLDADA NERVURADA, CA-60, Q-138, (2,20 KG/M2), DIAMETRO DO FIO = 4,2 MM, LARGURA = 2,45 M, ESPACAMENTO DA MALHA = 10 X 10 CM | E96: Material | G96: m² | H96: 6 | I96: 18.29 | J96: 109.74
A97: Insumo | B97: 00000370 | C97: SINAPI | D97: AREIA MEDIA - POSTO JAZIDA/FORNECEDOR (RETIRADO NA JAZIDA, SEM TRANSPORTE) | E97: Material | G97: m³ | H97: 1.36 | I97: 113.33 | J97: 154.1288
A98: Insumo | B98: 00001379 | C98: SINAPI | D98: CIMENTO PORTLAND COMPOSTO CP II-32 | E98: Material | G98: KG | H98: 565.75 | I98: 1.07 | J98: 605.3525
A99: Insumo | B99: 00004718 | C99: SINAPI | D99: PEDRA BRITADA N. 2 (19 A 38 MM) POSTO PEDREIRA/FORNECEDOR, SEM FRETE | E99: Material | G99: m³ | H99: 0.33 | I99: 280 | J99: 92.4
A100: Insumo | B100: 00004721 | C100: SINAPI | D100: PEDRA BRITADA N. 1 (9,5 a 19 MM) POSTO PEDREIRA/FORNECEDOR, SEM FRETE | E100: Material | G100: m³ | H100: 0.98 | I100: 278.53 | J100: 272.9594
A101: Insumo | B101: 00003767 | C101: SINAPI | D101: LIXA EM FOLHA PARA PAREDE OU MADEIRA, NUMERO 120, COR VERMELHA | E101: Material | G101: UN | H101: 0.12 | I101: 0.79 | J101: 0.0948
A102: Insumo | B102: 00007356 | C102: SINAPI | D102: TINTA LATEX ACRILICA PREMIUM, COR BRANCO FOSCO | E102: Material | G102: L | H102: 0.18 | I102: 20.14 | J102: 3.6252
A103: Insumo | B103: 00000032 | C103: SINAPI | D103: ACO CA-50, 6,3 MM, VERGALHAO | E103: Material | G103: KG | H103: 9.3 | I103: 11.09 | J103: 103.137
A104: Insumo | B104: 00043059 | C104: SINAPI | D104: ACO CA-60, 4,2 MM, OU 5,0 MM, OU 6,0 MM, OU 7,0 MM, VERGALHAO | E104: Material | G104: KG | H104: 3.04 | I104: 9.95 | J104: 30.248
A105: Insumo | B105: 00043681 | C105: SINAPI | D105: CHAPA/PAINEL DE MADEIRA COMPENSADA RESINADA (MADEIRITE RESINADO ROSA) PARA FORMA DE CONCRETO, DE 2200 x 1100 MM, E = 8 A 12 MM | E105: Material | G105: m² | H105: 17.46 | I105: 37.91 | J105: 661.9086
A107: 6 | D107: BEBEDOURO | J107: 2160.19
A108: 6.1 | B108: Código | C108: Banco | D108: Descrição | E108: Tipo | G108: Und | H108: Quant. | I108: Valor Unit | J108: Total
A109: Composição | B109: COMPOSIÇÃO - 017 | C109: Próprio | D109: Serviço de execução do bebedouro em concreto armado, incluso materiais. | E109: SEDI - SERVIÇOS DIVERSOS | G109: un | H109: 1 | I109: =J109 -> 1721.6825 | J109: =SUM(J110:J128) -> 1721.6825
A110: Composição Auxiliar | B110: 5928 | C110: SINAPI | D110: GUINDAUTO HIDRÁULICO, CAPACIDADE MÁXIMA DE CARGA 6200 KG, MOMENTO MÁXIMO DE CARGA 11,7 TM, ALCANCE MÁXIMO HORIZONTAL 9,70 M, INCLUSIVE CAMINHÃO TOCO PBT 16.000 KG, POTÊNCIA DE 189 CV - CHP DIURNO. AF_06/2014 | E110: CHOR - CUSTOS HORÁRIOS DE MÁQUINAS E EQUIPAMENTOS | G110: CHP | H110: 2 | I110: 280.52 | J110: =I110*H110 -> 561.04
A111: Composição Auxiliar | B111: 87445 | C111: SINAPI | D111: BETONEIRA CAPACIDADE NOMINAL 400 L, CAPACIDADE DE MISTURA 310 L, MOTOR A DIESEL POTÊNCIA 5,0 HP, SEM CARREGADOR - CHP DIURNO. AF_05/2023 | E111: CHOR - CUSTOS HORÁRIOS DE MÁQUINAS E EQUIPAMENTOS | G111: CHP | H111: 0.5 | I111: 5.66 | J111: 2.83
A112: Composição Auxiliar | B112: 88377 | C112: SINAPI | D112: OPERADOR DE BETONEIRA ESTACIONÁRIA/MISTURADOR COM ENCARGOS COMPLEMENTARES | E112: SEDI - SERVIÇOS DIVERSOS | G112: H | H112: 0.5 | I112: 15.84 | J112: 7.92
A113: Composição Auxiliar | B113: 88310 | C113: SINAPI | D113: PINTOR COM ENCARGOS COMPLEMENTARES | E113: SEDI - SERVIÇOS DIVERSOS | G113: H | H113: 0.3 | I113: 24.67 | J113: 7.401
A114: Composição Auxiliar | B114: 100301 | C114: SINAPI | D114: AJUDANTE DE PINTOR COM ENCARGOS COMPLEMENTARES | E114: SEDI - SERVIÇOS DIVERSOS | G114: H | H114: 0.1 | I114: 20.61 | J114: 2.061
A115: Composição Auxiliar | B115: 88245 | C115: SINAPI | D115: ARMADOR COM ENCARGOS COMPLEMENTARES | E115: SEDI - SERVIÇOS DIVERSOS | G115: H | H115: 3 | I115: 23.25 | J115: 69.75
A116: Composição Auxiliar | B116: 88262 | C116: SINAPI | D116: CARPINTEIRO DE FORMAS COM ENCARGOS COMPLEMENTARES | E116: SEDI - SERVIÇOS DIVERSOS | G116: H | H116: 2 | I116: 23.07 | J116: 46.14
A117: Composição Auxiliar | B117: 88316 | C117: SINAPI | D117: SERVENTE COM ENCARGOS COMPLEMENTARES | E117: SEDI - SERVIÇOS DIVERSOS | G117: H | H117: 5 | I117: 17.29 | J117: 86.45
A118: Composição Auxiliar | B118: 88309 | C118: SINAPI | D118: PEDREIRO COM ENCARGOS COMPLEMENTARES | E118: SEDI - SERVIÇOS DIVERSOS | G118: H | H118: 4 | I118: 23.45 | J118: 93.8
A119: Insumo | B119: 00043055 | C119: SINAPI | D119: ACO CA-50, 12,5 MM OU 16,0 MM, VERGALHAO | E119: Material | G119: KG | H119: 12 | I119: 9.11 | J119: =I119*H119 -> 109.32
A120: Insumo | B120: 00043059 | C120: SINAPI | D120: ACO CA-60, 4,2 MM, OU 5,0 MM, OU 6,0 MM, OU 7,0 MM, VERGALHAO | E120: Material | G120: KG | H120: 13 | I120: 9.95 | J120: 129.35
A121: Insumo | B121: 00000032 | C121: SINAPI | D121: ACO CA-50, 6,3 MM, VERGALHAO | E121: Material | G121: KG | H121: 6 | I121: 11.09 | J121: 66.54
A122: Insumo | B122: 00000370 | C122: SINAPI | D122: AREIA MEDIA - POSTO JAZIDA/FORNECEDOR (RETIRADO NA JAZIDA, SEM TRANSPORTE) | E122: Material | G122: m³ | H122: 0.32 | I122: 113.33 | J122: 36.2656
A123: Insumo | B123: 00001379 | C123: SINAPI | D123: CIMENTO PORTLAND COMPOSTO CP II-32 | E123: Material | G123: KG | H123: 127 | I123: 1.07 | J123: 135.89
A124: Insumo | B124: 00004718 | C124: SINAPI | D124: PEDRA BRITADA N. 2 (19 A 38 MM) POSTO PEDREIRA/FORNECEDOR, SEM FRETE | E124: Material | G124: m³ | H124: 0.08 | I124: 280 | J124: 22.4
A125: Insumo | B125: 00004721 | C125: SINAPI | D125: PEDRA BRITADA N. 1 (9,5 a 19 MM) POSTO PEDREIRA/FORNECEDOR, SEM FRETE | E125: Material | G125: m³ | H125: 0.23 | I125: 278.53 | J125: 64.0619
A126: Insumo | B126: 00003767 | C126: SINAPI | D126: LIXA EM FOLHA PARA PAREDE OU MADEIRA, NUMERO 120, COR VERMELHA | E126: Material | G126: UN | H126: 0.12 | I126: 0.79 | J126: 0.0948
A127: Insumo | B127: 00007356 | C127: SINAPI | D127: TINTA LATEX ACRILICA PREMIUM, COR BRANCO FOSCO | E127: Material | G127: L | H127: 0.18 | I127: 20.14 | J127: 3.6252
A128: Insumo | B128: 00043681 | C128: SINAPI | D128: CHAPA/PAINEL DE MADEIRA COMPENSADA RESINADA (MADEIRITE RESINADO ROSA) PARA FORMA DE CONCRETO, DE 2200 x 1100 MM, E = 8 A 12 MM | E128: Material | G128: m² | H128: 7.3 | I128: 37.91 | J128: 276.743
A130: 7 | D130: INSTALAÇÕES HIDRÁULICAS | J130: 3459.32
A131: 7.1 | D131: INSTALAÇÕES DE CAVALETE | J131: 1357.06
A132: 7.1.1 | B132: Código | C132: Banco | D132: Descrição | E132: Tipo | G132: Und | H132: Quant. | I132: Valor Unit | J132: Total
A133: Composição | B133: COMPOSIÇÃO - 018 | C133: Próprio | D133: Montagem e Instalação de Tubulação e Conexões Cavalete | E133: INHI - INSTALAÇÕES HIDROS SANITÁRIAS | G133: un | H133: 1 | I133: =J133 -> 252.98 | J133: =SUM(J134:J137) -> 252.98
A134: Composição Auxiliar | B134: 88248 | C134: SINAPI | D134: AUXILIAR DE ENCANADOR OU BOMBEIRO HIDRÁULICO COM ENCARGOS COMPLEMENTARES | E134: SEDI - SERVIÇOS DIVERSOS | G134: H | H134: 3 | I134: 18.63 | J134: =I134*H134 -> 55.89
A135: Composição Auxiliar | B135: 88267 | C135: SINAPI | D135: ENCANADOR OU BOMBEIRO HIDRÁULICO COM ENCARGOS COMPLEMENTARES | E135: SEDI - SERVIÇOS DIVERSOS | G135: H | H135: 3 | I135: 22.7 | J135: 68.1
A136: Insumo | B136: 00000122 | C136: SINAPI | D136: ADESIVO PLASTICO PARA PVC, FRASCO COM *850* GR | E136: Material | G136: UN | H136: 1 | I136: 60.47 | J136: =I136*H136 -> 60.47
A137: Insumo | B137: 00020083 | C137: SINAPI | D137: SOLUCAO PREPARADORA / LIMPADORA PARA PVC, FRASCO COM 1000 CM3 | E137: Material | G137: UN | H137: 1 | I137: 68.52 | J137: 68.52
A139: 7.2 | D139: INSTALAÇÕES DE ADUTORA, RESERVATÓRIO E BEBEDOURO | J139: 2102.26
A140: 7.2.1 | B140: Código | C140: Banco | D140: Descrição | E140: Tipo | G140: Und | H140: Quant. | I140: Valor Unit | J140: Total
A141: Composição | B141: COMPOSIÇÃO - 020 | C141: Próprio | D141: Montagem e instalação da rede adutora poço-reservatório-bebedouro | E141: SEDI - SERVIÇOS DIVERSOS | G141: un | H141: 1 | I141: 965.14 | J141: =SUM(J142:J148) -> 965.135
A142: Composição Auxiliar | B142: 88316 | C142: SINAPI | D142: SERVENTE COM ENCARGOS COMPLEMENTARES | E142: SEDI - SERVIÇOS DIVERSOS | G142: H | H142: 6 | I142: 17.29 | J142: =I142*H142 -> 103.74
A143: Composição Auxiliar | B143: 93358 | C143: SINAPI | D143: ESCAVAÇÃO MANUAL DE VALA COM PROFUNDIDADE MENOR OU IGUAL A 1,30 M. AF_02/2021 | E143: MOVT - MOVIMENTO DE TERRA | G143: m³ | H143: 4.5 | I143: 68.4 | J143: =I143*H143 -> 307.8
A144: Composição Auxiliar | B144: 88267 | C144: SINAPI | D144: ENCANADOR OU BOMBEIRO HIDRÁULICO COM ENCARGOS COMPLEMENTARES | E144: SEDI - SERVIÇOS DIVERSOS | G144: H | H144: 6 | I144: 22.7 | J144: 136.2
A145: Composição Auxiliar | B145: 93382 | C145: SINAPI | D145: REATERRO MANUAL DE VALAS, COM COMPACTADOR DE SOLOS DE PERCUSSÃO. AF_08/2023 | E145: MOVT - MOVIMENTO DE TERRA | G145: m³ | H145: 4.5 | I145: 22.62 | J145: 101.79
A146: Composição Auxiliar | B146: 96995 | C146: SINAPI | D146: REATERRO MANUAL APILOADO COM SOQUETE. AF_10/2017 | E146: MOVT - MOVIMENTO DE TERRA | G146: m³ | H146: 4.5 | I146: 41.47 | J146: 186.615
A147: Insumo | B147: 00000122 | C147: SINAPI | D147: ADESIVO PLASTICO PARA PVC, FRASCO COM *850* GR | E147: Material | G147: UN | H147: 1 | I147: 60.47 | J147: =I147*H147 -> 60.47
A148: Insumo | B148: 00020083 | C148: SINAPI | D148: SOLUCAO PREPARADORA / LIMPADORA PARA PVC, FRASCO COM 1000 CM3 | E148: Material | G148: UN | H148: 1 | I148: 68.52 | J148: =I148*H148 -> 68.52
A150: 8 | D150: FORNECIMENTO E INSTALAÇÃO DE SISTEMA FOTOVOLTAÍCO | J150: 37196.7
A151: 8.1 | D151: INSTALAÇÕES HIDRÁULICAS | J151: 3951.16
A152: 8.1.1 | B152: Código | C152: Banco | D152: Descrição | E152: Tipo | G152: Und | H152: Quant. | I152: Valor Unit | J152: Total
A153: Composição | B153: COMPOSIÇÃO - 019 | C153: Próprio | D153: Montagem e instalação hidráulica do kit de bombeamento | E153: INHI - INSTALAÇÕES HIDROS SANITÁRIAS | G153: un | H153: 1 | I153: =J153 -> 123.99 | J153: =SUM(J154:J155) -> 123.99
A154: Composição Auxiliar | B154: 88267 | C154: SINAPI | D154: ENCANADOR OU BOMBEIRO HIDRÁULICO COM ENCARGOS COMPLEMENTARES | E154: SEDI - SERVIÇOS DIVERSOS | G154: H | H154: 3 | I154: 22.7 | J154: =I154*H154 -> 68.1
A155: Composição Auxiliar | B155: 88248 | C155: SINAPI | D155: AUXILIAR DE ENCANADOR OU BOMBEIRO HIDRÁULICO COM ENCARGOS COMPLEMENTARES | E155: SEDI - SERVIÇOS DIVERSOS | G155: H | H155: 3 | I155: 18.63 | J155: =I155*H155 -> 55.89
A157: 8.2 | D157: INSTALAÇÕES ELÉTRICAS | J157: 4483.89
A158: 8.2.1 | B158: Código | C158: Banco | D158: Descrição | E158: Tipo | G158: Und | H158: Quant. | I158: Valor Unit | J158: Total
A159: Composição | B159: COMPOSIÇÃO - 021 | C159: Próprio | D159: Montagem e instalação elétrica do kit de bombeamento e sistema fotovoltaico inclusive sistema de aterramento. | E159: INEL - INSTALAÇÃO ELÉTRICA/ELETRIFICAÇÃO E ILUMINAÇÃO EXTERNA | G159: un | H159: 1 | I159: =J159 -> 509.31 | J159: =SUM(J160:J164) -> 509.31
A160: Composição Auxiliar | B160: 88264 | C160: SINAPI | D160: ELETRICISTA COM ENCARGOS COMPLEMENTARES | E160: SEDI - SERVIÇOS DIVERSOS | G160: H | H160: 8 | I160: 25.65 | J160: =I160*H160 -> 205.2
A161: Composição Auxiliar | B161: 88247 | C161: SINAPI | D161: AUXILIAR DE ELETRICISTA COM ENCARGOS COMPLEMENTARES | E161: SEDI - SERVIÇOS DIVERSOS | G161: H | H161: 8 | I161: 19.61 | J161: 156.88
A162: Composição Auxiliar | B162: 90777 | C162: SINAPI | D162: ENGENHEIRO CIVIL DE OBRA JUNIOR COM ENCARGOS COMPLEMENTARES | E162: SEDI - SERVIÇOS DIVERSOS | G162: H | H162: 1 | I162: 113.14 | J162: 113.14
A163: Insumo | B163: 00020111 | C163: SINAPI | D163: FITA ISOLANTE ADESIVA ANTICHAMA, USO ATE 750 V, EM ROLO DE 19 MM X 20 M | E163: Material | G163: UN | H163: 1 | I163: 30 | J163: =I163*H163 -> 30
A164: Insumo | B164: 00000404 | C164: SINAPI | D164: FITA ISOLANTE DE BORRACHA AUTOFUSAO, USO ATE 69 KV (ALTA TENSAO) | E164: Material | G164: M | H164: 1 | I164: 4.09 | J164: =I164*H164 -> 4.09
A166: 8.3 | D166: ESTRUTURA DE FIXAÇÃO PARA MÓDULOS FOTOVOLTÁICOS | J166: 3480.12
A167: 8.3.1 | B167: Código | C167: Banco | D167: Descrição | E167: Tipo | G167: Und | H167: Quant. | I167: Valor Unit | J167: Total
A168: Composição | B168: COMPOSIÇÃO - 022 | C168: Próprio | D168: Serviço de fixação de estruturas para os módulos fotovoltaicos e suportes de concreto, incluso materiais. | E168: SEDI - SERVIÇOS DIVERSOS | G168: m² | H168: 1 | I168: =J168 -> 231.130995 | J168: =SUM(J169:J172) -> 231.130995
A169: Composição Auxiliar | B169: 94975 | C169: SINAPI | D169: CONCRETO FCK = 15MPA, TRAÇO 1:3,4:3,5 (EM MASSA SECA DE CIMENTO/ AREIA MÉDIA/ BRITA 1) - PREPARO MANUAL. AF_05/2021 | E169: FUES - FUNDAÇÕES E ESTRUTURAS | G169: m³ | H169: 0.0945 | I169: 661.55 | J169: =I169*H169 -> 62.516475
A170: Composição Auxiliar | B170: 93358 | C170: SINAPI | D170: ESCAVAÇÃO MANUAL DE VALA COM PROFUNDIDADE MENOR OU IGUAL A 1,30 M. AF_02/2021 | E170: MOVT - MOVIMENTO DE TERRA | G170: m³ | H170: 0.0625 | I170: 68.4 | J170: =I170*H170 -> 4.275
A171: Composição Auxiliar | B171: 96534 | C171: SINAPI | D171: FABRICAÇÃO, MONTAGEM E DESMONTAGEM DE FÔRMA PARA BLOCO DE COROAMENTO, EM MADEIRA SERRADA, E=25 MM, 4 UTILIZAÇÕES. AF_06/2017 | E171: FUES - FUNDAÇÕES E ESTRUTURAS | G171: m² | H171: 0.032 | I171: 73.11 | J171: 2.33952
A172: Insumo | B172: COTAÇÃO-003 | C172: Próprio | D172: Fornecimento suporte fabricado em material metálico resistente a corrosão e ataque químico do solo fabricado em alumínio ou aço galvanizado ou aço zincado ou similares, a ser fixado nos blocos de concreto | E172: Material | G172: m² | H172: 1 | I172: 162 | J172: =I172*H172 -> 162
A174: 9 | D174: URBANIZAÇÃO | J174: 4163.87
A175: 9.1 | D175: CERCA | J175: 3070.76
A176: 9.1.1 | B176: Código | C176: Banco | D176: Descrição | E176: Tipo | G176: Und | H176: Quant. | I176: Valor Unit | J176: Total
A177: Composição | B177: COMPOSIÇÃO - 023 | C177: Próprio | D177: Cerca com mourões de concreto de 15x15cm, espaçados de 3m e cravados a 0,5m, escoras de 10x10cm nos cantos, e 9 fios de arame de aço ovalado 15x17. | E177: SEDI - SERVIÇOS DIVERSOS | G177: m | H177: 1 | I177: =J177 -> 87.41278 | J177: =SUM(J178:J184) -> 87.41278
A178: Composição Auxiliar | B178: 88309 | C178: SINAPI | D178: PEDREIRO COM ENCARGOS COMPLEMENTARES | E178: SEDI - SERVIÇOS DIVERSOS | G178: H | H178: 0.335 | I178: 23.45 | J178: =I178*H178 -> 7.85575
A179: Composição Auxiliar | B179: 88316 | C179: SINAPI | D179: SERVENTE COM ENCARGOS COMPLEMENTARES | E179: SEDI - SERVIÇOS DIVERSOS | G179: H | H179: 0.671 | I179: 17.29 | J179: 11.60159
A180: Composição Auxiliar | B180: 94975 | C180: SINAPI | D180: CONCRETO FCK = 15MPA, TRAÇO 1:3,4:3,5 (EM MASSA SECA DE CIMENTO/ AREIA MÉDIA/ BRITA 1) - PREPARO MANUAL. AF_05/2021 | E180: FUES - FUNDAÇÕES E ESTRUTURAS | G180: m³ | H180: 0.0288 | I180: 661.55 | J180: 19.05264
A181: Insumo | B181: 00043130 | C181: SINAPI | D181: ARAME GALVANIZADO 12 BWG, D = 2,76 MM (0,048 KG/M) OU 14 BWG, D = 2,11 MM (0,026 KG/M) | E181: Material | G181: KG | H181: 0.098 | I181: 30.9 | J181: 3.0282
A182: Insumo | B182: 00000346 | C182: SINAPI | D182: ARAME DE ACO OVALADO 15 X 17 ( 45,7 KG, 700 KGF), ROLO 1000 M | E182: Material | G182: KG | H182: 0.405 | I182: 36.6 | J182: 14.823
A183: Insumo | B183: 00004111 | C183: SINAPI | D183: ESCORA PRE-MOLDADA EM CONCRETO, *10 X 10* CM, H = 2,30M | E183: Material | G183: UN | H183: 0.16 | I183: 70.12 | J183: 11.2192
A184: Insumo | B184: I1533 | C184: SEINFRA | D184: MOURÃO CONCRETO BASE 15X15CM H=2.3 C/ 12 FUROS | E184: Material | G184: UN | H184: 0.42 | I184: 47.22 | J184: 19.8324
A186: 9.2 | D186: PORTÃO | J186: 1093.11
A187: 9.2.1 | B187: Código | C187: Banco | D187: Descrição | E187: Tipo | G187: Und | H187: Quant. | I187: Valor Unit | J187: Total
A188: Composição | B188: COMPOSIÇÃO - 024 | C188: Próprio | D188: Serviço de instalação de portão de ferro com suporte e batedor conforme projeto, incluso material | E188: SEDI - SERVIÇOS DIVERSOS | G188: m² | H188: 1 | I188: =J188 -> 580.80151 | J188: =SUM(J189:J193) -> 580.80151
A189: Composição Auxiliar | B189: 88309 | C189: SINAPI | D189: PEDREIRO COM ENCARGOS COMPLEMENTARES | E189: SEDI - SERVIÇOS DIVERSOS | G189: H | H189: 1.5 | I189: 23.45 | J189: =I189*H189 -> 35.175
A190: Composição Auxiliar | B190: 88316 | C190: SINAPI | D190: SERVENTE COM ENCARGOS COMPLEMENTARES | E190: SEDI - SERVIÇOS DIVERSOS | G190: H | H190: 1.5 | I190: 17.29 | J190: 25.935
A191: Insumo | B191: 00000367 | C191: SINAPI | D191: AREIA GROSSA - POSTO JAZIDA/FORNECEDOR (RETIRADO NA JAZIDA, SEM TRANSPORTE) | E191: Material | G191: m³ | H191: 0.061 | I191: 114.81 | J191: 7.00341
A192: Insumo | B192: 00001379 | C192: SINAPI | D192: CIMENTO PORTLAND COMPOSTO CP II-32 | E192: Material | G192: KG | H192: 4.83 | I192: 1.07 | J192: 5.1681
A193: Insumo | B193: 00004948 | C193: SINAPI | D193: PORTAO DE ABRIR / GIRO, EM GRADIL DE METALON REDONDO DE 3/4" VERTICAL, COM REQUADRO, ACABAMENTO NATURAL - COMPLETO | E193: Material | G193: m² | H193: 1 | I193: 507.52 | J193: 507.52
A195: 10 | D195: OUTROS SERVIÇOS | J195: 3054.92
A196: 10.1 | B196: Código | C196: Banco | D196: Descrição | E196: Tipo | G196: Und | H196: Quant. | I196: Valor Unit | J196: Total
A197: Composição | B197: COMPOSIÇÃO - 025 | C197: Próprio | D197: Serviço de lançamento de concreto para acabamento do tamponamento, incluso material. | E197: SEDI - SERVIÇOS DIVERSOS | G197: m³ | H197: 1 | I197: =J197 -> 850 | J197: =SUM(J198:J199) -> 850
A198: Composição Auxiliar | B198: 103670 | C198: SINAPI | D198: LANÇAMENTO COM USO DE BALDES, ADENSAMENTO E ACABAMENTO DE CONCRETO EM ESTRUTURAS. AF_02/2022 | E198: FUES - FUNDAÇÕES E ESTRUTURAS | G198: m³ | H198: 1 | I198: 243.99 | J198: =I198*H198 -> 243.99
A199: Composição Auxiliar | B199: 94974 | C199: SINAPI | D199: CONCRETO MAGRO PARA LASTRO, TRAÇO 1:4,5:4,5 (EM MASSA SECA DE CIMENTO/ AREIA MÉDIA/ BRITA 1) - PREPARO MANUAL. AF_05/2021 | E199: FUES - FUNDAÇÕES E ESTRUTURAS | G199: m³ | H199: 1 | I199: 606.01 | J199: 606.01
A201: 10.2 | B201: Código | C201: Banco | D201: Descrição | E201: Tipo | G201: Und | H201: Quant. | I201: Valor Unit | J201: Total
A202: Composição | B202: COMPOSIÇÃO - 026 | C202: Próprio | D202: Serviço de execução do tamponamento, incluso pedra britada desinfectada. | E202: SEDI - SERVIÇOS DIVERSOS | G202: un | H202: 1 | I202: =J202 -> 344.299 | J202: =SUM(J203:J205) -> 344.299
A203: Composição Auxiliar | B203: 88316 | C203: SINAPI | D203: SERVENTE COM ENCARGOS COMPLEMENTARES | E203: SEDI - SERVIÇOS DIVERSOS | G203: H | H203: 0.1 | I203: 17.29 | J203: =I203*H203 -> 1.729
A204: Insumo | B204: 00004720 | C204: SINAPI | D204: PEDRA BRITADA N. 0, OU PEDRISCO (4,8 A 9,5 MM) POSTO PEDREIRA/FORNECEDOR, SEM FRETE | E204: Material | G204: m³ | H204: 1 | I204: 321.57 | J204: 321.57
A205: Insumo | B205: D240000003 | C205: EMBASA | D205: HIPOCLORITO DE SÓDIO | E205: Material | G205: L | H205: 5 | I205: 4.2 | J205: 21
A208: _______________________________________________________________ Cássio Oliveira Lopes Analista em Desenvolvimento Regional - AR/GSA/UAS CODEVASF – SEDE _______________________________________________________________ Catheriny Soares Andrade Moraes Analista em Desenvolvimento Regional - AR/GSA/UAS CODEVASF – SEDE _______________________________________________________________ Iago Guilherme dos Santos Engenheiro Pleno - AR/GSA/UAS Engeplus Engenharia e Consultoria LTDA _______________________________________________________________ Micheline Mirapalheta Dias Engenheiro Sênior - AR/GSA/UAS Engeplus Engenharia e Consultoria LTDA

Sheet Crono. AP - Total.Re
C1: MINISTÉRIO DO DESENVOLVIMENTO REGIONAL - MDR COMPANHIA DE DESENVOLVIMENTO DOS VALES DO SÃO FRANCISCO E DO PARNAÍBA ÁREA DE REVITALIZAÇÃO E SUSTENTABILIDADE SOCIOAMBIENTAL
A6: OBJETO: EXECUÇÃO DE SERVIÇOS DE PERFURAÇÃO E INSTALAÇÃO DE POÇOS TUBULARES EM MUNICÍPIOS LOCALIZADOS NO ESTADO DO AMAPÁ, NA ÁREA DE ATUAÇÃO DA CODEVASF
A7: CRONOGRAMA FÍSICO-FINANCEIRO
A8: ITEM | B8: ESPECIFICAÇÃO DOS SERVIÇOS | C8: VALOR TOTAL (R$) | D8: Mês 01 | E8: Mês 02 | F8: Mês 03 | G8: Mês 04 | H8: Mês 05 | I8: Mês 06 | J8: Mês 07 | K8: Mês 08 | L8: Mês 09 | M8: Mês 10 | N8: Mês 11 | O8: Mês 12
A9: 1 | B9: ='Orç. AP - Tot. Rev - Sintético'!E6 -> SERVIÇOS PRELIMINARES | C9: ='Orç. AP - Tot. Rev - Sintético'!J6 -> 489676.67 | D9: =$C$9/12 -> 40806.38917 | E9: =$C$9/12 -> 40806.38917 | F9: 40806.38917 | G9: 40806.38917 | H9: 40806.38917 | I9: 40806.38917 | J9: 40806.38917 | K9: 40806.38917 | L9: 40806.38917 | M9: 40806.38917 | N9: 40806.38917 | O9: 40806.38917
A10: 2 | B10: ='Orç. AP - Tot. Rev - Sintético'!E10 -> MOBILIZAÇÂO E DESMOBILIZAÇÂO EQUIPES PERFURAÇÂO E INSTALAÇÃO | C10: ='Orç. AP - Tot. Rev - Sintético'!J10 -> 328641.84 | D10: =$C$10/12 -> 27386.82 | E10: =$C$10/12 -> 27386.82 | F10: 27386.82 | G10: 27386.82 | H10: 27386.82 | I10: 27386.82 | J10: 27386.82 | K10: 27386.82 | L10: 27386.82 | M10: 27386.82 | N10: 27386.82 | O10: 27386.82
A11: 3 | B11: ='Orç. AP - Tot. Rev - Sintético'!E15 -> PERFURAÇÃO E COMPLETAÇÃO DE POÇO TUBULAR | C11: ='Orç. AP - Tot. Rev - Sintético'!J15 -> 4738700.73 | D11: =$C$11/12 -> 394891.7275 | E11: =$C$11/12 -> 394891.7275 | F11: 394891.7275 | G11: 394891.7275 | H11: 394891.7275 | I11: 394891.7275 | J11: 394891.7275 | K11: 394891.7275 | L11: 394891.7275 | M11: 394891.7275 | N11: 394891.7275 | O11: 394891.7275
A12: 4 | B12: ='Orç. AP - Tot. Rev - Sintético'!E27 -> PÓS PERFURAÇÃO | C12: ='Orç. AP - Tot. Rev - Sintético'!J27 -> 643237.8 | D12: =$C$12/12 -> 53603.15 | E12: =$C$12/12 -> 53603.15 | F12: 53603.15 | G12: 53603.15 | H12: 53603.15 | I12: 53603.15 | J12: 53603.15 | K12: 53603.15 | L12: 53603.15 | M12: 53603.15 | N12: 53603.15 | O12: 53603.15
A13: 5 | B13: ='Orç. AP - Tot. Rev - Sintético'!E32 -> RESERVAÇÃO | C13: ='Orç. AP - Tot. Rev - Sintético'!J32 -> 411759.65 | D13: =$C$13/12 -> 34313.30417 | E13: =$C$13/12 -> 34313.30417 | F13: 34313.30417 | G13: 34313.30417 | H13: 34313.30417 | I13: 34313.30417 | J13: 34313.30417 | K13: 34313.30417 | L13: 34313.30417 | M13: 34313.30417 | N13: 34313.30417 | O13: 34313.30417
A14: 6 | B14: ='Orç. AP - Tot. Rev - Sintético'!E38 -> BEBEDOURO | C14: ='Orç. AP - Tot. Rev - Sintético'!J38 -> 129612 | D14: =$C$14/12 -> 10801 | E14: =$C$14/12 -> 10801 | F14: 10801 | G14: 10801 | H14: 10801 | I14: 10801 | J14: 10801 | K14: 10801 | L14: 10801 | M14: 10801 | N14: 10801 | O14: 10801
A15: 7 | B15: ='Orç. AP - Tot. Rev - Sintético'!E40 -> INSTALAÇÕES HIDRÁULICAS | C15: ='Orç. AP - Tot. Rev - Sintético'!J40 -> 207558.9 | D15: =$C$15/12 -> 17296.575 | E15: =$C$15/12 -> 17296.575 | F15: 17296.575 | G15: 17296.575 | H15: 17296.575 | I15: 17296.575 | J15: 17296.575 | K15: 17296.575 | L15: 17296.575 | M15: 17296.575 | N15: 17296.575 | O15: 17296.575
A16: 8 | B16: ='Orç. AP - Tot. Rev - Sintético'!E70 -> FORNECIMENTO E INSTALAÇÃO DE SISTEMA FOTOVOLTAÍCO | C16: ='Orç. AP - Tot. Rev - Sintético'!J70 -> 2231794.75 | D16: =$C$16/12 -> 185982.8958 | E16: =$C$16/12 -> 185982.8958 | F16: 185982.8958 | G16: 185982.8958 | H16: 185982.8958 | I16: 185982.8958 | J16: 185982.8958 | K16: 185982.8958 | L16: 185982.8958 | M16: 185982.8958 | N16: 185982.8958 | O16: 185982.8958
A17: 9 | B17: ='Orç. AP - Tot. Rev - Sintético'!E92 -> URBANIZAÇÃO | C17: ='Orç. AP - Tot. Rev - Sintético'!J92 -> 249848.1 | D17: =$C$17/12 -> 20820.675 | E17: =$C$17/12 -> 20820.675 | F17: 20820.675 | G17: 20820.675 | H17: 20820.675 | I17: 20820.675 | J17: 20820.675 | K17: 20820.675 | L17: 20820.675 | M17: 20820.675 | N17: 20820.675 | O17: 20820.675
A18: 10 | B18: ='Orç. AP - Tot. Rev - Sintético'!E97 -> OUTROS SERVIÇOS | C18: ='Orç. AP - Tot. Rev - Sintético'!J97 -> 104835.98 | D18: =$C$18/12 -> 8736.331667 | E18: =$C$18/12 -> 8736.331667 | F18: 8736.331667 | G18: 8736.331667 | H18: 8736.331667 | I18: 8736.331667 | J18: 8736.331667 | K18: 8736.331667 | L18: 8736.331667 | M18: 8736.331667 | N18: 8736.331667 | O18: 8736.331667
A19: TOTAL | C19: =SUM(C9:C18) -> 9535666.42 | D19: =SUM(D9:D18) -> 794638.8683 | E19: =SUM(E9:E18) -> 794638.8683 | F19: 794638.8683 | G19: 794638.8683 | H19: 794638.8683 | I19: 794638.8683 | J19: 794638.8683 | K19: 794638.8683 | L19: 794638.8683 | M19: 794638.8683 | N19: 794638.8683 | O19: 794638.8683
A20: PERCENTUAL | D20: =D19/$C$19 -> 0.08333333333 | E20: 0.08333333333 | F20: 0.08333333333 | G20: 0.08333333333 | H20: 0.08333333333 | I20: 0.08333333333 | J20: 0.08333333333 | K20: 0.08333333333 | L20: 0.08333333333 | M20: 0.08333333333 | N20: 0.08333333333 | O20: 0.08333333333
A21: CUSTO ACUMULADO | D21: =D19 -> 794638.8683 | E21: =E19+D21 -> 1589277.737 | F21: =F19+E21 -> 2383916.605 | G21: 3178555.473 | H21: 3973194.342 | I21: 4767833.21 | J21: 5562472.078 | K21: 6357110.947 | L21: 7151749.815 | M21: 7946388.683 | N21: 8741027.552 | O21: 9535666.42
A22: PERCENTUAL ACUMULADO | D22: =D20 -> 0.08333333333 | E22: =E20+D22 -> 0.1666666667 | F22: 0.25 | G22: 0.3333333333 | H22: 0.4166666667 | I22: 0.5 | J22: 0.5833333333 | K22: 0.6666666667 | L22: 0.75 | M22: 0.8333333333 | N22: 0.9166666667 | O22: 1

Sheet CAPA GO
B17: EXECUÇÃO DE SERVIÇOS DE PERFURAÇÃO E INSTALAÇÃO DE POÇOS TUBULARES NO GOIÁS.

Sheet Planilha Resumo GO
B2: OBJETO: EXECUÇÃO DE SERVIÇOS DE PERFURAÇÃO E INSTALAÇÃO DE POÇOS TUBULARES EM MUNICÍPIOS LOCALIZADOS NOS ESTADOS DO GOIÁS, NA ÁREA DE ATUAÇÃO DA CODEVASF
B3: DATABASE DO ORÇAMENTO: NOVEMBRO/2023 - NÃO DESONERADO
B4: PLANILHA RESUMIDA GO
B5: ITEM | C5: DISCRIMINAÇÃO | D5: UND | E5: QUANT | F5: UNITÁRIO | G5: TOTAL
B6: 3 | C6: Perfuração e instalação de poço tubular parcialmente revestido, instalado com sistema fotovoltaico, bomba submersa, reservatório e bebedouro para animais. | D6: un | E6: ='Orç. GO - Parc. Rev - Sintético'!K3 -> 88 | F6: ='Orç. GO - Parc. Rev - Sintético'!I3 -> 107684.09 | G6: ='Orç. GO - Parc. Rev - Sintético'!J97 -> 9476199.6
B7: 4 | C7: Perfuração e instalação de poços poço tubular totalmente revestido, instalado com sistema fotovoltaico, bomba submersa, reservatório e bebedouro para animais. | D7: un | E7: ='Orç. GO - Tot. Rev - Sintético'!K3 -> 12 | F7: ='Orç. GO - Tot. Rev - Sintético'!I3 -> 160772.49 | G7: ='Orç. GO - Tot. Rev - Sintético'!J101 -> 1929269.92
B8: TOTAL GERAL ESTIMADO - GRUPO 02 | D8: un | E8: =SUM(E6:E7) -> 100 | G8: =SUM(G6:G7) -> 11405469.52

Sheet Orç. GO - Parc. Rev - Sintético
H1: B.D.I. SERVIÇOS | I1: B.D.I. MATERIAIS | J1: ENCARGOS SOCIAIS
A2: ='Planilha Resumo GO'!B2 -> OBJETO: EXECUÇÃO DE SERVIÇOS DE PERFURAÇÃO E INSTALAÇÃO DE POÇOS TUBULARES EM MUNICÍPIOS LOCALIZADOS NOS ESTADOS DO GOIÁS, NA ÁREA DE ATUAÇÃO DA CODEVASF | H2: 25,47% | I2: 0.1528 | J2: Não Desonerado: embutido nos preços unitário dos insumos de mão de obra, de acordo com as bases.
H3: VALOR UNITÁRIO POR POÇO | I3: =ROUND(J97/K3,2) -> 107684.09 | J3: QUANTIDADE DE POÇOS | K3: 88
A4: PLANILHA ORÇAMENTÁRIA SINTÉTICA – POÇO PARCIALMENTE REVESTIDO
A5: Item | B5: Código | C5: Serviço / Material | D5: Banco | E5: Descrição | F5: Und | G5: Quant. | H5: Valor Unit | I5: Valor Unit com BDI | J5: Total | K5: Peso (%)
A6: 1 | E6: SERVIÇOS PRELIMINARES | J6: =SUM(J7:J9) -> 175693.6 | K6: =J6/$J$97 -> 0.0185405128
A7: 1.1 | B7: COMPOSIÇÃO - 001 | C7: Serviço | D7: Próprio | E7: Administração Local da Obra - Poço Parcialmente Revestido | F7: un | G7: 1 | H7: 72789.58286 | I7: 91329.09 | J7: 91329.09 | K7: =J7/$J$97 -> 0.009637733886
A8: 1.2 | B8: COMPOSIÇÃO - 003 | C8: Serviço | D8: Próprio | E8: Serviço de locação Geológica de campo com relatório hidro geológico e perfil construtivo e geológico esperado. Relatório de Viabilidade de implantação das estruturas e vistorias preliminares | F8: un | G8: 88 | H8: 498.2 | I8: 625.09 | J8: 55007.92 | K8: =J8/$J$97 -> 0.00580485029
A9: 1.3 | B9: COMPOSIÇÃO - 005 | C9: Serviço | D9: Próprio | E9: Placa da Obra - Padrão Governo Federal | F9: m² | G9: 63.36 | H9: 369.2741 | I9: 463.33 | J9: 29356.59 | K9: =J9/$J$97 -> 0.003097928625
A10: 2 | E10: MOBILIZAÇÂO E DESMOBILIZAÇÂO EQUIPES DE PERFURAÇÂO E INSTALAÇÃO | J10: 205497.6 | K10: =J10/$J$97 -> 0.0216856555
A11: 2.1 | B11: COMPOSIÇÃO - 006 | C11: Serviço | D11: Próprio | E11: Transporte de Comboio Perfuração | F11: km | G11: 21120 | H11: 4.7745894 | I11: 5.99 | J11: 126508.8 | K11: 0.01335016202
A12: 2.2 | B12: COMPOSIÇÃO - 007 | C12: Serviço | D12: Próprio | E12: Transporte de Comboio Instalação | F12: km | G12: 10560 | H12: 5.96428 | I12: 7.48 | J12: 78988.8 | K12: 0.008335493482
A13: 3 | E13: PERFURAÇÃO E COMPLETAÇÃO DE POÇO TUBULAR | J13: 3832170.18 | K13: 0.4043994789
A14: 3.1 | B14: COMPOSIÇÃO - 009 | C14: Serviço | D14: Próprio | E14: Limpeza manual , remoção de cerca, capina e instalação dos equipamentos (área do poço, painéis solares, bebedouro e reservatório) | F14: m² | G14: 6160 | H14: 1.55 | I14: 1.94 | J14: 11950.4 | K14: 0.001261096273
A15: 3.2 | B15: COMPOSIÇÃO - 013 | C15: Serviço | D15: Próprio | E15: Perfuração em material inconsolidado Ø 8 1/2" | F15: m | G15: 4400 | H15: 214.416 | I15: 269.03 | J15: 1183732 | K15: 0.1249163219
A16: 3.3 | B16: COMPOSIÇÃO - 010 | C16: Serviço | D16: Próprio | E16: Perfuração roto pneumática utilizando martelo de fundo (DTH) em rocha Ø 6 1/8" em rocha | F16: m | G16: 8800 | H16: 172.24 | I16: 216.11 | J16: 1901768 | K16: 0.2006888922
A17: 3.4 | B17: 00009854 | C17: Material | D17: SINAPI | E17: Tubo pvc de revestimento geomecanico nervurado standard, dn=154mm, comprimento=2m | F17: m | G17: 4400 | H17: 115.12 | I17: 132.71 | J17: 583924 | K17: 0.06162006127
A18: 3.5 | B18: COMPOSIÇÃO - 011 | C18: Serviço | D18: Próprio | E18: Serviço de lançamento cimentação anelar poço tubular, incluso material. | F18: m³ | G18: 80.96 | H18: 792.04 | I18: 993.77 | J18: 80455.62 | K18: 0.008490283383
A19: 3.6 | B19: COMPOSIÇÃO - 014 | C19: Serviço | D19: Próprio | E19: Serviço de instalação de laje sanitária com dimensões (1,5x1,5x0,3) , incluso material. | F19: un | G19: 88 | H19: 637.06 | I19: 799.32 | J19: 70340.16 | K19: 0.007422823808
A20: 4 | E20: PÓS PERFURAÇÃO | J20: 975540.58 | K20: 0.1029463942
A21: 4.1 | B21: 6305 | C21: Serviço | D21: ORSE | E21: Serviço de desenvolvimento com compressor 250psi / 750cfm | F21: h | G21: 352 | H21: 411.16 | I21: 515.88 | J21: 181589.76 | K21: 0.01916272004
A22: 4.2 | B22: 6312 | C22: Serviço | D22: ORSE | E22: Serviço de análise físico-química da Água incluso coleta, transporte e analise | F22: un | G22: 88 | H22: 565.21 | I22: 709.17 | J22: 62406.96 | K22: 0.006585652755
A23: 4.3 | B23: COMPOSIÇÃO - 015 | C23: Serviço | D23: Próprio | E23: Inspeção ótica em poço tubular câmera com rotação de 360º, visada lateral, com fonte própria de luz, entregue vídeo em cores e marcação de profundidades. | F23: m | G23: 5250.08 | H23: 38.05 | I23: 47.74 | J23: 250638.82 | K23: 0.02644929725
A24: 4.4 | B24: 6314 | C24: Serviço | D24: ORSE | E24: Ensaio de Bombeamento com bomba submersível | F24: h | G24: 616 | H24: 622.21 | I24: 780.69 | J24: 480905.04 | K24: 0.0507487242
A25: 5 | E25: RESERVAÇÃO | J25: 551882.39 | K25: 0.0582387891
A26: 5.1 | B26: COMPOSIÇÃO - 016 | C26: Serviço | D26: Próprio | E26: Execução e instalação de base de sustentação em concreto armado para reservatório de diâmetro 2,06m e altura 1,10m, conforme projeto, incluindo fixação de grampos da tampa. | F26: un | G26: 88 | H26: 2834.04 | I26: 3555.87 | J26: 312916.56 | K26: =J26/$J$97 -> 0.03302131373
A27: 5.2 | B27: 00037105 | C27: Material | D27: SINAPI | E27: Fornecimento de caixa d'agua / reservatorio em poliester reforcado com fibra de vidro, 5000 litros, com tampa | F27: un | G27: 88 | H27: 2270.66 | I27: 2617.62 | J27: 230350.56 | K27: =J27/$J$97 -> 0.02430832715
A28: 5.3 | B28: 13960 | C28: Material | D28: ORSE | E28: Fornecimento de cabo de aço 1/8" sem revestimento ( rolo c/ 100 mt) rolo | F28: rolo | G28: 7.04 | H28: 261.33 | I28: 301.26 | J28: 2120.87 | K28: 0.0002238101865
A29: 5.4 | B29: 094248 | C29: Material | D29: SBC | E29: Fornecimento de esticador olhal com gancho de 1/4" 6,35 mm vonder | F29: un | G29: 352 | H29: 13.05 | I29: 15.04 | J29: 5294.08 | K29: 0.0005586712209
A30: 5.5 | B30: 002048 | C30: Material | D30: SBC | E30: Fornecimento de grampo (clip) para cabo de aco pesado 1/8" | F30: un | G30: 352 | H30: 2.96 | I30: 3.41 | J30: 1200.32 | K30: 0.0001266668127
A31: 6 | E31: BEBEDOURO | J31: 175663.84 | K31: 0.0185373723
A32: 6.1 | B32: COMPOSIÇÃO - 017 | C32: Serviço | D32: Próprio | E32: Serviço de execução do bebedouro em concreto armado, incluso materiais. | F32: un | G32: 88 | H32: 1590.96 | I32: 1996.18 | J32: 175663.84 | K32: =J32/$J$97 -> 0.0185373723
A33: 7 | E33: INSTALAÇÕES HIDRÁULICAS | J33: 327603.76 | K33: 0.03457121777
A34: 7.1 | E34: INSTALAÇÕES DE CAVALETE | J34: 123700.72 | K34: 0.01305383226
A35: 7.1.1 | B35: COMPOSIÇÃO - 018 | C35: Serviço | D35: Próprio | E35: Montagem e Instalação de Tubulação e Conexões Cavalete | F35: un | G35: 88 | H35: 280.91 | I35: 352.46 | J35: 31016.48 | K35: =J35/$J$97 -> 0.003273092728
A36: 7.1.2 | B36: 00001796 | C36: Material | D36: SINAPI | E36: Fornecimento de curva 90 graus de ferro galvanizado, com rosca bsp macho, de 1 1/4" | F36: un | G36: 88 | H36: 77.17 | I36: 88.96 | J36: 7828.48 | K36: =J36/$J$97 -> 0.0008261202096
A37: 7.1.3 | B37: 00009888 | C37: Material | D37: SINAPI | E37: Fornecimento de uniao de ferro galvanizado, com rosca bsp, com assento plano, de 1 1/4" | F37: un | G37: 88 | H37: 62.13 | I37: 71.62 | J37: 6302.56 | K37: 0.000665093631
A38: 7.1.4 | B38: 00004180 | C38: Material | D38: SINAPI | E38: Fornecimento de niple de ferro galvanizado, com rosca bsp, de 1 1/4" | F38: un | G38: 176 | H38: 18.99 | I38: 21.89 | J38: 3852.64 | K38: 0.0004065596086
A39: 7.1.5 | B39: 00006017 | C39: Material | D39: SINAPI | E39: Fornecimento de registro gaveta bruto em latao forjado, bitola 1 1/4 " (ref 1509) | F39: un | G39: 88 | H39: 84.69 | I39: 97.63 | J39: 8591.44 | K39: 0.0009066334989
A40: 7.1.6 | B40: 00000789 | C40: Material | D40: SINAPI | E40: Fornecimento de bucha de reducao de ferro galvanizado, com rosca bsp, de 1 1/4" x 1" | F40: un | G40: 88 | H40: 17.76 | I40: 20.47 | J40: 1801.36 | K40: 0.0001900930833
A41: 7.1.7 | B41: 12438 | C41: Material | D41: ORSE | E41: Fornecimento de hidrômetro multijato d= 3/4", vazão = 5,0m3/h | F41: un | G41: 88 | H41: 298.26 | I41: 343.83 | J41: 30257.04 | K41: 0.003192950896
A42: 7.1.8 | B42: 00009861 | C42: Material | D42: SINAPI | E42: Fornecimento de tubo pvc, roscavel, 1 1/4", agua fria predial | F42: m | G42: 132 | H42: 31.11 | I42: 35.86 | J42: 4733.52 | K42: 0.000499516705
A43: 7.1.9 | B43: 002116 | C43: Material | D43: SBC | E43: Fornecimento de te de reducao ferro galvanizado 1.1/4" x 1/2" | F43: un | G43: 88 | H43: 40.49 | I43: 46.68 | J43: 4107.84 | K43: 0.0004334902359
A44: 7.1.10 | B44: 00011831 | C44: Material | D44: SINAPI | E44: Fornecimento de torneira plastica para tanque 1/2 " ou 3/4 " com bico para mangueira | F44: un | G44: 88 | H44: 14.92 | I44: 17.2 | J44: 1513.6 | K44: 0.0001597264794
A45: 7.1.11 | B45: 1158 | C45: Material | D45: ORSE | E45: Fornecimento de joelho 45° ferro galvanizado d=1 1/ 4" un | F45: un | G45: 176 | H45: 32.17 | I45: 37.09 | J45: 6527.84 | K45: 0.0006888668744
A46: 7.1.12 | B46: 00004205 | C46: Material | D46: SINAPI | E46: Fornecimento de niple de reducao de ferro galvanizado, com rosca bsp, de 1 1/2" x 1 1/4" | F46: un | G46: 88 | H46: 33.32 | I46: 38.41 | J46: 3380.08 | K46: 0.0003566915159
A47: 7.1.13 | B47: 00003939 | C47: Material | D47: SINAPI | E47: Fornecimento de luva de ferro galvanizado, com rosca bsp, de 1 1/2" | F47: un | G47: 88 | H47: 25.6 | I47: 29.51 | J47: 2596.88 | K47: 0.0002740423492
A48: 7.1.14 | B48: 9569 | C48: Material | D48: ORSE | E48: Fornecimento de adaptador pvc bsxrm d= 35mm x 1 1/2", linha irriga-lf, tigre ou similar | F48: un | G48: 88 | H48: 3.04 | I48: 3.5 | J48: 308 | K48: 3.250248127e-05
A49: 7.1.15 | B49: 5128 | C49: Material | D49: ORSE | E49: Fornecimento de tampa de poço galvanizada em 6" | F49: un | G49: 88 | H49: 107.28 | I49: 123.67 | J49: 10882.96 | K49: 0.00114845196
A50: 7.2 | E50: INSTALAÇÕES DE ADUTORA, RESERVATÓRIO E BEBEDOURO | J50: 203903.04 | K50: 0.02151738551
A51: 7.2.1 | B51: COMPOSIÇÃO - 020 | C51: Serviço | D51: Próprio | E51: Montagem e instalação da rede adutora poço-reservatório-bebedouro | F51: un | G51: 88 | H51: 1081.63 | I51: 1357.12 | J51: 119426.56 | K51: =J51/$J$97 -> 0.01260279068
A52: 7.2.2 | B52: 9501 | C52: Material | D52: ORSE | E52: Fornecimento de tubo PVC p/irrigação LF PN 60 JE Ø 35mm, linha Irriga-LF, Tigre ou similar m | F52: m | G52: 3520 | H52: 13.06 | I52: 15.06 | J52: 53011.2 | K52: =J52/$J$97 -> 0.005594141348
A53: 7.2.3 | B53: 9516 | C53: Material | D53: ORSE | E53: Fornecimento de curva 90º pvc PTA/BSA soldavel d= 35mm, linha Irriga-LF, Tigre ou similar un | F53: un | G53: 352 | H53: 10.76 | I53: 12.4 | J53: 4364.8 | K53: 0.0004606065917
A54: 7.2.4 | B54: 00000098 | C54: Material | D54: SINAPI | E54: Fornecimento de adaptador pvc soldavel, com flange e anel de vedacao, 40 mm x 1 1/4", para caixa d'água | F54: un | G54: 176 | H54: 35.08 | I54: 40.44 | J54: 7117.44 | K54: 0.00075108591
A55: 7.2.5 | B55: 8013 | C55: Material | D55: ORSE | E55: Fornecimento de registro esfera vs soldável para irrigação ø 35mm pç | F55: pç | G55: 88 | H55: 37.26 | I55: 42.95 | J55: 3779.6 | K55: 0.0003988518773
A56: 7.2.6 | B56: 00000096 | C56: Material | D56: SINAPI | E56: Fornecimento de adaptador pvc soldavel, com flange e anel de vedacao, 25 mm x 3/4", para caixa d'água | F56: un | G56: 264 | H56: 15.57 | I56: 17.95 | J56: 4738.8 | K56: 0.0005000738904
A57: 7.2.7 | B57: 14071 | C57: Material | D57: ORSE | E57: Fornecimento de tubo pvc para irrigação lf pn 60 ø 25mm, linha irriga-lf, tigre ou similar m | F57: m | G57: 176 | H57: 4.02 | I57: 4.63 | J57: 814.88 | K57: 8.599227901e-05
A58: 7.2.8 | B58: 14082 | C58: Material | D58: ORSE | E58: Fornecimento de registro esfera lf 25mm | F58: pç | G58: 176 | H58: 11.08 | I58: 12.77 | J58: 2247.52 | K58: 0.000237175249
A59: 7.2.9 | B59: 00003529 | C59: Material | D59: SINAPI | E59: Fornecimento de joelho pvc, soldavel, 90 graus, 25 mm, cor marrom, para agua fria predial | F59: un | G59: 176 | H59: 0.92 | I59: 1.06 | J59: 186.56 | K59: 1.968721723e-05
A60: 7.2.10 | B60: 00003535 | C60: Material | D60: SINAPI | E60: Fornecimento de joelho pvc, soldavel, 90 graus, 40 mm, cor marrom, para agua fria predial | F60: un | G60: 88 | H60: 7.46 | I60: 8.6 | J60: 756.8 | K60: 7.986323969e-05
A61: 7.2.11 | B61: 00000109 | C61: Material | D61: SINAPI | E61: Fornecimento de adaptador pvc soldavel curto com bolsa e rosca, 40 mm x 1 1/4", para agua fria | F61: un | G61: 88 | H61: 4.68 | I61: 5.4 | J61: 475.2 | K61: 5.014668539e-05
A62: 7.2.12 | B62: 00011830 | C62: Material | D62: SINAPI | E62: Fornecimento de torneira de boia convencional para caixa d'agua, agua fria, 3/4", com haste e torneira metalicos e balao plastico | F62: un | G62: 88 | H62: 68.84 | I62: 79.36 | J62: 6983.68 | K62: 0.0007369705467
A63: 8 | E63: FORNECIMENTO E INSTALAÇÃO DE SISTEMA FOTOVOLTAÍCO | J63: 2676658.21 | K63: 0.2824611472
A64: 8.1 | E64: INSTALAÇÕES HIDRÁULICAS | J64: 267465.72 | K64: 0.02822499855
A65: 8.1.1 | B65: COMPOSIÇÃO - 019 | C65: Serviço | D65: Próprio | E65: Montagem e instalação hidráulica do kit de bombeamento | F65: un | G65: 88 | H65: 141.42 | I65: 177.44 | J65: 15614.72 | K65: =J65/$J$97 -> 0.001647782936
A66: 8.1.2 | B66: 00038200 | C66: Material | D66: SINAPI | E66: Fornecimento de corda de poliamida 12 mm tipo bombeiro, para trabalho em altura | F66: 100M | G66: 55.44 | H66: 582.62 | I66: 671.64 | J66: 37235.72 | K66: =J66/$J$97 -> 0.003929393805
A67: 8.1.3 | B67: 00009861 | C67: Material | D67: SINAPI | E67: Fornecimento de tubo pvc, roscavel, 1 1/4", agua fria predial | F67: m | G67: 5280 | H67: 31.11 | I67: 35.86 | J67: 189340.8 | K67: 0.0199806682
A68: 8.1.4 | B68: 00004180 | C68: Material | D68: SINAPI | E68: Fornecimento de niple de ferro galvanizado, com rosca bsp, de 1 1/4" | F68: un | G68: 88 | H68: 18.99 | I68: 21.89 | J68: 1926.32 | K68: 0.0002032798043
A69: 8.1.5 | B69: 00003911 | C69: Material | D69: SINAPI | E69: Fornecimento de luva de ferro galvanizado, com rosca bsp, de 1 1/4" | F69: un | G69: 968 | H69: 20.92 | I69: 24.12 | J69: 23348.16 | K69: 0.002463873809
A70: 8.2 | E70: INSTALAÇÕES ELÉTRICAS | J70: 246848.57 | K70: 0.0260493215
A71: 8.2.1 | B71: COMPOSIÇÃO - 021 | C71: Serviço | D71: Próprio | E71: Montagem e instalação elétrica do kit de bombeamento e sistema fotovoltaico inclusive sistema de aterramento. | F71: un | G71: 88 | H71: 520.5 | I71: 653.07 | J71: 57470.16 | K71: =J71/$J$97 -> 0.006064684412
A72: 8.2.2 | B72: 00002674 | C72: Material | D72: SINAPI | E72: Fornecimento de eletroduto de pvc rigido roscavel de 3/4 ", sem luva | F72: m | G72: 1320 | H72: 4.52 | I72: 5.21 | J72: 6877.2 | K72: =J72/$J$97 -> 0.0007257339746
A73: 8.2.3 | B73: 00034622 | C73: Material | D73: SINAPI | E73: Fornecimento de cabo flexivel pvc 750 v, 3 condutores de 6,0 mm2 | F73: m | G73: 6600 | H73: 18.49 | I73: 21.32 | J73: 140712 | K73: 0.01484899073
A74: 8.2.4 | B74: 00012034 | C74: Material | D74: SINAPI | E74: Fornecimento de curva 180 graus, de pvc rigido roscavel, de 3/4", para eletroduto | F74: un | G74: 88 | H74: 2.88 | I74: 3.32 | J74: 292.16 | K74: 3.083092509e-05
A75: 8.2.5 | B75: 00039272 | C75: Material | D75: SINAPI | E75: Fornecimento de curva 90 graus, curta, de pvc rigido roscavel, de 3/4", para eletroduto | F75: un | G75: 176 | H75: 1.57 | I75: 1.81 | J75: 318.56 | K75: 3.361685206e-05
A76: 8.2.6 | B76: 00003379 | C76: Material | D76: SINAPI | E76: Fornecimento de haste de aterramento em aco com 3,00 m de comprimento e dn = 5/8", revestida com baixa camada de cobre, sem conector | F76: un | G76: 58.96 | H76: 74.36 | I76: 85.72 | J76: 5054.05 | K76: 0.0005333414463
A77: 8.2.7 | B77: 00001891 | C77: Material | D77: SINAPI | E77: Fornecimento de luva em pvc rigido roscavel, de 3/4", para eletroduto | F77: un | G77: 792 | H77: 0.73 | I77: 0.84 | J77: 665.28 | K77: 7.020535954e-05
A78: 8.2.8 | B78: 00000425 | C78: Material | D78: SINAPI | E78: Fornecimento de grampo metalico tipo olhal para haste de aterramento de 5/8'', condutor de *10* a 50 mm2 | F78: un | G78: 176 | H78: 7.05 | I78: 8.13 | J78: 1430.88 | K78: 0.0001509972416
A79: 8.2.9 | B79: 00034643 | C79: Material | D79: SINAPI | E79: Fornecimento de caixa de inspecao para aterramento e para raios, em polipropileno, diametro = 300 mm x altura = 400 mm | F79: un | G79: 176 | H79: 38.35 | I79: 44.21 | J79: 7780.96 | K79: 0.0008211055411
A80: 8.2.10 | B80: 00000867 | C80: Material | D80: SINAPI | E80: Fornecimento de cabo de cobre nu 50 mm2 meio-duro | F80: m | G80: 484 | H80: 47.04 | I80: 54.23 | J80: 26247.32 | K80: 0.002769815022
A81: 8.3 | E81: ESTRUTURA DE FIXAÇÃO PARA MÓDULOS FOTOVOLTAICOS | J81: 192072.32 | K81: 0.02026891878
A82: 8.3.1 | B82: COMPOSIÇÃO - 022 | C82: Serviço | D82: Próprio | E82: Serviço de fixação de estruturas para os módulos fotovoltaicos e suportes de concreto, incluso materiais. | F82: m² | G82: 704 | H82: 217.45 | I82: 272.83 | J82: 192072.32 | K82: =J82/$J$97 -> 0.02026891878
A83: 8.4 | E83: FORNECIMENTO DE KIT DE BOMBEAMENTO FOTOVOLTAICO | J83: 1970271.6 | K83: 0.2079179084
A84: 8.4.1 | B84: COTAÇÃO-002 | C84: Material | D84: Próprio | E84: Fornecimento de kit de bombeamento fotovoltaico, incluindo uma bomba CC de 1500W com imã permanente e sem escovas, controladora de carga, disjuntor CC adequado, caixa de proteção metálica, módulos compatíveis com a geração de 2200Wp (potência mínima de 550 W por módulo) e componentes elétricos necessários como cabos, conectores MC4 e presilhas de fixação. | F84: un | G84: 88 | H84: 19421.8 | I84: 22389.45 | J84: 1970271.6 | K84: 0.2079179084
A85: 9 | E85: URBANIZAÇÃO | J85: 326901.08 | K85: 0.03449706568
A86: 9.1 | E86: CERCA | J86: 244576.64 | K86: 0.02580957033
A87: 9.1.1 | B87: COMPOSIÇÃO - 023 | C87: Serviço | D87: Próprio | E87: Cerca com mourões de concreto de 15x15cm, espaçados de 3m e cravados a 0,5m, escoras de 10x10cm nos cantos, e 9 fios de arame de aço ovalado 15x17. | F87: m | G87: 2464 | H87: 79.11 | I87: 99.26 | J87: 244576.64 | K87: =J87/$J$97 -> 0.02580957033
A88: 9.2 | E88: PORTÃO | J88: 82324.44 | K88: 0.008687495354
A89: 9.2.1 | B89: COMPOSIÇÃO - 024 | C89: Serviço | D89: Próprio | E89: Serviço de instalação de portão de ferro com suporte e batedor conforme projeto, incluso material | F89: m² | G89: 132 | H89: 497.07 | I89: 623.67 | J89: 82324.44 | K89: =J89/$J$97 -> 0.008687495354
A90: 10 | E90: OUTROS SERVIÇOS | J90: 228588.36 | K90: 0.02412236652
A91: 10.1 | B91: COMPOSIÇÃO - 025 | C91: Serviço | D91: Próprio | E91: Serviço de lançamento de concreto para acabamento do tamponamento, incluso material. | F91: m³ | G91: 9.56 | H91: 755.54 | I91: 947.98 | J91: 9062.69 | K91: =J91/$J$97 -> 0.0009563633506
A92: 10.2 | B92: COMPOSIÇÃO - 026 | C92: Serviço | D92: Próprio | E92: Serviço de execução do tamponamento, incluso pedra britada desinfectada. | F92: m³ | G92: 9.56 | H92: 143.21 | I92: 179.69 | J92: 1717.84 | K92: 0.0001812794235
A93: 10.5 | B93: M3929 | C93: Material | D93: SICRO3 | E93: Fornecimento de tubo em aço-carbono - E = 3,00 mm e D = 150 mm (6”) | F93: m | G93: 750 | H93: 169.1048 | I93: 194.94 | J93: 146205 | K93: 0.01542865349
A94: 10.6 | B94: COTAÇÃO-007 | C94: Material | D94: Próprio | E94: Fornecimento de tubo de revestimento geomecânico classe standart Ø 4" com junta roscável. | F94: m | G94: 500 | H94: 82.5 | I94: 95.11 | J94: 47555 | K94: 0.005018362002
A95: 10.7 | B95: COTAÇÃO-005 | C95: Material | D95: Próprio | E95: Fornecimento tubo filtro geomecânico classe standart Ø 4" com junta roscável. | F95: m | G95: 100 | H95: 86.02 | I95: 99.16 | J95: 9916 | K95: 0.001046411053
A96: 10.8 | B96: 5073 | C96: Material | D96: ORSE | E96: Fornecimento de Pré-filtro comum | F96: m³ | G96: 7.57 | H96: 1619.38 | I96: 1866.82 | J96: 14131.83 | K96: 0.001491297207
I97: Total | J97: =SUM(J90,J85,J63,J33,J31,J25,J20,J13,J10,J6) -> 9476199.6
A100: _______________________________________________________________ Cássio Oliveira Lopes Analista em Desenvolvimento Regional - AR/GSA/UAS CODEVASF – SEDE _______________________________________________________________ Catheriny Soares Andrade Moraes Analista em Desenvolvimento Regional - AR/GSA/UAS CODEVASF – SEDE _______________________________________________________________ Iago Guilherme dos Santos Engenheiro Pleno - AR/GSA/UAS Engeplus Engenharia e Consultoria LTDA _______________________________________________________________ Micheline Mirapalheta Dias Engenheiro Sênior - AR/GSA/UAS Engeplus Engenharia e Consultoria LTDA

Sheet Orç. GO - Parc. Rev - Analítico
J1: ENCARGOS SOCIAIS
B2: ='Planilha Resumo GO'!B2 -> OBJETO: EXECUÇÃO DE SERVIÇOS DE PERFURAÇÃO E INSTALAÇÃO DE POÇOS TUBULARES EM MUNICÍPIOS LOCALIZADOS NOS ESTADOS DO GOIÁS, NA ÁREA DE ATUAÇÃO DA CODEVASF | J2: Não Desonerado: embutido nos preços unitário dos insumos de mão de obra, de acordo com as bases.
B3: PLANILHA ORÇAMENTÁRIA ANALÍTICA – POÇO PARCIALMENTE REVESTIDO
B4: 1 | E4: SERVIÇOS PRELIMINARES | K4: 2111.3
B5: 1.1 | C5: Código | D5: Banco | E5: Descrição | F5: Tipo | H5: Und | I5: Quant. | J5: Valor Unit | K5: Total
B6: Composição | C6: COMPOSIÇÃO - 001 | D6: Próprio | E6: Administração Local da Obra - Poço Parcialmente Revestido | F6: SERP - SERVIÇOS PRELIMINARES | H6: un | I6: 1 | J6: =K6 -> 72789.58286 | K6: =SUM(K7:K13) -> 72789.58286
B7: Composição Auxiliar | C7: 92138 | D7: SINAPI | E7: CAMINHONETE COM MOTOR A DIESEL, POTÊNCIA 180 CV, CABINE DUPLA, 4X4 - CHP DIURNO. AF_11/2015 | F7: CHOR - CUSTOS HORÁRIOS DE MÁQUINAS E EQUIPAMENTOS | H7: CHP | I7: 77.14285714 | J7: 97.22 | K7: =J7*I7 -> 7499.828571
B8: Composição Auxiliar | C8: 92139 | D8: SINAPI | E8: CAMINHONETE COM MOTOR A DIESEL, POTÊNCIA 180 CV, CABINE DUPLA, 4X4 - CHI DIURNO. AF_11/2015 | F8: CHOR - CUSTOS HORÁRIOS DE MÁQUINAS E EQUIPAMENTOS | H8: CHI | I8: 94.28571429 | J8: 45.24 | K8: =J8*I8 -> 4265.485714
B9: Composição Auxiliar | C9: 93572 | D9: SINAPI | E9: ENCARREGADO GERAL DE OBRAS COM ENCARGOS COMPLEMENTARES | F9: SEDI - SERVIÇOS DIVERSOS | H9: MES | I9: 1.714285714 | J9: 5993.49 | K9: 10274.55429
B10: Composição Auxiliar | C10: 93565 | D10: SINAPI | E10: ENGENHEIRO CIVIL DE OBRA JUNIOR COM ENCARGOS COMPLEMENTARES | F10: SEDI - SERVIÇOS DIVERSOS | H10: MES | I10: 2.285714286 | J10: 20464.3 | K10: 46775.54286
B11: Insumo | C11: 00014250 | D11: SINAPI | E11: ENERGIA ELETRICA COMERCIAL, BAIXA TENSAO, RELATIVA AO CONSUMO DE ATE 100 KWH, INCLUINDO ICMS, PIS/PASEP E COFINS | F11: Material | H11: KWH | I11: 800 | J11: 0.85 | K11: =J11*I11 -> 680
B12: Insumo | C12: 00044480 | D12: SINAPI | E12: TARIFA "A" ENTRE 0 E 20M3 FORNECIMENTO D'AGUA | F12: Taxas | H12: m³ | I12: 34.28571429 | J12: 16.08 | K12: =J12*I12 -> 551.3142857
B13: Insumo | C13: 4298 | D13: ORSE | E13: Aluguel de container - Escritório com banheiro - 6,20 x 2,40m, equipado com Ar condicionado mês | F13: Serviços | H13: mês | I13: 1.714285714 | J13: 1600 | K13: =J13*I13 -> 2742.857143
B15: 1.2 | C15: Código | D15: Banco | E15: Descrição | F15: Tipo | H15: Und | I15: Quant. | J15: Valor Unit | K15: Total
B16: Composição | C16: COMPOSIÇÃO - 003 | D16: Próprio | E16: Serviço de locação Geológica de campo com relatório hidro geológico e perfil construtivo e geológico esperado. Relatório de Viabilidade de implantação das estruturas e vistorias preliminares | F16: SERT - SERVIÇOS TÉCNICOS | H16: un | I16: 1 | J16: =K16 -> 498.2 | K16: =SUM(K17:K19) -> 498.2
B17: Composição Auxiliar | C17: 30.01.45 | D17: EMBASA | E17: GEOLOGO SENIOR | F17: 3001 | H17: hora | I17: 5 | J17: 79.73 | K17: =J17*I17 -> 398.65
B18: Insumo | C18: 5896 | D18: ORSE | E18: Veículo tipo sedan ou pick-up capacidade 0,6 ton h | F18: Equipamento | H18: h | I18: 5 | J18: 8.33 | K18: =J18*I18 -> 41.65
B19: Insumo | C19: 00004222 | D19: SINAPI | E19: GASOLINA COMUM | F19: Material | H19: L | I19: 10 | J19: 5.79 | K19: 57.9
B21: 1.3 | C21: Código | D21: Banco | E21: Descrição | F21: Tipo | H21: Und | I21: Quant. | J21: Valor Unit | K21: Total
B22: Composição | C22: COMPOSIÇÃO - 005 | D22: Próprio | E22: Placa da Obra - Padrão Governo Federal | F22: SEDI - SERVIÇOS DIVERSOS | H22: m² | I22: 1 | J22: =K22 -> 369.2741 | K22: =SUM(K23:K29) -> 369.2741
B23: Composição Auxiliar | C23: 88262 | D23: SINAPI | E23: CARPINTEIRO DE FORMAS COM ENCARGOS COMPLEMENTARES | F23: SEDI - SERVIÇOS DIVERSOS | H23: H | I23: 1 | J23: 28.3 | K23: =J23*I23 -> 28.3
B24: Composição Auxiliar | C24: 88316 | D24: SINAPI | E24: SERVENTE COM ENCARGOS COMPLEMENTARES | F24: SEDI - SERVIÇOS DIVERSOS | H24: H | I24: 2 | J24: 19.43 | K24: 38.86
B25: Composição Auxiliar | C25: 94975 | D25: SINAPI | E25: CONCRETO FCK = 15MPA, TRAÇO 1:3,4:3,5 (EM MASSA SECA DE CIMENTO/ AREIA MÉDIA/ BRITA 1) - PREPARO MANUAL. AF_05/2021 | F25: FUES - FUNDAÇÕES E ESTRUTURAS | H25: m³ | I25: 0.01 | J25: 504.84 | K25: 5.0484
B26: Insumo | C26: 00004491 | D26: SINAPI | E26: PONTALETE *7,5 X 7,5* CM EM PINUS, MISTA OU EQUIVALENTE DA REGIAO - BRUTA | F26: Material | H26: M | I26: 4 | J26: 9.35 | K26: =J26*I26 -> 37.4
B27: Insumo | C27: 00004813 | D27: SINAPI | E27: PLACA DE OBRA (PARA CONSTRUCAO CIVIL) EM CHAPA GALVANIZADA *N. 22*, ADESIVADA, DE *2,4 X 1,2* M (SEM POSTES PARA FIXACAO) | F27: Material | H27: m² | I27: 1 | J27: 250 | K27: 250
B28: Insumo | C28: 00005075 | D28: SINAPI | E28: PREGO DE ACO POLIDO COM CABECA 18 X 30 (2 3/4 X 10) | F28: Material | H28: KG | I28: 0.11 | J28: 21.87 | K28: 2.4057
B29: Insumo | C29: 00004417 | D29: SINAPI | E29: SARRAFO NAO APARELHADO *2,5 X 7* CM, EM MACARANDUBA/MASSARANDUBA, ANGELIM, PEROBA-ROSA OU EQUIVALENTE DA REGIAO - BRUTA | F29: Material | H29: M | I29: 1 | J29: 7.26 | K29: 7.26
B31: 2 | E31: MOBILIZAÇÂO E DESMOBILIZAÇÂO EQUIPES DE PERFURAÇÂO E INSTALAÇÃO | K31: 2332.8
B32: 2.1 | C32: Código | D32: Banco | E32: Descrição | F32: Tipo | H32: Und | I32: Quant. | J32: Valor Unit | K32: Total
B33: Composição | C33: COMPOSIÇÃO - 006 | D33: Próprio | E33: Transporte de Comboio Perfuração | F33: TRAN - TRANSPORTES, CARGAS E DESCARGAS | H33: km | I33: 1 | J33: =K33 -> 4.7745894 | K33: =SUM(K34:K35) -> 4.7745894
B34: Composição Auxiliar | C34: 5824 | D34: SINAPI | E34: CAMINHÃO TOCO, PBT 16.000 KG, CARGA ÚTIL MÁX. 10.685 KG, DIST. ENTRE EIXOS 4,8 M, POTÊNCIA 189 CV, INCLUSIVE CARROCERIA FIXA ABERTA DE MADEIRA P/ TRANSPORTE GERAL DE CARGA SECA, DIMEN. APROX. 2,5 X 7,00 X 0,50 M - CHP DIURNO. AF_06/2014 | F34: CHOR - CUSTOS HORÁRIOS DE MÁQUINAS E EQUIPAMENTOS | H34: CHP | I34: 0.01666 | J34: 221.84 | K34: =J34*I34 -> 3.6958544
B35: Composição Auxiliar | C35: 5826 | D35: SINAPI | E35: CAMINHÃO TOCO, PBT 16.000 KG, CARGA ÚTIL MÁX. 10.685 KG, DIST. ENTRE EIXOS 4,8 M, POTÊNCIA 189 CV, INCLUSIVE CARROCERIA FIXA ABERTA DE MADEIRA P/ TRANSPORTE GERAL DE CARGA SECA, DIMEN. APROX. 2,5 X 7,00 X 0,50 M - CHI DIURNO. AF_06/2014 | F35: CHOR - CUSTOS HORÁRIOS DE MÁQUINAS E EQUIPAMENTOS | H35: CHI | I35: 0.01666 | J35: 64.75 | K35: =J35*I35 -> 1.078735
B37: 2.2 | C37: Código | D37: Banco | E37: Descrição | F37: Tipo | H37: Und | I37: Quant. | J37: Valor Unit | K37: Total
B38: Composição | C38: COMPOSIÇÃO - 007 | D38: Próprio | E38: Transporte de Comboio Instalação | F38: TRAN - TRANSPORTES, CARGAS E DESCARGAS | H38: km | I38: 1 | J38: =K38 -> 5.96428 | K38: =SUM(K39:K40) -> 5.96428
B39: Composição Auxiliar | C39: 5928 | D39: SINAPI | E39: GUINDAUTO HIDRÁULICO, CAPACIDADE MÁXIMA DE CARGA 6200 KG, MOMENTO MÁXIMO DE CARGA 11,7 TM, ALCANCE MÁXIMO HORIZONTAL 9,70 M, INCLUSIVE CAMINHÃO TOCO PBT 16.000 KG, POTÊNCIA DE 189 CV - CHP DIURNO. AF_06/2014 | F39: CHOR - CUSTOS HORÁRIOS DE MÁQUINAS E EQUIPAMENTOS | H39: CHP | I39: 0.01666 | J39: 282.27 | K39: =J39*I39 -> 4.7026182
B40: Composição Auxiliar | C40: 5930 | D40: SINAPI | E40: GUINDAUTO HIDRÁULICO, CAPACIDADE MÁXIMA DE CARGA 6200 KG, MOMENTO MÁXIMO DE CARGA 11,7 TM, ALCANCE MÁXIMO HORIZONTAL 9,70 M, INCLUSIVE CAMINHÃO TOCO PBT 16.000 KG, POTÊNCIA DE 189 CV - CHI DIURNO. AF_06/2014 | F40: CHOR - CUSTOS HORÁRIOS DE MÁQUINAS E EQUIPAMENTOS | H40: CHI | I40: 0.01666 | J40: 75.73 | K40: 1.2616618
B42: 3 | E42: PERFURAÇÃO E COMPLETAÇÃO DE POÇO TUBULAR | K42: 37680.4
B43: 3.1 | C43: Código | D43: Banco | E43: Descrição | F43: Tipo | H43: Und | I43: Quant. | J43: Valor Unit | K43: Total
B44: Composição | C44: COMPOSIÇÃO - 009 | D44: Próprio | E44: Limpeza manual , remoção de cerca, capina e instalação dos equipamentos (área do poço, painéis solares, bebedouro e reservatório) | F44: SEDI - SERVIÇOS DIVERSOS | H44: m² | I44: 1 | J44: 1.55 | K44: 1.55
B45: Composição Auxiliar | C45: 88316 | D45: SINAPI | E45: SERVENTE COM ENCARGOS COMPLEMENTARES | F45: SEDI - SERVIÇOS DIVERSOS | H45: H | I45: 0.08 | J45: 19.43 | K45: 1.5544
B47: 3.2 | C47: Código | D47: Banco | E47: Descrição | F47: Tipo | H47: Und | I47: Quant. | J47: Valor Unit | K47: Total
B48: Composição | C48: COMPOSIÇÃO - 013 | D48: Próprio | E48: Perfuração em material inconsolidado Ø 8 1/2" | F48: SERT - SERVIÇOS TÉCNICOS | H48: m | I48: 1 | J48: =K48 -> 214.416 | K48: =SUM(K49:K51) -> 214.416
B49: Composição Auxiliar | C49: 88263 | D49: SINAPI | E49: CAVOUQUEIRO OU OPERADOR PERFURATRIZ/ROMPEDOR COM ENCARGOS COMPLEMENTARES | F49: SEDI - SERVIÇOS DIVERSOS | H49: H | I49: 0.2 | J49: 21.34 | K49: =J49*I49 -> 4.268
B50: Composição Auxiliar | C50: 88316 | D50: SINAPI | E50: SERVENTE COM ENCARGOS COMPLEMENTARES | F50: SEDI - SERVIÇOS DIVERSOS | H50: H | I50: 0.6 | J50: 19.43 | K50: 11.658
B51: Insumo | C51: 5071 | D51: ORSE | E51: Perfuração rocha sedimentar sedimento / camadas inconsolidadas dn 8.1/2 a 9.1/2" - até 150m m | F51: Serviços | H51: m | I51: 1 | J51: 198.49 | K51: 198.49
B53: 3.3 | C53: Código | D53: Banco | E53: Descrição | F53: Tipo | H53: Und | I53: Quant. | J53: Valor Unit | K53: Total
B54: Composição | C54: COMPOSIÇÃO - 010 | D54: Próprio | E54: Perfuração roto pneumática utilizando martelo de fundo (DTH) em rocha Ø 6 1/8" em rocha | F54: SERT - SERVIÇOS TÉCNICOS | H54: m | I54: 1 | J54: 172.24 | K54: 172.24
B55: Composição Auxiliar | C55: 88263 | D55: SINAPI | E55: CAVOUQUEIRO OU OPERADOR PERFURATRIZ/ROMPEDOR COM ENCARGOS COMPLEMENTARES | F55: SEDI - SERVIÇOS DIVERSOS | H55: H | I55: 0.2 | J55: 21.34 | K55: 4.268
B56: Composição Auxiliar | C56: 88316 | D56: SINAPI | E56: SERVENTE COM ENCARGOS COMPLEMENTARES | F56: SEDI - SERVIÇOS DIVERSOS | H56: H | I56: 0.6 | J56: 19.43 | K56: 11.658
B57: Insumo | C57: 5051 | D57: ORSE | E57: Perfuraçao em rocha metassedimentar - metassedimento alterado / compacto dn 6" (poço 120m) m | F57: Serviços | H57: m | I57: 1 | J57: 156.31 | K57: 156.31
B59: 3.5 | C59: Código | D59: Banco | E59: Descrição | F59: Tipo | H59: Und | I59: Quant. | J59: Valor Unit | K59: Total
B60: Composição | C60: COMPOSIÇÃO - 011 | D60: Próprio | E60: Serviço de lançamento cimentação anelar poço tubular, incluso material. | F60: SEDI - SERVIÇOS DIVERSOS | H60: m³ | I60: 1 | J60: 792.04 | K60: 792.04
B61: Composição Auxiliar | C61: 1903 | D61: ORSE | E61: Argamassa cimento e areia traço t-1 (1:3) - 1 saco cimento 50kg / 3 padiolas areia dim. 0.35 x 0.45 x 0.23 m - Confecção mecânica e transporte | F61: Argamassas | H61: m³ | I61: 1 | J61: 555.86 | K61: 555.86
B62: Composição Auxiliar | C62: 88316 | D62: SINAPI | E62: SERVENTE COM ENCARGOS COMPLEMENTARES | F62: SEDI - SERVIÇOS DIVERSOS | H62: H | I62: 7.4 | J62: 19.43 | K62: 143.782
B63: Insumo | C63: 00000124 | D63: SINAPI | E63: ADITIVO ACELERADOR DE PEGA E ENDURECIMENTO PARA ARGAMASSAS E CONCRETOS, LIQUIDO E ISENTO DE CLORETOS | F63: Material | H63: L | I63: 5 | J63: 18.48 | K63: 92.4
B65: 3.6 | C65: Código | D65: Banco | E65: Descrição | F65: Tipo | H65: Und | I65: Quant. | J65: Valor Unit | K65: Total
B66: Composição | C66: COMPOSIÇÃO - 014 | D66: Próprio | E66: Serviço de instalação de laje sanitária com dimensões (1,5x1,5x0,3) , incluso material. | F66: SEDI - SERVIÇOS DIVERSOS | H66: un | I66: 1 | J66: 637.06 | K66: 637.06
B67: Composição Auxiliar | C67: 92522 | D67: SINAPI | E67: MONTAGEM E DESMONTAGEM DE FÔRMA DE LAJE MACIÇA, PÉ-DIREITO SIMPLES, EM CHAPA DE MADEIRA COMPENSADA RESINADA, 8 UTILIZAÇÕES. AF_09/2020 | F67: FUES - FUNDAÇÕES E ESTRUTURAS | H67: m² | I67: 1.8 | J67: 47.93 | K67: 86.274
B68: Composição Auxiliar | C68: 93358 | D68: SINAPI | E68: ESCAVAÇÃO MANUAL DE VALA COM PROFUNDIDADE MENOR OU IGUAL A 1,30 M. AF_02/2021 | F68: MOVT - MOVIMENTO DE TERRA | H68: m³ | I68: 0.225 | J68: 76.87 | K68: 17.29575
B69: Composição Auxiliar | C69: 94975 | D69: SINAPI | E69: CONCRETO FCK = 15MPA, TRAÇO 1:3,4:3,5 (EM MASSA SECA DE CIMENTO/ AREIA MÉDIA/ BRITA 1) - PREPARO MANUAL. AF_05/2021 | F69: FUES - FUNDAÇÕES E ESTRUTURAS | H69: m³ | I69: 0.675 | J69: 504.84 | K69: 340.767
B70: Composição Auxiliar | C70: 103670 | D70: SINAPI | E70: LANÇAMENTO COM USO DE BALDES, ADENSAMENTO E ACABAMENTO DE CONCRETO EM ESTRUTURAS. AF_02/2022 | F70: FUES - FUNDAÇÕES E ESTRUTURAS | H70: m³ | I70: 0.675 | J70: 285.51 | K70: 192.71925
B72: 4 | E72: PÓS PERFURAÇÃO | K72: 9956.16
B73: 4.3 | C73: Código | D73: Banco | E73: Descrição | F73: Tipo | H73: Und | I73: Quant. | J73: Valor Unit | K73: Total
B74: Composição | C74: COMPOSIÇÃO - 015 | D74: Próprio | E74: Inspeção ótica em poço tubular câmera com rotação de 360º, visada lateral, com fonte própria de luz, entregue vídeo em cores e marcação de profundidades. | F74: SEES - SERVIÇOS ESPECIAIS | H74: m | I74: 1 | J74: 38.05 | K74: 38.05
B75: Insumo | C75: H020050004 | D75: EMBASA | E75: APARELHO DE PERFILAGEM OPTICA | F75: Material | H75: M | I75: 1 | J75: 4.4 | K75: 4.4
B76: Insumo | C76: B590000022 | D76: EMBASA | E76: TECNICO MEDIO | F76: Mão de Obra | H76: H | I76: 0.0835 | J76: 48.54 | K76: 4.05309
B77: Insumo | C77: B590000028 | D77: EMBASA | E77: AUXILIAR TECNICO | F77: Mão de Obra | H77: H | I77: 0.0835 | J77: 22.47 | K77: 1.876245
B78: Insumo | C78: F020000340 | D78: EMBASA | E78: DIÁRIA PARA PROFISSIONAL (INTERIOR) | F78: Material | H78: DIA | I78: 0.021 | J78: 227 | K78: 4.767
B79: Insumo | C79: F030000250 | D79: EMBASA | E79: LOCAÇÃO DE VEÍCULO PICK UP TIPO SAVEIRO OU SIMILAR | F79: Material | H79: DIA | I79: 0.25 | J79: 91.8 | K79: 22.95
B81: 5 | E81: RESERVAÇÃO | K81: 6271.39
B82: 5.1 | C82: Código | D82: Banco | E82: Descrição | F82: Tipo | H82: Und | I82: Quant. | J82: Valor Unit | K82: Total
B83: Composição | C83: COMPOSIÇÃO - 016 | D83: Próprio | E83: Execução e instalação de base de sustentação em concreto armado para reservatório de diâmetro 2,06m e altura 1,10m, conforme projeto, incluindo fixação de grampos da tampa. | F83: SEDI - SERVIÇOS DIVERSOS | H83: un | I83: 1 | J83: 2834.04 | K83: 2834.04
B84: Composição Auxiliar | C84: 5928 | D84: SINAPI | E84: GUINDAUTO HIDRÁULICO, CAPACIDADE MÁXIMA DE CARGA 6200 KG, MOMENTO MÁXIMO DE CARGA 11,7 TM, ALCANCE MÁXIMO HORIZONTAL 9,70 M, INCLUSIVE CAMINHÃO TOCO PBT 16.000 KG, POTÊNCIA DE 189 CV - CHP DIURNO. AF_06/2014 | F84: CHOR - CUSTOS HORÁRIOS DE MÁQUINAS E EQUIPAMENTOS | H84: CHP | I84: 2.5 | J84: 282.27 | K84: 705.675
B85: Composição Auxiliar | C85: 88310 | D85: SINAPI | E85: PINTOR COM ENCARGOS COMPLEMENTARES | F85: SEDI - SERVIÇOS DIVERSOS | H85: H | I85: 0.3 | J85: 29.9 | K85: 8.97
B86: Composição Auxiliar | C86: 100301 | D86: SINAPI | E86: AJUDANTE DE PINTOR COM ENCARGOS COMPLEMENTARES | F86: SEDI - SERVIÇOS DIVERSOS | H86: H | I86: 0.1 | J86: 21.17 | K86: 2.117
B87: Composição Auxiliar | C87: 88309 | D87: SINAPI | E87: PEDREIRO COM ENCARGOS COMPLEMENTARES | F87: SEDI - SERVIÇOS DIVERSOS | H87: H | I87: 5.55 | J87: 28.7 | K87: 159.285
B88: Composição Auxiliar | C88: 88316 | D88: SINAPI | E88: SERVENTE COM ENCARGOS COMPLEMENTARES | F88: SEDI - SERVIÇOS DIVERSOS | H88: H | I88: 10 | J88: 19.43 | K88: 194.3
B89: Composição Auxiliar | C89: 88245 | D89: SINAPI | E89: ARMADOR COM ENCARGOS COMPLEMENTARES | F89: SEDI - SERVIÇOS DIVERSOS | H89: H | I89: 3 | J89: 28.48 | K89: 85.44
B90: Composição Auxiliar | C90: 88262 | D90: SINAPI | E90: CARPINTEIRO DE FORMAS COM ENCARGOS COMPLEMENTARES | F90: SEDI - SERVIÇOS DIVERSOS | H90: H | I90: 2 | J90: 28.3 | K90: 56.6
B91: Composição Auxiliar | C91: 87445 | D91: SINAPI | E91: BETONEIRA CAPACIDADE NOMINAL 400 L, CAPACIDADE DE MISTURA 310 L, MOTOR A DIESEL POTÊNCIA 5,0 HP, SEM CARREGADOR - CHP DIURNO. AF_05/2023 | F91: CHOR - CUSTOS HORÁRIOS DE MÁQUINAS E EQUIPAMENTOS | H91: CHP | I91: 2.8548 | J91: 5.45 | K91: 15.55866
B92: Composição Auxiliar | C92: 88377 | D92: SINAPI | E92: OPERADOR DE BETONEIRA ESTACIONÁRIA/MISTURADOR COM ENCARGOS COMPLEMENTARES | F92: SEDI - SERVIÇOS DIVERSOS | H92: H | I92: 2.8548 | J92: 17.97 | K92: 51.300756
B93: Insumo | C93: 00007155 | D93: SINAPI | E93: TELA DE ACO SOLDADA NERVURADA, CA-60, Q-138, (2,20 KG/M2), DIAMETRO DO FIO = 4,2 MM, LARGURA = 2,45 M, ESPACAMENTO DA MALHA = 10 X 10 CM | F93: Material | H93: m² | I93: 6 | J93: 15.98 | K93: 95.88
B94: Insumo | C94: 00000370 | D94: SINAPI | E94: AREIA MEDIA - POSTO JAZIDA/FORNECEDOR (RETIRADO NA JAZIDA, SEM TRANSPORTE) | F94: Material | H94: m³ | I94: 1.36 | J94: 150 | K94: 204
B95: Insumo | C95: 00001379 | D95: SINAPI | E95: CIMENTO PORTLAND COMPOSTO CP II-32 | F95: Material | H95: KG | I95: 565.75 | J95: 0.72 | K95: 407.34
B96: Insumo | C96: 00004718 | D96: SINAPI | E96: PEDRA BRITADA N. 2 (19 A 38 MM) POSTO PEDREIRA/FORNECEDOR, SEM FRETE | F96: Material | H96: m³ | I96: 0.33 | J96: 104.72 | K96: 34.5576
B97: Insumo | C97: 00004721 | D97: SINAPI | E97: PEDRA BRITADA N. 1 (9,5 a 19 MM) POSTO PEDREIRA/FORNECEDOR, SEM FRETE | F97: Material | H97: m³ | I97: 0.98 | J97: 104.17 | K97: 102.0866
B98: Insumo | C98: 00003767 | D98: SINAPI | E98: LIXA EM FOLHA PARA PAREDE OU MADEIRA, NUMERO 120, COR VERMELHA | F98: Material | H98: UN | I98: 0.12 | J98: 0.79 | K98: 0.0948
B99: Insumo | C99: 00007356 | D99: SINAPI | E99: TINTA LATEX ACRILICA PREMIUM, COR BRANCO FOSCO | F99: Material | H99: L | I99: 0.18 | J99: 27.16 | K99: 4.8888
B100: Insumo | C100: 00000032 | D100: SINAPI | E100: ACO CA-50, 6,3 MM, VERGALHAO | F100: Material | H100: KG | I100: 9.3 | J100: 7.9 | K100: 73.47
B101: Insumo | C101: 00043059 | D101: SINAPI | E101: ACO CA-60, 4,2 MM, OU 5,0 MM, OU 6,0 MM, OU 7,0 MM, VERGALHAO | F101: Material | H101: KG | I101: 3.04 | J101: 7.09 | K101: 21.5536
B102: Insumo | C102: 00043681 | D102: SINAPI | E102: CHAPA/PAINEL DE MADEIRA COMPENSADA RESINADA (MADEIRITE RESINADO ROSA) PARA FORMA DE CONCRETO, DE 2200 x 1100 MM, E = 8 A 12 MM | F102: Material | H102: m² | I102: 17.46 | J102: 34.99 | K102: 610.9254
B104: 6 | E104: BEBEDOURO | K104: 1996.18
B105: 6.1 | C105: Código | D105: Banco | E105: Descrição | F105: Tipo | H105: Und | I105: Quant. | J105: Valor Unit | K105: Total
B106: Composição | C106: COMPOSIÇÃO - 017 | D106: Próprio | E106: Serviço de execução do bebedouro em concreto armado, incluso materiais. | F106: SEDI - SERVIÇOS DIVERSOS | H106: un | I106: 1 | J106: 1590.96 | K106: 1590.96
B107: Composição Auxiliar | C107: 5928 | D107: SINAPI | E107: GUINDAUTO HIDRÁULICO, CAPACIDADE MÁXIMA DE CARGA 6200 KG, MOMENTO MÁXIMO DE CARGA 11,7 TM, ALCANCE MÁXIMO HORIZONTAL 9,70 M, INCLUSIVE CAMINHÃO TOCO PBT 16.000 KG, POTÊNCIA DE 189 CV - CHP DIURNO. AF_06/2014 | F107: CHOR - CUSTOS HORÁRIOS DE MÁQUINAS E EQUIPAMENTOS | H107: CHP | I107: 2 | J107: 282.27 | K107: 564.54
B108: Composição Auxiliar | C108: 87445 | D108: SINAPI | E108: BETONEIRA CAPACIDADE NOMINAL 400 L, CAPACIDADE DE MISTURA 310 L, MOTOR A DIESEL POTÊNCIA 5,0 HP, SEM CARREGADOR - CHP DIURNO. AF_05/2023 | F108: CHOR - CUSTOS HORÁRIOS DE MÁQUINAS E EQUIPAMENTOS | H108: CHP | I108: 0.5 | J108: 5.45 | K108: 2.725
B109: Composição Auxiliar | C109: 88377 | D109: SINAPI | E109: OPERADOR DE BETONEIRA ESTACIONÁRIA/MISTURADOR COM ENCARGOS COMPLEMENTARES | F109: SEDI - SERVIÇOS DIVERSOS | H109: H | I109: 0.5 | J109: 17.97 | K109: 8.985
B110: Composição Auxiliar | C110: 88310 | D110: SINAPI | E110: PINTOR COM ENCARGOS COMPLEMENTARES | F110: SEDI - SERVIÇOS DIVERSOS | H110: H | I110: 0.3 | J110: 29.9 | K110: 8.97
B111: Composição Auxiliar | C111: 100301 | D111: SINAPI | E111: AJUDANTE DE PINTOR COM ENCARGOS COMPLEMENTARES | F111: SEDI - SERVIÇOS DIVERSOS | H111: H | I111: 0.1 | J111: 21.17 | K111: 2.117
B112: Composição Auxiliar | C112: 88245 | D112: SINAPI | E112: ARMADOR COM ENCARGOS COMPLEMENTARES | F112: SEDI - SERVIÇOS DIVERSOS | H112: H | I112: 3 | J112: 28.48 | K112: 85.44
B113: Composição Auxiliar | C113: 88262 | D113: SINAPI | E113: CARPINTEIRO DE FORMAS COM ENCARGOS COMPLEMENTARES | F113: SEDI - SERVIÇOS DIVERSOS | H113: H | I113: 2 | J113: 28.3 | K113: 56.6
B114: Composição Auxiliar | C114: 88316 | D114: SINAPI | E114: SERVENTE COM ENCARGOS COMPLEMENTARES | F114: SEDI - SERVIÇOS DIVERSOS | H114: H | I114: 5 | J114: 19.43 | K114: 97.15
B115: Composição Auxiliar | C115: 88309 | D115: SINAPI | E115: PEDREIRO COM ENCARGOS COMPLEMENTARES | F115: SEDI - SERVIÇOS DIVERSOS | H115: H | I115: 4 | J115: 28.7 | K115: 114.8
B116: Insumo | C116: 00043055 | D116: SINAPI | E116: ACO CA-50, 12,5 MM OU 16,0 MM, VERGALHAO | F116: Material | H116: KG | I116: 12 | J116: 6.49 | K116: 77.88
B117: Insumo | C117: 00043059 | D117: SINAPI | E117: ACO CA-60, 4,2 MM, OU 5,0 MM, OU 6,0 MM, OU 7,0 MM, VERGALHAO | F117: Material | H117: KG | I117: 13 | J117: 7.09 | K117: 92.17
B118: Insumo | C118: 00000032 | D118: SINAPI | E118: ACO CA-50, 6,3 MM, VERGALHAO | F118: Material | H118: KG | I118: 6 | J118: 7.9 | K118: 47.4
B119: Insumo | C119: 00000370 | D119: SINAPI | E119: AREIA MEDIA - POSTO JAZIDA/FORNECEDOR (RETIRADO NA JAZIDA, SEM TRANSPORTE) | F119: Material | H119: m³ | I119: 0.32 | J119: 150 | K119: 48
B120: Insumo | C120: 00001379 | D120: SINAPI | E120: CIMENTO PORTLAND COMPOSTO CP II-32 | F120: Material | H120: KG | I120: 127 | J120: 0.72 | K120: 91.44
B121: Insumo | C121: 00004718 | D121: SINAPI | E121: PEDRA BRITADA N. 2 (19 A 38 MM) POSTO PEDREIRA/FORNECEDOR, SEM FRETE | F121: Material | H121: m³ | I121: 0.08 | J121: 104.72 | K121: 8.3776
B122: Insumo | C122: 00004721 | D122: SINAPI | E122: PEDRA BRITADA N. 1 (9,5 a 19 MM) POSTO PEDREIRA/FORNECEDOR, SEM FRETE | F122: Material | H122: m³ | I122: 0.23 | J122: 104.17 | K122: 23.9591
B123: Insumo | C123: 00003767 | D123: SINAPI | E123: LIXA EM FOLHA PARA PAREDE OU MADEIRA, NUMERO 120, COR VERMELHA | F123: Material | H123: UN | I123: 0.12 | J123: 0.79 | K123: 0.0948
B124: Insumo | C124: 00007356 | D124: SINAPI | E124: TINTA LATEX ACRILICA PREMIUM, COR BRANCO FOSCO | F124: Material | H124: L | I124: 0.18 | J124: 27.16 | K124: 4.8888
B125: Insumo | C125: 00043681 | D125: SINAPI | E125: CHAPA/PAINEL DE MADEIRA COMPENSADA RESINADA (MADEIRITE RESINADO ROSA) PARA FORMA DE CONCRETO, DE 2200 x 1100 MM, E = 8 A 12 MM | F125: Material | H125: m² | I125: 7.3 | J125: 34.99 | K125: 255.427
B127: 7 | E127: INSTALAÇÕES HIDRÁULICAS | K127: 3722.77
B128: 7.1 | E128: INSTALAÇÕES DE CAVALETE | K128: 1405.69
B129: 7.1.1 | C129: Código | D129: Banco | E129: Descrição | F129: Tipo | H129: Und | I129: Quant. | J129: Valor Unit | K129: Total
B130: Composição | C130: COMPOSIÇÃO - 018 | D130: Próprio | E130: Montagem e Instalação de Tubulação e Conexões Cavalete | F130: INHI - INSTALAÇÕES HIDROS SANITÁRIAS | H130: un | I130: 1 | J130: 280.91 | K130: 280.91
B131: Composição Auxiliar | C131: 88248 | D131: SINAPI | E131: AUXILIAR DE ENCANADOR OU BOMBEIRO HIDRÁULICO COM ENCARGOS COMPLEMENTARES | F131: SEDI - SERVIÇOS DIVERSOS | H131: H | I131: 3 | J131: 19.19 | K131: 57.57
B132: Composição Auxiliar | C132: 88267 | D132: SINAPI | E132: ENCANADOR OU BOMBEIRO HIDRÁULICO COM ENCARGOS COMPLEMENTARES | F132: SEDI - SERVIÇOS DIVERSOS | H132: H | I132: 3 | J132: 27.95 | K132: 83.85
B133: Insumo | C133: 00000122 | D133: SINAPI | E133: ADESIVO PLASTICO PARA PVC, FRASCO COM *850* GR | F133: Material | H133: UN | I133: 1 | J133: 65.4 | K133: 65.4
B134: Insumo | C134: 00020083 | D134: SINAPI | E134: SOLUCAO PREPARADORA / LIMPADORA PARA PVC, FRASCO COM 1000 CM3 | F134: Material | H134: UN | I134: 1 | J134: 74.09 | K134: 74.09
B136: 7.2 | E136: INSTALAÇÕES DE ADUTORA, RESERVATÓRIO E BEBEDOURO | K136: 2317.08
B137: 7.2.1 | C137: Código | D137: Banco | E137: Descrição | F137: Tipo | H137: Und | I137: Quant. | J137: Valor Unit | K137: Total
B138: Composição | C138: COMPOSIÇÃO - 020 | D138: Próprio | E138: Montagem e instalação da rede adutora poço-reservatório-bebedouro | F138: SEDI - SERVIÇOS DIVERSOS | H138: un | I138: 1 | J138: 1081.63 | K138: 1081.63
B139: Composição Auxiliar | C139: 88316 | D139: SINAPI | E139: SERVENTE COM ENCARGOS COMPLEMENTARES | F139: SEDI - SERVIÇOS DIVERSOS | H139: H | I139: 6 | J139: 19.43 | K139: 116.58
B140: Composição Auxiliar | C140: 93358 | D140: SINAPI | E140: ESCAVAÇÃO MANUAL DE VALA COM PROFUNDIDADE MENOR OU IGUAL A 1,30 M. AF_02/2021 | F140: MOVT - MOVIMENTO DE TERRA | H140: m³ | I140: 4.5 | J140: 76.87 | K140: 345.915
B141: Composição Auxiliar | C141: 88267 | D141: SINAPI | E141: ENCANADOR OU BOMBEIRO HIDRÁULICO COM ENCARGOS COMPLEMENTARES | F141: SEDI - SERVIÇOS DIVERSOS | H141: H | I141: 6 | J141: 27.95 | K141: 167.7
B142: Composição Auxiliar | C142: 93382 | D142: SINAPI | E142: REATERRO MANUAL DE VALAS, COM COMPACTADOR DE SOLOS DE PERCUSSÃO. AF_08/2023 | F142: MOVT - MOVIMENTO DE TERRA | H142: m³ | I142: 4.5 | J142: 22.72 | K142: 102.24
B143: Composição Auxiliar | C143: 96995 | D143: SINAPI | E143: REATERRO MANUAL APILOADO COM SOQUETE. AF_10/2017 | F143: MOVT - MOVIMENTO DE TERRA | H143: m³ | I143: 4.5 | J143: 46.6 | K143: 209.7
B144: Insumo | C144: 00000122 | D144: SINAPI | E144: ADESIVO PLASTICO PARA PVC, FRASCO COM *850* GR | F144: Material | H144: UN | I144: 1 | J144: 65.4 | K144: 65.4
B145: Insumo | C145: 00020083 | D145: SINAPI | E145: SOLUCAO PREPARADORA / LIMPADORA PARA PVC, FRASCO COM 1000 CM3 | F145: Material | H145: UN | I145: 1 | J145: 74.09 | K145: 74.09
B147: 8 | E147: FORNECIMENTO E INSTALAÇÃO DE SISTEMA FOTOVOLTAÍCO | K147: 30320.09
B148: 8.1 | E148: INSTALAÇÕES HIDRÁULICAS | K148: 2942.9
B149: 8.1.1 | C149: Código | D149: Banco | E149: Descrição | F149: Tipo | H149: Und | I149: Quant. | J149: Valor Unit | K149: Total
B150: Composição | C150: COMPOSIÇÃO - 019 | D150: Próprio | E150: Montagem e instalação hidráulica do kit de bombeamento | F150: INHI - INSTALAÇÕES HIDROS SANITÁRIAS | H150: un | I150: 1 | J150: 141.42 | K150: 141.42
B151: Composição Auxiliar | C151: 88267 | D151: SINAPI | E151: ENCANADOR OU BOMBEIRO HIDRÁULICO COM ENCARGOS COMPLEMENTARES | F151: SEDI - SERVIÇOS DIVERSOS | H151: H | I151: 3 | J151: 27.95 | K151: 83.85
B152: Composição Auxiliar | C152: 88248 | D152: SINAPI | E152: AUXILIAR DE ENCANADOR OU BOMBEIRO HIDRÁULICO COM ENCARGOS COMPLEMENTARES | F152: SEDI - SERVIÇOS DIVERSOS | H152: H | I152: 3 | J152: 19.19 | K152: 57.57
B154: 8.2 | E154: INSTALAÇÕES ELÉTRICAS | K154: 2805.1
B155: 8.2.1 | C155: Código | D155: Banco | E155: Descrição | F155: Tipo | H155: Und | I155: Quant. | J155: Valor Unit | K155: Total
B156: Composição | C156: COMPOSIÇÃO - 021 | D156: Próprio | E156: Montagem e instalação elétrica do kit de bombeamento e sistema fotovoltaico inclusive sistema de aterramento. | F156: INEL - INSTALAÇÃO ELÉTRICA/ELETRIFICAÇÃO E ILUMINAÇÃO EXTERNA | H156: un | I156: 1 | J156: 520.5 | K156: 520.5
B157: Composição Auxiliar | C157: 88264 | D157: SINAPI | E157: ELETRICISTA COM ENCARGOS COMPLEMENTARES | F157: SEDI - SERVIÇOS DIVERSOS | H157: H | I157: 8 | J157: 29.07 | K157: 232.56
B158: Composição Auxiliar | C158: 88247 | D158: SINAPI | E158: AUXILIAR DE ELETRICISTA COM ENCARGOS COMPLEMENTARES | F158: SEDI - SERVIÇOS DIVERSOS | H158: H | I158: 8 | J158: 20.13 | K158: 161.04
B159: Composição Auxiliar | C159: 90777 | D159: SINAPI | E159: ENGENHEIRO ELÉTRICO DE OBRA JUNIOR COM ENCARGOS COMPLEMENTARES | F159: SEDI - SERVIÇOS DIVERSOS | H159: H | I159: 1 | J159: 116.68 | K159: 116.68
B160: Insumo | C160: 00020111 | D160: SINAPI | E160: FITA ISOLANTE ADESIVA ANTICHAMA, USO ATE 750 V, EM ROLO DE 19 MM X 20 M | F160: Material | H160: UN | I160: 1 | J160: 9 | K160: 9
B161: Insumo | C161: 00000404 | D161: SINAPI | E161: FITA ISOLANTE DE BORRACHA AUTOFUSAO, USO ATE 69 KV (ALTA TENSAO) | F161: Material | H161: M | I161: 1 | J161: 1.22 | K161: 1.22
B163: 8.3 | E163: ESTRUTURA DE FIXAÇÃO PARA MÓDULOS FOTOVOLTAICOS | K163: 2182.64
B164: 8.3.1 | C164: Código | D164: Banco | E164: Descrição | F164: Tipo | H164: Und | I164: Quant. | J164: Valor Unit | K164: Total
B165: Composição | C165: COMPOSIÇÃO - 022 | D165: Próprio | E165: Serviço de fixação de estruturas para os módulos fotovoltaicos e suportes de concreto, incluso materiais. | F165: SEDI - SERVIÇOS DIVERSOS | H165: m² | I165: 1 | J165: 217.45 | K165: 217.45
B166: Composição Auxiliar | C166: 94975 | D166: SINAPI | E166: CONCRETO FCK = 15MPA, TRAÇO 1:3,4:3,5 (EM MASSA SECA DE CIMENTO/ AREIA MÉDIA/ BRITA 1) - PREPARO MANUAL. AF_05/2021 | F166: FUES - FUNDAÇÕES E ESTRUTURAS | H166: m³ | I166: 0.0945 | J166: 504.84 | K166: 47.70738
B167: Composição Auxiliar | C167: 93358 | D167: SINAPI | E167: ESCAVAÇÃO MANUAL DE VALA COM PROFUNDIDADE MENOR OU IGUAL A 1,30 M. AF_02/2021 | F167: MOVT - MOVIMENTO DE TERRA | H167: m³ | I167: 0.0625 | J167: 76.87 | K167: 4.804375
B168: Composição Auxiliar | C168: 96534 | D168: SINAPI | E168: FABRICAÇÃO, MONTAGEM E DESMONTAGEM DE FÔRMA PARA BLOCO DE COROAMENTO, EM MADEIRA SERRADA, E=25 MM, 4 UTILIZAÇÕES. AF_06/2017 | F168: FUES - FUNDAÇÕES E ESTRUTURAS | H168: m² | I168: 0.032 | J168: 91.85 | K168: 2.9392
B169: Insumo | C169: COTAÇÃO-003 | D169: Próprio | E169: Fornecimento suporte fabricado em material metálico resistente a corrosão e ataque químico do solo fabricado em alumínio ou aço galvanizado ou aço zincado ou similares, a ser fixado nos blocos de concreto | F169: Material | H169: m² | I169: 1 | J169: 162 | K169: 162
B171: 9 | E171: URBANIZAÇÃO | K171: 3714.79
B172: 9.1 | E172: CERCA | K172: 2779.28
B173: 9.1.1 | C173: Código | D173: Banco | E173: Descrição | F173: Tipo | H173: Und | I173: Quant. | J173: Valor Unit | K173: Total
B174: Composição | C174: COMPOSIÇÃO - 023 | D174: Próprio | E174: Cerca com mourões de concreto de 15x15cm, espaçados de 3m e cravados a 0,5m, escoras de 10x10cm nos cantos, e 9 fios de arame de aço ovalado 15x17. | F174: SEDI - SERVIÇOS DIVERSOS | H174: m | I174: 1 | J174: 79.11 | K174: 79.11
B175: Composição Auxiliar | C175: 88309 | D175: SINAPI | E175: PEDREIRO COM ENCARGOS COMPLEMENTARES | F175: SEDI - SERVIÇOS DIVERSOS | H175: H | I175: 0.335 | J175: 28.7 | K175: 9.6145
B176: Composição Auxiliar | C176: 88316 | D176: SINAPI | E176: SERVENTE COM ENCARGOS COMPLEMENTARES | F176: SEDI - SERVIÇOS DIVERSOS | H176: H | I176: 0.671 | J176: 19.43 | K176: 13.03753
B177: Composição Auxiliar | C177: 94975 | D177: SINAPI | E177: CONCRETO FCK = 15MPA, TRAÇO 1:3,4:3,5 (EM MASSA SECA DE CIMENTO/ AREIA MÉDIA/ BRITA 1) - PREPARO MANUAL. AF_05/2021 | F177: FUES - FUNDAÇÕES E ESTRUTURAS | H177: m³ | I177: 0.0288 | J177: 504.84 | K177: 14.539392
B178: Insumo | C178: 00043130 | D178: SINAPI | E178: ARAME GALVANIZADO 12 BWG, D = 2,76 MM (0,048 KG/M) OU 14 BWG, D = 2,11 MM (0,026 KG/M) | F178: Material | H178: KG | I178: 0.098 | J178: 23 | K178: 2.254
B179: Insumo | C179: 00000346 | D179: SINAPI | E179: ARAME DE ACO OVALADO 15 X 17 ( 45,7 KG, 700 KGF), ROLO 1000 M | F179: Material | H179: KG | I179: 0.405 | J179: 27.24 | K179: 11.0322
B180: Insumo | C180: 00004111 | D180: SINAPI | E180: ESCORA PRE-MOLDADA EM CONCRETO, *10 X 10* CM, H = 2,30M | F180: Material | H180: UN | I180: 0.16 | J180: 54.99 | K180: 8.7984
B181: Insumo | C181: I1533 | D181: SEINFRA | E181: MOURÃO CONCRETO BASE 15X15CM H=2.3 C/ 12 FUROS | F181: Material | H181: UN | I181: 0.42 | J181: 47.22 | K181: 19.8324
B183: 9.2 | E183: PORTÃO | K183: 935.51
B184: 9.2.1 | C184: Código | D184: Banco | E184: Descrição | F184: Tipo | H184: Und | I184: Quant. | J184: Valor Unit | K184: Total
B185: Composição | C185: COMPOSIÇÃO - 024 | D185: Próprio | E185: Serviço de instalação de portão de ferro com suporte e batedor conforme projeto, incluso material | F185: SEDI - SERVIÇOS DIVERSOS | H185: m² | I185: 1 | J185: 497.07 | K185: 497.07
B186: Composição Auxiliar | C186: 88309 | D186: SINAPI | E186: PEDREIRO COM ENCARGOS COMPLEMENTARES | F186: SEDI - SERVIÇOS DIVERSOS | H186: H | I186: 1.5 | J186: 28.7 | K186: 43.05
B187: Composição Auxiliar | C187: 88316 | D187: SINAPI | E187: SERVENTE COM ENCARGOS COMPLEMENTARES | F187: SEDI - SERVIÇOS DIVERSOS | H187: H | I187: 1.5 | J187: 19.43 | K187: 29.145
B188: Insumo | C188: 00000367 | D188: SINAPI | E188: AREIA GROSSA - POSTO JAZIDA/FORNECEDOR (RETIRADO NA JAZIDA, SEM TRANSPORTE) | F188: Material | H188: m³ | I188: 0.061 | J188: 151.96 | K188: 9.26956
B189: Insumo | C189: 00001379 | D189: SINAPI | E189: CIMENTO PORTLAND COMPOSTO CP II-32 | F189: Material | H189: KG | I189: 4.83 | J189: 0.72 | K189: 3.4776
B190: Insumo | C190: 00004948 | D190: SINAPI | E190: PORTAO DE ABRIR / GIRO, EM GRADIL DE METALON REDONDO DE 3/4" VERTICAL, COM REQUADRO, ACABAMENTO NATURAL - COMPLETO | F190: Material | H190: m² | I190: 1 | J190: 412.13 | K190: 412.13
B192: 10 | E192: OUTROS SERVIÇOS | K192: 5582.61
B193: 10.1 | C193: Código | D193: Banco | E193: Descrição | F193: Tipo | H193: Und | I193: Quant. | J193: Valor Unit | K193: Total
B194: Composição | C194: COMPOSIÇÃO - 025 | D194: Próprio | E194: Serviço de lançamento de concreto para acabamento do tamponamento, incluso material. | F194: SEDI - SERVIÇOS DIVERSOS | H194: m³ | I194: 1 | J194: 755.54 | K194: 755.54
B195: Composição Auxiliar | C195: 103670 | D195: SINAPI | E195: LANÇAMENTO COM USO DE BALDES, ADENSAMENTO E ACABAMENTO DE CONCRETO EM ESTRUTURAS. AF_02/2022 | F195: FUES - FUNDAÇÕES E ESTRUTURAS | H195: m³ | I195: 1 | J195: 285.51 | K195: 285.51
B196: Composição Auxiliar | C196: 94974 | D196: SINAPI | E196: CONCRETO MAGRO PARA LASTRO, TRAÇO 1:4,5:4,5 (EM MASSA SECA DE CIMENTO/ AREIA MÉDIA/ BRITA 1) - PREPARO MANUAL. AF_05/2021 | F196: FUES - FUNDAÇÕES E ESTRUTURAS | H196: m³ | I196: 1 | J196: 470.03 | K196: 470.03
B198: 10.2 | C198: Código | D198: Banco | E198: Descrição | F198: Tipo | H198: Und | I198: Quant. | J198: Valor Unit | K198: Total
B199: Composição | C199: COMPOSIÇÃO - 026 | D199: Próprio | E199: Serviço de execução do tamponamento, incluso pedra britada desinfectada. | F199: SEDI - SERVIÇOS DIVERSOS | H199: un | I199: 1 | J199: 143.21 | K199: 143.21
B200: Composição Auxiliar | C200: 88316 | D200: SINAPI | E200: SERVENTE COM ENCARGOS COMPLEMENTARES | F200: SEDI - SERVIÇOS DIVERSOS | H200: H | I200: 0.1 | J200: 19.43 | K200: 1.943
B201: Insumo | C201: 00004720 | D201: SINAPI | E201: PEDRA BRITADA N. 0, OU PEDRISCO (4,8 A 9,5 MM) POSTO PEDREIRA/FORNECEDOR, SEM FRETE | F201: Material | H201: m³ | I201: 1 | J201: 120.27 | K201: 120.27
B202: Insumo | C202: D240000003 | D202: EMBASA | E202: HIPOCLORITO DE SÓDIO | F202: Material | H202: L | I202: 5 | J202: 4.2 | K202: 21
B204: _______________________________________________________________ Cássio Oliveira Lopes Analista em Desenvolvimento Regional - AR/GSA/UAS CODEVASF – SEDE _______________________________________________________________ Catheriny Soares Andrade Moraes Analista em Desenvolvimento Regional - AR/GSA/UAS CODEVASF – SEDE _______________________________________________________________ Iago Guilherme dos Santos Engenheiro Pleno - AR/GSA/UAS Engeplus Engenharia e Consultoria LTDA _______________________________________________________________ Micheline Mirapalheta Dias Engenheiro Sênior - AR/GSA/UAS Engeplus Engenharia e Consultoria LTDA

Sheet Crono. GO - Parc.Rev
C1: MINISTÉRIO DO DESENVOLVIMENTO REGIONAL - MDR COMPANHIA DE DESENVOLVIMENTO DOS VALES DO SÃO FRANCISCO E DO PARNAÍBA ÁREA DE REVITALIZAÇÃO E SUSTENTABILIDADE SOCIOAMBIENTAL
A6: ='Planilha Resumo GO'!B2 -> OBJETO: EXECUÇÃO DE SERVIÇOS DE PERFURAÇÃO E INSTALAÇÃO DE POÇOS TUBULARES EM MUNICÍPIOS LOCALIZADOS NOS ESTADOS DO GOIÁS, NA ÁREA DE ATUAÇÃO DA CODEVASF
A8: CRONOGRAMA FÍSICO-FINANCEIRO
A9: ITEM | B9: ESPECIFICAÇÃO DOS SERVIÇOS | C9: VALOR TOTAL (R$) | D9: Mês 01 | E9: Mês 02 | F9: Mês 03 | G9: Mês 04 | H9: Mês 05 | I9: Mês 06 | J9: Mês 07 | K9: Mês 08 | L9: Mês 09 | M9: Mês 10 | N9: Mês 11 | O9: Mês 12
A10: 1 | B10: ='Orç. GO - Parc. Rev - Sintético'!E6 -> SERVIÇOS PRELIMINARES | C10: =VLOOKUP(A10,'Orç. GO - Parc. Rev - Sintético'!A:J,10,FALSE) -> 175693.6 | D10: =$C$10/12 -> 14641.13333 | E10: =$C$10/12 -> 14641.13333 | F10: 14641.13333 | G10: 14641.13333 | H10: 14641.13333 | I10: 14641.13333 | J10: 14641.13333 | K10: 14641.13333 | L10: 14641.13333 | M10: 14641.13333 | N10: 14641.13333 | O10: 14641.13333
A11: 2 | B11: ='Orç. GO - Parc. Rev - Sintético'!E10 -> MOBILIZAÇÂO E DESMOBILIZAÇÂO EQUIPES DE PERFURAÇÂO E INSTALAÇÃO | C11: =VLOOKUP(A11,'Orç. GO - Parc. Rev - Sintético'!A:J,10,FALSE) -> 205497.6 | D11: =$C$11/12 -> 17124.8 | E11: =$C$11/12 -> 17124.8 | F11: 17124.8 | G11: 17124.8 | H11: 17124.8 | I11: 17124.8 | J11: 17124.8 | K11: 17124.8 | L11: 17124.8 | M11: 17124.8 | N11: 17124.8 | O11: 17124.8
A12: 3 | B12: ='Orç. GO - Parc. Rev - Sintético'!E13 -> PERFURAÇÃO E COMPLETAÇÃO DE POÇO TUBULAR | C12: =VLOOKUP(A12,'Orç. GO - Parc. Rev - Sintético'!A:J,10,FALSE) -> 3832170.18 | D12: =$C$12/12 -> 319347.515 | E12: =$C$12/12 -> 319347.515 | F12: 319347.515 | G12: 319347.515 | H12: 319347.515 | I12: 319347.515 | J12: 319347.515 | K12: 319347.515 | L12: 319347.515 | M12: 319347.515 | N12: 319347.515 | O12: 319347.515
A13: 4 | B13: ='Orç. GO - Parc. Rev - Sintético'!E20 -> PÓS PERFURAÇÃO | C13: =VLOOKUP(A13,'Orç. GO - Parc. Rev - Sintético'!A:J,10,FALSE) -> 975540.58 | D13: =$C$13/12 -> 81295.04833 | E13: =$C$13/12 -> 81295.04833 | F13: 81295.04833 | G13: 81295.04833 | H13: 81295.04833 | I13: 81295.04833 | J13: 81295.04833 | K13: 81295.04833 | L13: 81295.04833 | M13: 81295.04833 | N13: 81295.04833 | O13: 81295.04833
A14: 5 | B14: ='Orç. GO - Parc. Rev - Sintético'!E25 -> RESERVAÇÃO | C14: =VLOOKUP(A14,'Orç. GO - Parc. Rev - Sintético'!A:J,10,FALSE) -> 551882.39 | D14: =$C$14/12 -> 45990.19917 | E14: =$C$14/12 -> 45990.19917 | F14: 45990.19917 | G14: 45990.19917 | H14: 45990.19917 | I14: 45990.19917 | J14: 45990.19917 | K14: 45990.19917 | L14: 45990.19917 | M14: 45990.19917 | N14: 45990.19917 | O14: 45990.19917
A15: 6 | B15: ='Orç. GO - Parc. Rev - Sintético'!E31 -> BEBEDOURO | C15: =VLOOKUP(A15,'Orç. GO - Parc. Rev - Sintético'!A:J,10,FALSE) -> 175663.84 | D15: =$C$15/12 -> 14638.65333 | E15: =$C$15/12 -> 14638.65333 | F15: 14638.65333 | G15: 14638.65333 | H15: 14638.65333 | I15: 14638.65333 | J15: 14638.65333 | K15: 14638.65333 | L15: 14638.65333 | M15: 14638.65333 | N15: 14638.65333 | O15: 14638.65333
A16: 7 | B16: ='Orç. GO - Parc. Rev - Sintético'!E33 -> INSTALAÇÕES HIDRÁULICAS | C16: =VLOOKUP(A16,'Orç. GO - Parc. Rev - Sintético'!A:J,10,FALSE) -> 327603.76 | D16: =$C$16/12 -> 27300.31333 | E16: =$C$16/12 -> 27300.31333 | F16: 27300.31333 | G16: 27300.31333 | H16: 27300.31333 | I16: 27300.31333 | J16: 27300.31333 | K16: 27300.31333 | L16: 27300.31333 | M16: 27300.31333 | N16: 27300.31333 | O16: 27300.31333
A17: 8 | B17: ='Orç. GO - Parc. Rev - Sintético'!E63 -> FORNECIMENTO E INSTALAÇÃO DE SISTEMA FOTOVOLTAÍCO | C17: =VLOOKUP(A17,'Orç. GO - Parc. Rev - Sintético'!A:J,10,FALSE) -> 2676658.21 | D17: =$C$17/12 -> 223054.8508 | E17: =$C$17/12 -> 223054.8508 | F17: 223054.8508 | G17: 223054.8508 | H17: 223054.8508 | I17: 223054.8508 | J17: 223054.8508 | K17: 223054.8508 | L17: 223054.8508 | M17: 223054.8508 | N17: 223054.8508 | O17: 223054.8508
A18: 9 | B18: ='Orç. GO - Parc. Rev - Sintético'!E85 -> URBANIZAÇÃO | C18: =VLOOKUP(A18,'Orç. GO - Parc. Rev - Sintético'!A:J,10,FALSE) -> 326901.08 | D18: =$C$18/12 -> 27241.75667 | E18: =$C$18/12 -> 27241.75667 | F18: 27241.75667 | G18: 27241.75667 | H18: 27241.75667 | I18: 27241.75667 | J18: 27241.75667 | K18: 27241.75667 | L18: 27241.75667 | M18: 27241.75667 | N18: 27241.75667 | O18: 27241.75667
A19: 10 | B19: ='Orç. GO - Parc. Rev - Sintético'!E90 -> OUTROS SERVIÇOS | C19: =VLOOKUP(A19,'Orç. GO - Parc. Rev - Sintético'!A:J,10,FALSE) -> 228588.36 | D19: =$C$19/12 -> 19049.03 | E19: =$C$19/12 -> 19049.03 | F19: 19049.03 | G19: 19049.03 | H19: 19049.03 | I19: 19049.03 | J19: 19049.03 | K19: 19049.03 | L19: 19049.03 | M19: 19049.03 | N19: 19049.03 | O19: 19049.03
A20: TOTAL | C20: =SUM(C10:C19) -> 9476199.6 | D20: =SUM(D10:D19) -> 789683.3 | E20: =SUM(E10:E19) -> 789683.3 | F20: 789683.3 | G20: 789683.3 | H20: 789683.3 | I20: 789683.3 | J20: 789683.3 | K20: 789683.3 | L20: 789683.3 | M20: 789683.3 | N20: 789683.3 | O20: 789683.3
A21: PERCENTUAL | D21: =D20/$C$20 -> 0.08333333333 | E21: 0.08333333333 | F21: 0.08333333333 | G21: 0.08333333333 | H21: 0.08333333333 | I21: 0.08333333333 | J21: 0.08333333333 | K21: 0.08333333333 | L21: 0.08333333333 | M21: 0.08333333333 | N21: 0.08333333333 | O21: 0.08333333333
A22: CUSTO ACUMULADO | D22: =D20 -> 789683.3 | E22: =E20+D22 -> 1579366.6 | F22: =F20+E22 -> 2369049.9 | G22: 3158733.2 | H22: 3948416.5 | I22: 4738099.8 | J22: 5527783.1 | K22: 6317466.4 | L22: 7107149.7 | M22: 7896833 | N22: 8686516.3 | O22: 9476199.6
A23: PERCENTUAL ACUMULADO | D23: =D21 -> 0.08333333333 | E23: =E21+D23 -> 0.1666666667 | F23: 0.25 | G23: 0.3333333333 | H23: 0.4166666667 | I23: 0.5 | J23: 0.5833333333 | K23: 0.6666666667 | L23: 0.75 | M23: 0.8333333333 | N23: 0.9166666667 | O23: 1

Sheet Orç. GO - Tot. Rev - Sintético
H1: B.D.I. SERVIÇO | I1: B.D.I. MATERIAL | J1: ENCARGOS SOCIAIS
A2: ='Planilha Resumo GO'!B2 -> OBJETO: EXECUÇÃO DE SERVIÇOS DE PERFURAÇÃO E INSTALAÇÃO DE POÇOS TUBULARES EM MUNICÍPIOS LOCALIZADOS NOS ESTADOS DO GOIÁS, NA ÁREA DE ATUAÇÃO DA CODEVASF | H2: 25,47% | I2: 0.1528 | J2: Não Desonerado: embutido nos preços unitário dos insumos de mão de obra, de acordo com as bases.
H3: VALOR UNITÁRIO POR POÇO | I3: =ROUND(J101/K3,2) -> 160772.49 | J3: QUANTIDADE DE POÇOS | K3: 12
A4: PLANILHA ORÇAMENTÁRIA SINTÉTICA – POÇO TOTALMENTE REVESTIDO
A5: Item | B5: Código | C5: Serviço / Material | D5: Banco | E5: Descrição | F5: Und | G5: Quant. | H5: Valor Unit | I5: Valor Unit com BDI | J5: Total | K5: Peso (%)
A6: 1 | E6: SERVIÇOS PRELIMINARES | J6: =SUM(J7:J9) -> 105777.15 | K6: =J6/$J$101 -> 0.05482755363
A7: 1.1 | B7: COMPOSIÇÃO - 002 | C7: Serviço | D7: Próprio | E7: Administração Local da Obra - Poço Totalmente Revestido | F7: un | G7: 1 | H7: 75135.81231 | I7: 94272.9 | J7: 94272.9 | K7: 0.04886454665
A8: 1.2 | B8: COMPOSIÇÃO - 003 | C8: Serviço | D8: Próprio | E8: Serviço de locação Geológica de campo com relatório hidro geológico e perfil construtivo e geológico esperado. Relatório de Viabilidade de implantação das estruturas e vistorias preliminares | F8: un | G8: 12 | H8: 498.2 | I8: 625.09 | J8: 7501.08 | K8: 0.003888040715
A9: 1.3 | B9: COMPOSIÇÃO - 005 | C9: Serviço | D9: Próprio | E9: Placa da Obra - Padrão Governo Federal | F9: m² | G9: 8.64 | H9: 369.2743 | I9: 463.33 | J9: 4003.17 | K9: 0.002074966265
A10: 2 | E10: MOBILIZAÇÂO E DESMOBILIZAÇÂO EQUIPES PERFURAÇÂO E INSTALAÇÃO | J10: 30470.4 | K10: 0.01579374648
A11: 2.1 | B11: COMPOSIÇÃO - 006 | C11: Serviço | D11: Próprio | E11: Transporte de Comboio Perfuração | F11: km | G11: 2880 | H11: 4.7745894 | I11: 5.99 | J11: 17251.2 | K11: 0.008941828109
A12: 2.2 | B12: COMPOSIÇÃO - 007 | C12: Serviço | D12: Próprio | E12: Transporte de Comboio Instalação | F12: km | G12: 1440 | H12: 5.9639468 | I12: 7.48 | J12: 10771.2 | K12: 0.005583044595
A13: 2.3 | B13: COMPOSIÇÃO - 008 | C13: Serviço | D13: Próprio | E13: Transporte de água em caminhão pipa para preparo do fluído de perfuração rotativa | F13: km | G13: 360 | H13: 5.416166 | I13: 6.8 | J13: 2448 | K13: 0.001268873772
A14: 3 | E14: PERFURAÇÃO E COMPLETAÇÃO DE POÇO TUBULAR | J14: 953763.82 | K14: 0.4943651534
A15: 3.1 | B15: COMPOSIÇÃO - 009 | C15: Serviço | D15: Próprio | E15: Limpeza manual , remoção de cerca, capina e instalação dos equipamentos (área do poço, painéis solares, bebedouro e reservatório) | F15: m² | G15: 840 | H15: 1.55 | I15: 1.94 | J15: 1629.6 | K15: 0.0008446718539
A16: 3.2 | B16: COMPOSIÇÃO - 012 | C16: Serviço | D16: Próprio | E16: Perfuração rotativa com circulação direta Ø 9.1/2" | F16: m | G16: 1800 | H16: 262.19 | I16: 328.97 | J16: 592146 | K16: 0.3069275034
A17: 3.3 | B17: COTAÇÃO-007 | C17: Material | D17: Próprio | E17: Fornecimento tubo de revestimento geomecânico classe standart Ø 4" com junta roscável. | F17: m | G17: 1608 | H17: 82.5 | I17: 95.11 | J17: 152936.88 | K17: 0.07927189369
A18: 3.4 | B18: COTAÇÃO-005 | C18: Material | D18: Próprio | E18: Fornecimento tubo filtro geomecânico classe standart Ø 4" com junta roscável. | F18: m | G18: 192 | H18: 86.02 | I18: 99.16 | J18: 19038.72 | K18: 0.009868354761
A19: 3.5 | B19: A.09.000.020926 | C19: Material | D19: CPOS/CDHU | E19: Fornecimento de centralizador de coluna para poço profundo, diâmetro de 4´ | F19: un | G19: 120 | H19: 298.01 | I19: 343.55 | J19: 41226 | K19: 0.02136870511
A20: 3.6 | B20: 00009875 | C20: Material | D20: SINAPI | E20: Fornecimento de tubo pvc, soldavel, de 50 mm, agua fria (nbr-5648) - tubo de recarga prè filtro | F20: m | G20: 84 | H20: 19.51 | I20: 22.49 | J20: 1889.16 | K20: 0.0009792097935
A21: 3.7 | B21: I5785 | C21: Material | D21: SEINFRA | E21: Fornecimento de cap pvc femea standard dn 100 | F21: un | G21: 12 | H21: 98.13 | I21: 113.12 | J21: 1357.44 | K21: 0.0007036029463
A22: 3.8 | B22: 5073 | C22: Material | D22: ORSE | E22: Fornecimento de pré-filtro comum | F22: m³ | G22: 65.4 | H22: 1619.38 | I22: 1866.82 | J22: 122090.03 | K22: 0.06328302159
A23: 3.9 | B23: 00043366 | C23: Material | D23: SINAPI | E23: Fornecimento de bentonita, argila constituida por montmorilonita | F23: kg | G23: 5400 | H23: 1.54 | I23: 1.78 | J23: 9612 | K23: 0.004982195545
A24: 3.10 | B24: COMPOSIÇÃO - 011 | C24: Serviço | D24: Próprio | E24: Serviço de lançamento cimentação anelar poço tubular, incluso material. | F24: m³ | G24: 2.26 | H24: 792.08 | I24: 993.82 | J24: 2246.03 | K24: 0.001164186502
A25: 3.11 | B25: COMPOSIÇÃO - 014 | C25: Serviço | D25: Próprio | E25: Serviço de instalação de laje sanitária com dimensões (1,5x1,5x0,3) , incluso material. | F25: un | G25: 12 | H25: 637.07 | I25: 799.33 | J25: 9591.96 | K25: 0.004971808196
A26: 4 | E26: PÓS PERFURAÇÃO | J26: 148977.24 | K26: 0.07721949037
A27: 4.1 | B27: 6305 | C27: Serviço | D27: ORSE | E27: Serviço de desenvolvimento com compressor 250psi / 750cfm | F27: h | G27: 48 | H27: 411.16 | I27: 515.88 | J27: 24762.24 | K27: 0.0128350314
A28: 4.2 | B28: 6312 | C28: Serviço | D28: ORSE | E28: Serviço de análise físico-química da Água incluso coleta, transporte e analise | F28: un | G28: 12 | H28: 565.21 | I28: 709.17 | J28: 8510.04 | K28: 0.004411015748
A29: 4.3 | B29: COMPOSIÇÃO - 015 | C29: Serviço | D29: Próprio | E29: Inspeção ótica em poço tubular câmera com rotação de 360º, visada lateral, com fonte própria de luz, entregue vídeo em cores e marcação de profundidades. | F29: m | G29: 1050 | H29: 38.05 | I29: 47.74 | J29: 50127 | K29: 0.02598236746
A30: 4.4 | B30: 6314 | C30: Serviço | D30: ORSE | E30: Ensaio de Bombeamento com bomba submersível | F30: h | G30: 84 | H30: 622.21 | I30: 780.69 | J30: 65577.96 | K30: 0.03399107575
A31: 5 | E31: RESERVAÇÃO | J31: 75256.57 | K31: 0.03900779731
A32: 5.1 | B32: COMPOSIÇÃO - 016 | C32: Serviço | D32: Próprio | E32: Execução e instalação de base de sustentação em concreto armado para reservatório de diâmetro 2,06m e altura 1,10m, conforme projeto, incluindo fixação de grampos da tampa. | F32: un | G32: 12 | H32: 2834.03 | I32: 3555.86 | J32: 42670.32 | K32: 0.02211734064
A33: 5.2 | B33: 00037105 | C33: Material | D33: SINAPI | E33: Fornecimento de caixa d'agua / reservatorio em poliester reforcado com fibra de vidro, 5000 litros, com tampa | F33: un | G33: 12 | H33: 2270.66 | I33: 2617.62 | J33: 31411.44 | K33: 0.01628151648
A34: 5.3 | B34: 13960 | C34: Material | D34: ORSE | E34: Fornecimento de cabo de aço 1/8" sem revestimento ( rolo c/ 100 mt) rolo | F34: rolo | G34: 0.96 | H34: 261.33 | I34: 301.26 | J34: 289.21 | K34: 0.0001499064475
A35: 5.4 | B35: 094248 | C35: Material | D35: SBC | E35: Fornecimento de esticador olhal com gancho de 1/4" 6,35 mm vonder | F35: un | G35: 48 | H35: 13.05 | I35: 15.04 | J35: 721.92 | K35: 0.0003741933633
A36: 5.5 | B36: 002048 | C36: Material | D36: SBC | E36: Fornecimento de grampo (clip) para cabo de aco pesado 1/8" | F36: un | G36: 48 | H36: 2.96 | I36: 3.41 | J36: 163.68 | K36: 8.484038356e-05
A37: 6 | E37: BEBEDOURO | J37: 23954.16 | K37: 0.01241617865
A38: 6.1 | B38: COMPOSIÇÃO - 017 | C38: Serviço | D38: Próprio | E38: Serviço de execução do bebedouro em concreto armado, incluso materiais. | F38: un | G38: 12 | H38: 1590.96 | I38: 1996.18 | J38: 23954.16 | K38: 0.01241617865
A39: 7 | E39: INSTALAÇÕES HIDRÁULICAS | J39: 44673.24 | K39: 0.02315551574
A40: 7.1 | E40: INSTALAÇÕES DE CAVALETE | J40: 16868.28 | K40: 0.008743348883
A41: 7.1.1 | B41: COMPOSIÇÃO - 018 | C41: Serviço | D41: Próprio | E41: Montagem e Instalação de Tubulação e Conexões Cavalete | F41: un | G41: 12 | H41: 280.91 | I41: 352.46 | J41: 4229.52 | K41: 0.002192290439
A42: 7.1.2 | B42: 00001796 | C42: Material | D42: SINAPI | E42: Fornecimento de curva 90 graus de ferro galvanizado, com rosca bsp macho, de 1 1/4" | F42: un | G42: 12 | H42: 77.17 | I42: 88.96 | J42: 1067.52 | K42: 0.000553328484
A43: 7.1.3 | B43: 00009888 | C43: Material | D43: SINAPI | E43: Fornecimento de uniao de ferro galvanizado, com rosca bsp, com assento plano, de 1 1/4" | F43: un | G43: 12 | H43: 62.13 | I43: 71.62 | J43: 859.44 | K43: 0.0004454742134
A44: 7.1.4 | B44: 00004180 | C44: Material | D44: SINAPI | E44: Fornecimento de niple de ferro galvanizado, com rosca bsp, de 1 1/4" | F44: un | G44: 24 | H44: 18.99 | I44: 21.89 | J44: 525.36 | K44: 0.0002723102634
A45: 7.1.5 | B45: 00006017 | C45: Material | D45: SINAPI | E45: Fornecimento de registro gaveta bruto em latao forjado, bitola 1 1/4 " (ref 1509) | F45: un | G45: 12 | H45: 84.69 | I45: 97.63 | J45: 1171.56 | K45: 0.0006072556193
A46: 7.1.6 | B46: 00000789 | C46: Material | D46: SINAPI | E46: Fornecimento de bucha de reducao de ferro galvanizado, com rosca bsp, de 1 1/4" x 1" | F46: un | G46: 12 | H46: 17.76 | I46: 20.47 | J46: 245.64 | K46: 0.000127322775
A47: 7.1.7 | B47: 12438 | C47: Material | D47: ORSE | E47: Fornecimento de hidrômetro multijato d= 3/4", vazão = 5,0m3/h | F47: un | G47: 12 | H47: 298.26 | I47: 343.83 | J47: 4125.96 | K47: 0.002138612103
A48: 7.1.8 | B48: 00009861 | C48: Material | D48: SINAPI | E48: Fornecimento de tubo pvc, roscavel, 1 1/4", agua fria predial | F48: m | G48: 18 | H48: 31.11 | I48: 35.86 | J48: 645.48 | K48: 0.0003345721577
A49: 7.1.9 | B49: 002116 | C49: Material | D49: SBC | E49: Fornecimento de te de reducao ferro galvanizado 1.1/4" x 1/2" | F49: un | G49: 12 | H49: 40.49 | I49: 46.68 | J49: 560.16 | K49: 0.0002903481748
A50: 7.1.10 | B50: 00011831 | C50: Material | D50: SINAPI | E50: Fornecimento de torneira plastica para tanque 1/2 " ou 3/4 " com bico para mangueira | F50: un | G50: 12 | H50: 14.92 | I50: 17.2 | J50: 206.4 | K50: 0.0001069834749
A51: 7.1.11 | B51: 1158 | C51: Material | D51: ORSE | E51: Fornecimento de joelho 45° ferro galvanizado d=1 1/ 4" | F51: un | G51: 24 | H51: 32.17 | I51: 37.09 | J51: 890.16 | K51: 0.0004613973352
A52: 7.1.12 | B52: 00004205 | C52: Material | D52: SINAPI | E52: Fornecimento de niple de reducao de ferro galvanizado, com rosca bsp, de 1 1/2" x 1 1/4" | F52: un | G52: 12 | H52: 33.32 | I52: 38.41 | J52: 460.92 | K52: 0.0002389090273
A53: 7.1.13 | B53: 00003939 | C53: Material | D53: SINAPI | E53: Fornecimento de luva de ferro galvanizado, com rosca bsp, de 1 1/2" | F53: un | G53: 12 | H53: 25.6 | I53: 29.51 | J53: 354.12 | K53: 0.000183551299
A54: 7.1.14 | B54: 9569 | C54: Material | D54: ORSE | E54: Fornecimento de adaptador pvc bsxrm d= 35mm x 1 1/2", linha irriga-lf, tigre ou similar | F54: un | G54: 12 | H54: 3.04 | I54: 3.5 | J54: 42 | K54: 2.176989314e-05
A55: 7.1.15 | B55: 5128 | C55: Material | D55: ORSE | E55: Fornecimento de tampa de poço galvanizada em 6" | F55: un | G55: 12 | H55: 107.28 | I55: 123.67 | J55: 1484.04 | K55: 0.0007692236242
A56: 7.2 | E56: INSTALAÇÕES DE ADUTORA, RESERVATÓRIO E BEBEDOURO | J56: 27804.96 | K56: 0.01441216686
A57: 7.2.1 | B57: COMPOSIÇÃO - 020 | C57: Serviço | D57: Próprio | E57: Montagem e instalação da rede adutora poço-reservatório-bebedouro | F57: un | G57: 12 | H57: 1081.63 | I57: 1357.12 | J57: 16285.44 | K57: 0.008441244966
A58: 7.2.2 | B58: 9501 | C58: Material | D58: ORSE | E58: Fornecimento de tubo PVC p/irrigação LF PN 60 JE Ø 35mm, linha Irriga-LF, Tigre ou similar | F58: m | G58: 480 | H58: 13.06 | I58: 15.06 | J58: 7228.8 | K58: 0.003746909608
A59: 7.2.3 | B59: 9516 | C59: Material | D59: ORSE | E59: Fornecimento de curva 90º pvc PTA/BSA soldavel d= 35mm, linha Irriga-LF, Tigre ou similar | F59: un | G59: 48 | H59: 10.76 | I59: 12.4 | J59: 595.2 | K59: 0.0003085104857
A60: 7.2.4 | B60: 00000098 | C60: Material | D60: SINAPI | E60: Fornecimento de adaptador pvc soldavel, com flange e anel de vedacao, 40 mm x 1 1/4", para caixa d'água | F60: un | G60: 24 | H60: 35.08 | I60: 40.44 | J60: 970.56 | K60: 0.0005030711307
A61: 7.2.5 | B61: 8013 | C61: Material | D61: ORSE | E61: Fornecimento de registro esfera VS soldável para irrigação Ø 35mm | F61: pç | G61: 12 | H61: 37.26 | I61: 42.95 | J61: 515.4 | K61: 0.0002671476887
A62: 7.2.6 | B62: 00000096 | C62: Material | D62: SINAPI | E62: Fornecimento de adaptador pvc soldavel, com flange e anel de vedacao, 25 mm x 3/4", para caixa d'água | F62: un | G62: 36 | H62: 15.57 | I62: 17.95 | J62: 646.2 | K62: 0.0003349453559
A63: 7.2.7 | B63: 14071 | C63: Material | D63: ORSE | E63: Fornecimento de tubo PVC para irrigação LF PN 60 Ø 25mm, linha Irriga-LF, Tigre ou similar | F63: m | G63: 24 | H63: 4.02 | I63: 4.63 | J63: 111.12 | K63: 5.759691728e-05
A64: 7.2.8 | B64: 14082 | C64: Material | D64: ORSE | E64: Fornecimento de registro esfera LF 25mm | F64: pç | G64: 24 | H64: 11.08 | I64: 12.77 | J64: 306.48 | K64: 0.0001588580202
A65: 7.2.9 | B65: 00003529 | C65: Material | D65: SINAPI | E65: Fornecimento de joelho pvc, soldavel, 90 graus, 25 mm, para agua fria | F65: un | G65: 24 | H65: 0.92 | I65: 1.06 | J65: 25.44 | K65: 1.318633527e-05
A66: 7.2.10 | B66: 00003535 | C66: Material | D66: SINAPI | E66: Fornecimento de joelho pvc, soldavel, 90 graus, 40 mm, para agua fria | F66: un | G66: 12 | H66: 7.46 | I66: 8.6 | J66: 103.2 | K66: 5.349173743e-05
A67: 7.2.11 | B67: 00000109 | C67: Material | D67: SINAPI | E67: Fornecimento de adaptador pvc soldavel curto com bolsa e rosca, 40 mm x 1 1/4", para agua fria | F67: un | G67: 12 | H67: 4.68 | I67: 5.4 | J67: 64.8 | K67: 3.358783513e-05
A68: 7.2.12 | B68: 00011830 | C68: Material | D68: SINAPI | E68: Fornecimento de torneira de boia convencional para caixa d'agua, agua fria, 3/4", com haste e torneira metalicos e balao plastico | F68: un | G68: 12 | H68: 68.84 | I68: 79.36 | J68: 952.32 | K68: 0.0004936167771
A69: 8 | E69: FORNECIMENTO E INSTALAÇÃO DE SISTEMA FOTOVOLTAÍCO | J69: 438540.78 | K69: 0.2273091885
A70: 8.1 | E70: INSTALAÇÕES HIDRÁULICAS | J70: 53247.3 | K70: =J70/$J$101 -> 0.02759971503
A71: 8.1.1 | B71: COMPOSIÇÃO - 019 | C71: Serviço | D71: Próprio | E71: Montagem e instalação hidráulica do kit de bombeamento | F71: un | G71: 12 | H71: 141.42 | I71: 177.44 | J71: 2129.28 | K71: 0.001103671383
A72: 8.1.2 | B72: 00038200 | C72: Material | D72: SINAPI | E72: Fornecimento de corda de poliamida 12 mm tipo bombeiro, para trabalho em altura | F72: 100m | G72: 11.16 | H72: 582.62 | I72: 671.64 | J72: 7495.5 | K72: 0.00388514843
A73: 8.1.3 | B73: 00009861 | C73: Material | D73: SINAPI | E73: Fornecimento de tubo pvc, roscavel, 1 1/4", agua fria predial | F73: m | G73: 1080 | H73: 31.11 | I73: 35.86 | J73: 38728.8 | K73: 0.02007432946
A74: 8.1.4 | B74: 00004180 | C74: Material | D74: SINAPI | E74: Fornecimento de niple de ferro galvanizado, com rosca bsp, de 1 1/4" | F74: un | G74: 12 | H74: 18.99 | I74: 21.89 | J74: 262.68 | K74: 0.0001361551317
A75: 8.1.5 | B75: 00003911 | C75: Material | D75: SINAPI | E75: Fornecimento de luva de ferro galvanizado, com rosca bsp, de 1 1/4" | F75: un | G75: 192 | H75: 20.92 | I75: 24.12 | J75: 4631.04 | K75: 0.002400410618
A76: 8.2 | E76: INSTALAÇÕES ELÉTRICAS | J76: 42627.6 | K76: 0.02209519754
A77: 8.2.1 | B77: COMPOSIÇÃO - 021 | C77: Serviço | D77: Próprio | E77: Montagem e instalação elétrica do kit de bombeamento e sistema fotovoltaico inclusive sistema de aterramento. | F77: un | G77: 12 | H77: 520.5 | I77: 653.07 | J77: 7836.84 | K77: 0.004062075461
A78: 8.2.2 | B78: 00002674 | C78: Material | D78: SINAPI | E78: Fornecimento de eletroduto de pvc rigido roscavel de 3/4 ", sem luva | F78: m | G78: 180 | H78: 4.52 | I78: 5.21 | J78: 937.8 | K78: 0.000486090614
A79: 8.2.3 | B79: 00034622 | C79: Material | D79: SINAPI | E79: Fornecimento de cabo flexivel pvc 750 v, 3 condutores de 6,0 mm2 | F79: m | G79: 1260 | H79: 18.49 | I79: 21.32 | J79: 26863.2 | K79: 0.01392402365
A80: 8.2.4 | B80: 00012034 | C80: Material | D80: SINAPI | E80: Fornecimento de curva 180 graus, de pvc rigido roscavel, de 3/4", para eletroduto | F80: un | G80: 12 | H80: 2.88 | I80: 3.32 | J80: 39.84 | K80: 2.065029864e-05
A81: 8.2.5 | B81: 00039272 | C81: Material | D81: SINAPI | E81: Fornecimento de curva 90 graus, curta, de pvc rigido roscavel, de 3/4", para eletroduto | F81: un | G81: 24 | H81: 1.57 | I81: 1.81 | J81: 43.44 | K81: 2.251628948e-05
A82: 8.2.6 | B82: 00003379 | C82: Material | D82: SINAPI | E82: Fornecimento de haste de aterramento em aco com 3,00 m de comprimento e dn = 5/8", revestida com baixa camada de cobre, sem conector | F82: un | G82: 7.92 | H82: 74.36 | I82: 85.72 | J82: 678.9 | K82: 0.0003518947727
A83: 8.2.7 | B83: 00001891 | C83: Material | D83: SINAPI | E83: Fornecimento de luva em pvc rigido roscavel, de 3/4", para eletroduto | F83: un | G83: 108 | H83: 0.73 | I83: 0.84 | J83: 90.72 | K83: 4.702296919e-05
A84: 8.2.8 | B84: 00000425 | C84: Material | D84: SINAPI | E84: Fornecimento de grampo metalico tipo olhal para haste de aterramento de 5/8'', condutor de *10* a 50 mm2 | F84: un | G84: 24 | H84: 7.05 | I84: 8.13 | J84: 195.12 | K84: 0.0001011367036
A85: 8.2.9 | B85: 00034643 | C85: Material | D85: SINAPI | E85: Fornecimento de caixa de inspecao para aterramento e para raios, em polipropileno, diametro = 300 mm x altura = 400 mm | F85: un | G85: 24 | H85: 38.35 | I85: 44.21 | J85: 1061.04 | K85: 0.0005499697005
A86: 8.2.10 | B86: 00000867 | C86: Material | D86: SINAPI | E86: Fornecimento de cabo de cobre nu 50 mm2 meio-duro | F86: m | G86: 90 | H86: 47.04 | I86: 54.23 | J86: 4880.7 | K86: 0.002529817082
A87: 8.3 | E87: ESTRUTURA DE FIXAÇÃO PARA MÓDULOS FOTOVOLTÁICOS | J87: 39287.52 | K87: 0.02036393124
A88: 8.3.1 | B88: COMPOSIÇÃO - 022 | C88: Serviço | D88: Próprio | E88: Serviço de fixação de estruturas para os módulos fotovoltaicos e suportes de concreto, incluso materiais. | F88: m² | G88: 144 | H88: 217.45 | I88: 272.83 | J88: 39287.52 | K88: 0.02036393124
A89: 8.4 | E89: FORNECIMENTO DE KIT DE BOMBEAMENTO FOTOVOLTAICO | J89: 303378.36 | K89: 0.1572503447
A90: 8.4.1 | B90: COTAÇÃO-001 | C90: Material | D90: Próprio | E90: Fornecimento de kit de bombeamento fotovoltaico, incluindo uma bomba CC de 2200W com imã permanente sem escovas, controladora de carga externa, disjuntor CC, caixa de proteção metálica, módulos compatíveis com a geração de 3300Wp (potência mínima de 550 W por módulo) e componentes elétricos necessários como cabos, conectores MC4 e presilhas de fixação. | F90: un | G90: 12 | H90: 21930.54 | I90: 25281.53 | J90: 303378.36 | K90: 0.1572503447
A91: 9 | E91: URBANIZAÇÃO | J91: 44574.42 | K91: 0.02310429429
A92: 9.1 | E92: CERCA | J92: 33348 | K92: 0.01728529515
A93: 9.1.1 | B93: COMPOSIÇÃO - 023 | C93: Serviço | D93: Próprio | E93: Cerca com mourões de concreto de 15x15cm, espaçados de 3m e cravados a 0,5m, escoras de 10x10cm nos cantos, e 9 fios de arame de aço ovalado 15x17. | F93: m | G93: 336 | H93: 79.1 | I93: 99.25 | J93: 33348 | K93: 0.01728529515
A94: 9.2 | E94: PORTÃO | J94: 11226.42 | K94: 0.005818999137
A95: 9.2.1 | B95: COMPOSIÇÃO - 024 | C95: Serviço | D95: Próprio | E95: Serviço de instalação de portão de ferro com suporte e batedor conforme projeto, incluso material | F95: m² | G95: 18 | H95: 497.08 | I95: 623.69 | J95: 11226.42 | K95: 0.005818999137
A96: 10 | E96: OUTROS SERVIÇOS | J96: 63282.14 | K96: 0.03280108156
A97: 10.1 | B97: COMPOSIÇÃO - 025 | C97: Serviço | D97: Próprio | E97: Serviço de lançamento de concreto para acabamento do tamponamento, incluso material. | F97: m³ | G97: 0.61 | H97: 755.54 | I97: 947.98 | J97: 578.27 | K97: 0.0002997351454
A98: 10.2 | B98: COMPOSIÇÃO - 026 | C98: Serviço | D98: Próprio | E98: Serviço de execução do tamponamento, incluso pedra britada desinfectada. | F98: m³ | G98: 0.61 | H98: 143.21 | I98: 179.69 | J98: 109.61 | K98: 5.681423779e-05
A99: 10.3 | B99: COTAÇÃO-006 | C99: Material | D99: Próprio | E99: Fornecimento tubo revestimento geomecânico classe reforçado Ø 4 1/2" com junta roscável. | F99: m | G99: 500 | H99: 92.4 | I99: 106.52 | J99: 53260 | K99: 0.02760629783
A100: 10.4 | B100: COTAÇÃO-004 | C100: Material | D100: Próprio | E100: Fornecimento tubo filtro geomecânico classe reforçado diâmetro Ø 4 1/2" com junta roscável. | F100: m | G100: 99.96 | H100: 81 | I100: 93.38 | J100: 9334.26 | K100: 0.004838234351
I101: Total | J101: =SUM(J96,J91,J69,J39,J37,J31,J14,J10,J6,J26) -> 1929269.92
A102: Cássio Oliveira Lopes Analista em Desenvolvimento Regional - AR/GSA/UAS CODEVASF – SEDE _______________________________________________________________ Catheriny Soares Andrade Moraes Analista em Desenvolvimento Regional - AR/GSA/UAS CODEVASF – SEDE _______________________________________________________________ Iago Guilherme dos Santos Engenheiro Pleno - AR/GSA/UAS Engeplus Engenharia e Consultoria LTDA _______________________________________________________________ Micheline Mirapalheta Dias Engenheiro Sênior - AR/GSA/UAS Engeplus Engenharia e Consultoria LTDA

Sheet Orç. GO - Tot. Rev - Analítico
I1: ENCARGOS SOCIAIS
A2: ='Planilha Resumo GO'!B2 -> OBJETO: EXECUÇÃO DE SERVIÇOS DE PERFURAÇÃO E INSTALAÇÃO DE POÇOS TUBULARES EM MUNICÍPIOS LOCALIZADOS NOS ESTADOS DO GOIÁS, NA ÁREA DE ATUAÇÃO DA CODEVASF | I2: Não Desonerado: embutido nos preços unitário dos insumos de mão de obra, de acordo com as bases.
A3: PLANILHA ORÇAMENTÁRIA ANALÍTICA – POÇO TOTALMENTE REVESTIDO
A4: 1 | D4: SERVIÇOS PRELIMINARES | J4: 11464.81
A5: 1.1 | B5: Código | C5: Banco | D5: Descrição | E5: Tipo | G5: Und | H5: Quant. | I5: Valor Unit | J5: Total
A6: Composição | B6: COMPOSIÇÃO - 002 | C6: Próprio | D6: Administração Local da Obra - Poço Totalmente Revestido | E6: SERP - SERVIÇOS PRELIMINARES | G6: un | H6: 1 | I6: =J6 -> 75135.81231 | J6: =SUM(J7:J13) -> 75135.81231
A7: Composição Auxiliar | B7: 92138 | C7: SINAPI | D7: CAMINHONETE COM MOTOR A DIESEL, POTÊNCIA 180 CV, CABINE DUPLA, 4X4 - CHP DIURNO. AF_11/2015 | E7: CHOR - CUSTOS HORÁRIOS DE MÁQUINAS E EQUIPAMENTOS | G7: CHP | H7: 83.07692308 | I7: 97.22 | J7: =I7*H7 -> 8076.738462
A8: Composição Auxiliar | B8: 92139 | C8: SINAPI | D8: CAMINHONETE COM MOTOR A DIESEL, POTÊNCIA 180 CV, CABINE DUPLA, 4X4 - CHI DIURNO. AF_11/2015 | E8: CHOR - CUSTOS HORÁRIOS DE MÁQUINAS E EQUIPAMENTOS | G8: CHI | H8: 101.5384615 | I8: 45.24 | J8: =I8*H8 -> 4593.6
A9: Composição Auxiliar | B9: 93572 | C9: SINAPI | D9: ENCARREGADO GERAL DE OBRAS COM ENCARGOS COMPLEMENTARES | E9: SEDI - SERVIÇOS DIVERSOS | G9: MES | H9: 1.846153846 | I9: 5993.49 | J9: 11064.90462
A10: Composição Auxiliar | B10: 93565 | C10: SINAPI | D10: ENGENHEIRO CIVIL DE OBRA JUNIOR COM ENCARGOS COMPLEMENTARES | E10: SEDI - SERVIÇOS DIVERSOS | G10: MES | H10: 2.307692308 | I10: 20464.3 | J10: 47225.30769
A11: Insumo | B11: 00014250 | C11: SINAPI | D11: ENERGIA ELETRICA COMERCIAL, BAIXA TENSAO, RELATIVA AO CONSUMO DE ATE 100 KWH, INCLUINDO ICMS, PIS/PASEP E COFINS | E11: Material | G11: KWH | H11: 738.4615385 | I11: 0.85 | J11: =I11*H11 -> 627.6923077
A12: Insumo | B12: 00044480 | C12: SINAPI | D12: TARIFA "A" ENTRE 0 E 20M3 FORNECIMENTO D'AGUA | E12: Taxas | G12: m³ | H12: 36.92307692 | I12: 16.08 | J12: =I12*H12 -> 593.7230769
A13: Insumo | B13: 4298 | C13: ORSE | D13: Aluguel de container - Escritório com banheiro - 6,20 x 2,40m, equipado com Ar condicionado mês | E13: Serviços | G13: mês | H13: 1.846153846 | I13: 1600 | J13: =I13*H13 -> 2953.846154
A15: 1.2 | B15: Código | C15: Banco | D15: Descrição | E15: Tipo | G15: Und | H15: Quant. | I15: Valor Unit | J15: Total
A16: Composição | B16: COMPOSIÇÃO - 003 | C16: Próprio | D16: Serviço de locação Geológica de campo com relatório hidro geológico e perfil construtivo e geológico esperado. Relatório de Viabilidade de implantação das estruturas e vistorias preliminares | E16: SERT - SERVIÇOS TÉCNICOS | G16: un | H16: 1 | I16: =J16 -> 498.2 | J16: =SUM(J17:J19) -> 498.2
A17: Composição Auxiliar | B17: 30.01.45 | C17: EMBASA | D17: GEOLOGO SENIOR | E17: 3001 | G17: hora | H17: 5 | I17: 79.73 | J17: =I17*H17 -> 398.65
A18: Insumo | B18: 5896 | C18: ORSE | D18: Veículo tipo sedan ou pick-up capacidade 0,6 ton h | E18: Equipamento | G18: h | H18: 5 | I18: 8.33 | J18: 41.65
A19: Insumo | B19: 00004222 | C19: SINAPI | D19: GASOLINA COMUM | E19: Material | G19: L | H19: 10 | I19: 5.79 | J19: 57.9
A22: 1.3 | B22: Código | C22: Banco | D22: Descrição | E22: Tipo | G22: Und | H22: Quant. | I22: Valor Unit | J22: Total
A23: Composição | B23: COMPOSIÇÃO - 005 | C23: Próprio | D23: Placa da Obra - Padrão Governo Federal | E23: SEDI - SERVIÇOS DIVERSOS | G23: m² | H23: 1 | I23: =J23 -> 369.2743 | J23: =SUM(J24:J30) -> 369.2743
A24: Composição Auxiliar | B24: 88262 | C24: SINAPI | D24: CARPINTEIRO DE FORMAS COM ENCARGOS COMPLEMENTARES | E24: SEDI - SERVIÇOS DIVERSOS | G24: H | H24: 1 | I24: 28.3 | J24: =I24*H24 -> 28.3
A25: Composição Auxiliar | B25: 88316 | C25: SINAPI | D25: SERVENTE COM ENCARGOS COMPLEMENTARES | E25: SEDI - SERVIÇOS DIVERSOS | G25: H | H25: 2 | I25: 19.43 | J25: 38.86
A26: Composição Auxiliar | B26: 94975 | C26: SINAPI | D26: CONCRETO FCK = 15MPA, TRAÇO 1:3,4:3,5 (EM MASSA SECA DE CIMENTO/ AREIA MÉDIA/ BRITA 1) - PREPARO MANUAL. AF_05/2021 | E26: FUES - FUNDAÇÕES E ESTRUTURAS | G26: m³ | H26: 0.01 | I26: 504.86 | J26: 5.0486
A27: Insumo | B27: 00004491 | C27: SINAPI | D27: PONTALETE *7,5 X 7,5* CM EM PINUS, MISTA OU EQUIVALENTE DA REGIAO - BRUTA | E27: Material | G27: M | H27: 4 | I27: 9.35 | J27: 37.4
A28: Insumo | B28: 00004813 | C28: SINAPI | D28: PLACA DE OBRA (PARA CONSTRUCAO CIVIL) EM CHAPA GALVANIZADA *N. 22*, ADESIVADA, DE *2,4 X 1,2* M (SEM POSTES PARA FIXACAO) | E28: Material | G28: m² | H28: 1 | I28: 250 | J28: 250
A29: Insumo | B29: 00005075 | C29: SINAPI | D29: PREGO DE ACO POLIDO COM CABECA 18 X 30 (2 3/4 X 10) | E29: Material | G29: KG | H29: 0.11 | I29: 21.87 | J29: 2.4057
A30: Insumo | B30: 00004417 | C30: SINAPI | D30: SARRAFO NAO APARELHADO *2,5 X 7* CM, EM MACARANDUBA/MASSARANDUBA, ANGELIM, PEROBA-ROSA OU EQUIVALENTE DA REGIAO - BRUTA | E30: Material | G30: M | H30: 1 | I30: 7.26 | J30: 7.26
A32: 2 | D32: MOBILIZAÇÂO E DESMOBILIZAÇÂO EQUIPES PERFURAÇÂO E INSTALAÇÃO | J32: 2541.6
A33: 2.1 | B33: Código | C33: Banco | D33: Descrição | E33: Tipo | G33: Und | H33: Quant. | I33: Valor Unit | J33: Total
A34: Composição | B34: COMPOSIÇÃO - 006 | C34: Próprio | D34: Transporte de Comboio Perfuração | E34: TRAN - TRANSPORTES, CARGAS E DESCARGAS | G34: km | H34: 1 | I34: =J34 -> 4.7745894 | J34: =SUM(J35:J36) -> 4.7745894
A35: Composição Auxiliar | B35: 5824 | C35: SINAPI | D35: CAMINHÃO TOCO, PBT 16.000 KG, CARGA ÚTIL MÁX. 10.685 KG, DIST. ENTRE EIXOS 4,8 M, POTÊNCIA 189 CV, INCLUSIVE CARROCERIA FIXA ABERTA DE MADEIRA P/ TRANSPORTE GERAL DE CARGA SECA, DIMEN. APROX. 2,5 X 7,00 X 0,50 M - CHP DIURNO. AF_06/2014 | E35: CHOR - CUSTOS HORÁRIOS DE MÁQUINAS E EQUIPAMENTOS | G35: CHP | H35: 0.01666 | I35: 221.84 | J35: =I35*H35 -> 3.6958544
A36: Composição Auxiliar | B36: 5826 | C36: SINAPI | D36: CAMINHÃO TOCO, PBT 16.000 KG, CARGA ÚTIL MÁX. 10.685 KG, DIST. ENTRE EIXOS 4,8 M, POTÊNCIA 189 CV, INCLUSIVE CARROCERIA FIXA ABERTA DE MADEIRA P/ TRANSPORTE GERAL DE CARGA SECA, DIMEN. APROX. 2,5 X 7,00 X 0,50 M - CHI DIURNO. AF_06/2014 | E36: CHOR - CUSTOS HORÁRIOS DE MÁQUINAS E EQUIPAMENTOS | G36: CHI | H36: 0.01666 | I36: 64.75 | J36: =I36*H36 -> 1.078735
A38: 2.2 | B38: Código | C38: Banco | D38: Descrição | E38: Tipo | G38: Und | H38: Quant. | I38: Valor Unit | J38: Total
A39: Composição | B39: COMPOSIÇÃO - 007 | C39: Próprio | D39: Transporte de Comboio Instalação | E39: TRAN - TRANSPORTES, CARGAS E DESCARGAS | G39: km | H39: 1 | I39: =J39 -> 5.9639468 | J39: =SUM(J40:J41) -> 5.9639468
A40: Composição Auxiliar | B40: 5928 | C40: SINAPI | D40: GUINDAUTO HIDRÁULICO, CAPACIDADE MÁXIMA DE CARGA 6200 KG, MOMENTO MÁXIMO DE CARGA 11,7 TM, ALCANCE MÁXIMO HORIZONTAL 9,70 M, INCLUSIVE CAMINHÃO TOCO PBT 16.000 KG, POTÊNCIA DE 189 CV - CHP DIURNO. AF_06/2014 | E40: CHOR - CUSTOS HORÁRIOS DE MÁQUINAS E EQUIPAMENTOS | G40: CHP | H40: 0.01666 | I40: 282.26 | J40: =I40*H40 -> 4.7024516
A41: Composição Auxiliar | B41: 5930 | C41: SINAPI | D41: GUINDAUTO HIDRÁULICO, CAPACIDADE MÁXIMA DE CARGA 6200 KG, MOMENTO MÁXIMO DE CARGA 11,7 TM, ALCANCE MÁXIMO HORIZONTAL 9,70 M, INCLUSIVE CAMINHÃO TOCO PBT 16.000 KG, POTÊNCIA DE 189 CV - CHI DIURNO. AF_06/2014 | E41: CHOR - CUSTOS HORÁRIOS DE MÁQUINAS E EQUIPAMENTOS | G41: CHI | H41: 0.01666 | I41: 75.72 | J41: 1.2614952
A44: 2.3 | B44: Código | C44: Banco | D44: Descrição | E44: Tipo | G44: Und | H44: Quant. | I44: Valor Unit | J44: Total
A45: Composição | B45: COMPOSIÇÃO - 008 | C45: Próprio | D45: Transporte de água em caminhão pipa para preparo do fluído de perfuração rotativa | E45: TRAN - TRANSPORTES, CARGAS E DESCARGAS | G45: km | H45: 1 | I45: =J45 -> 5.416166 | J45: =SUM(J46:J47) -> 5.416166
A46: Composição Auxiliar | B46: 6259 | C46: SINAPI | D46: CAMINHÃO PIPA 6.000 L, PESO BRUTO TOTAL 13.000 KG, DISTÂNCIA ENTRE EIXOS 4,80 M, POTÊNCIA 189 CV INCLUSIVE TANQUE DE AÇO PARA TRANSPORTE DE ÁGUA, CAPACIDADE 6 M3 - CHP DIURNO. AF_06/2014 | E46: CHOR - CUSTOS HORÁRIOS DE MÁQUINAS E EQUIPAMENTOS | G46: CHP | H46: 0.01666 | I46: 261.13 | J46: =I46*H46 -> 4.3504258
A47: Composição Auxiliar | B47: 6260 | C47: SINAPI | D47: CAMINHÃO PIPA 6.000 L, PESO BRUTO TOTAL 13.000 KG, DISTÂNCIA ENTRE EIXOS 4,80 M, POTÊNCIA 189 CV INCLUSIVE TANQUE DE AÇO PARA TRANSPORTE DE ÁGUA, CAPACIDADE 6 M3 - CHI DIURNO. AF_06/2014 | E47: CHOR - CUSTOS HORÁRIOS DE MÁQUINAS E EQUIPAMENTOS | G47: CHI | H47: 0.01666 | I47: 63.97 | J47: 1.0657402
A49: 3 | D49: PERFURAÇÃO E COMPLETAÇÃO DE POÇO TUBULAR | J49: 79472.04
A50: 3.1 | B50: Código | C50: Banco | D50: Descrição | E50: Tipo | G50: Und | H50: Quant. | I50: Valor Unit | J50: Total
A51: Composição | B51: COMPOSIÇÃO - 009 | C51: Próprio | D51: Limpeza manual , remoção de cerca, capina e instalação dos equipamentos (área do poço, painéis solares, bebedouro e reservatório) | E51: SEDI - SERVIÇOS DIVERSOS | G51: m² | H51: 1 | I51: 1.55 | J51: 1.55
A52: Composição Auxiliar | B52: 88316 | C52: SINAPI | D52: SERVENTE COM ENCARGOS COMPLEMENTARES | E52: SEDI - SERVIÇOS DIVERSOS | G52: H | H52: 0.08 | I52: 19.43 | J52: 1.55
A54: 3.2 | B54: Código | C54: Banco | D54: Descrição | E54: Tipo | G54: Und | H54: Quant. | I54: Valor Unit | J54: Total
A55: Composição | B55: COMPOSIÇÃO - 012 | C55: Próprio | D55: Perfuração rotativa com circulação direta Ø 9.1/2" | E55: SERT - SERVIÇOS TÉCNICOS | G55: m | H55: 1 | I55: 262.19 | J55: 262.19
A56: Composição Auxiliar | B56: 88263 | C56: SINAPI | D56: CAVOUQUEIRO OU OPERADOR PERFURATRIZ/ROMPEDOR COM ENCARGOS COMPLEMENTARES | E56: SEDI - SERVIÇOS DIVERSOS | G56: H | H56: 0.8 | I56: 21.34 | J56: 17.07
A57: Composição Auxiliar | B57: 88316 | C57: SINAPI | D57: SERVENTE COM ENCARGOS COMPLEMENTARES | E57: SEDI - SERVIÇOS DIVERSOS | G57: H | H57: 2.4 | I57: 19.43 | J57: 46.63
A58: Insumo | B58: 5071 | C58: ORSE | D58: Perfuração rocha sedimentar sedimento / camadas inconsolidadas dn 8.1/2 a 9.1/2" - até 150m m | E58: Serviços | G58: m | H58: 1 | I58: 198.49 | J58: 198.49
A61: 3.10 | B61: Código | C61: Banco | D61: Descrição | E61: Tipo | G61: Und | H61: Quant. | I61: Valor Unit | J61: Total
A62: Composição | B62: COMPOSIÇÃO - 011 | C62: Próprio | D62: Serviço de lançamento cimentação anelar poço tubular, incluso material. | E62: SEDI - SERVIÇOS DIVERSOS | G62: m³ | H62: 1 | I62: 792.08 | J62: 792.08
A63: Composição Auxiliar | B63: 1903 | C63: ORSE | D63: Argamassa cimento e areia traço t-1 (1:3) - 1 saco cimento 50kg / 3 padiolas areia dim. 0.35 x 0.45 x 0.23 m - Confecção mecânica e transporte | E63: Argamassas | G63: m³ | H63: 1 | I63: 555.9 | J63: 555.9
A64: Composição Auxiliar | B64: 88316 | C64: SINAPI | D64: SERVENTE COM ENCARGOS COMPLEMENTARES | E64: SEDI - SERVIÇOS DIVERSOS | G64: H | H64: 7.4 | I64: 19.43 | J64: 143.78
A65: Insumo | B65: 00000124 | C65: SINAPI | D65: ADITIVO ACELERADOR DE PEGA E ENDURECIMENTO PARA ARGAMASSAS E CONCRETOS, LIQUIDO E ISENTO DE CLORETOS | E65: Material | G65: L | H65: 5 | I65: 18.48 | J65: 92.4
A67: 3.11 | B67: Código | C67: Banco | D67: Descrição | E67: Tipo | G67: Und | H67: Quant. | I67: Valor Unit | J67: Total
A68: Composição | B68: COMPOSIÇÃO - 014 | C68: Próprio | D68: Serviço de instalação de laje sanitária com dimensões (1,5x1,5x0,3) , incluso material. | E68: SEDI - SERVIÇOS DIVERSOS | G68: un | H68: 1 | I68: 637.07 | J68: 637.07
A69: Composição Auxiliar | B69: 92522 | C69: SINAPI | D69: MONTAGEM E DESMONTAGEM DE FÔRMA DE LAJE MACIÇA, PÉ-DIREITO SIMPLES, EM CHAPA DE MADEIRA COMPENSADA RESINADA, 8 UTILIZAÇÕES. AF_09/2020 | E69: FUES - FUNDAÇÕES E ESTRUTURAS | G69: m² | H69: 1.8 | I69: 47.93 | J69: 86.27
A70: Composição Auxiliar | B70: 93358 | C70: SINAPI | D70: ESCAVAÇÃO MANUAL DE VALA COM PROFUNDIDADE MENOR OU IGUAL A 1,30 M. AF_02/2021 | E70: MOVT - MOVIMENTO DE TERRA | G70: m³ | H70: 0.225 | I70: 76.87 | J70: 17.3
A71: Composição Auxiliar | B71: 94975 | C71: SINAPI | D71: CONCRETO FCK = 15MPA, TRAÇO 1:3,4:3,5 (EM MASSA SECA DE CIMENTO/ AREIA MÉDIA/ BRITA 1) - PREPARO MANUAL. AF_05/2021 | E71: FUES - FUNDAÇÕES E ESTRUTURAS | G71: m³ | H71: 0.675 | I71: 504.86 | J71: 340.78
A72: Composição Auxiliar | B72: 103670 | C72: SINAPI | D72: LANÇAMENTO COM USO DE BALDES, ADENSAMENTO E ACABAMENTO DE CONCRETO EM ESTRUTURAS. AF_02/2022 | E72: FUES - FUNDAÇÕES E ESTRUTURAS | G72: m³ | H72: 0.675 | I72: 285.51 | J72: 192.72
A74: 4 | D74: PÓS PERFURAÇÃO | J74: 10385.82
A75: 4.3 | B75: Código | C75: Banco | D75: Descrição | E75: Tipo | G75: Und | H75: Quant. | I75: Valor Unit | J75: Total
A76: Composição | B76: COMPOSIÇÃO - 015 | C76: Próprio | D76: Inspeção ótica em poço tubular câmera com rotação de 360º, visada lateral, com fonte própria de luz, entregue vídeo em cores e marcação de profundidades. | E76: SEES - SERVIÇOS ESPECIAIS | G76: m | H76: 1 | I76: 38.05 | J76: 38.05
A77: Insumo | B77: H020050004 | C77: EMBASA | D77: APARELHO DE PERFILAGEM OPTICA | E77: Material | G77: M | H77: 1 | I77: 4.4 | J77: 4.4
A78: Insumo | B78: B590000022 | C78: EMBASA | D78: TECNICO MEDIO | E78: Mão de Obra | G78: H | H78: 0.0835 | I78: 48.54 | J78: 4.05
A79: Insumo | B79: B590000028 | C79: EMBASA | D79: AUXILIAR TECNICO | E79: Mão de Obra | G79: H | H79: 0.0835 | I79: 22.47 | J79: 1.88
A80: Insumo | B80: F020000340 | C80: EMBASA | D80: DIÁRIA PARA PROFISSIONAL (INTERIOR) | E80: Material | G80: DIA | H80: 0.021 | I80: 227 | J80: 4.77
A81: Insumo | B81: F030000250 | C81: EMBASA | D81: LOCAÇÃO DE VEÍCULO PICK UP TIPO SAVEIRO OU SIMILAR | E81: Material | G81: DIA | H81: 0.25 | I81: 91.8 | J81: 22.95
A83: 5 | D83: RESERVAÇÃO | J83: 6271.38
A84: 5.1 | B84: Código | C84: Banco | D84: Descrição | E84: Tipo | G84: Und | H84: Quant. | I84: Valor Unit | J84: Total
A85: Composição | B85: COMPOSIÇÃO - 016 | C85: Próprio | D85: Execução e instalação de base de sustentação em concreto armado para reservatório de diâmetro 2,06m e altura 1,10m, conforme projeto, incluindo fixação de grampos da tampa. | E85: SEDI - SERVIÇOS DIVERSOS | G85: un | H85: 1 | I85: 2834.03 | J85: 2834.03
A86: Composição Auxiliar | B86: 5928 | C86: SINAPI | D86: GUINDAUTO HIDRÁULICO, CAPACIDADE MÁXIMA DE CARGA 6200 KG, MOMENTO MÁXIMO DE CARGA 11,7 TM, ALCANCE MÁXIMO HORIZONTAL 9,70 M, INCLUSIVE CAMINHÃO TOCO PBT 16.000 KG, POTÊNCIA DE 189 CV - CHP DIURNO. AF_06/2014 | E86: CHOR - CUSTOS HORÁRIOS DE MÁQUINAS E EQUIPAMENTOS | G86: CHP | H86: 2.5 | I86: 282.26 | J86: 705.65
A87: Composição Auxiliar | B87: 88310 | C87: SINAPI | D87: PINTOR COM ENCARGOS COMPLEMENTARES | E87: SEDI - SERVIÇOS DIVERSOS | G87: H | H87: 0.3 | I87: 29.9 | J87: 8.97
A88: Composição Auxiliar | B88: 100301 | C88: SINAPI | D88: AJUDANTE DE PINTOR COM ENCARGOS COMPLEMENTARES | E88: SEDI - SERVIÇOS DIVERSOS | G88: H | H88: 0.1 | I88: 21.17 | J88: 2.12
A89: Composição Auxiliar | B89: 88309 | C89: SINAPI | D89: PEDREIRO COM ENCARGOS COMPLEMENTARES | E89: SEDI - SERVIÇOS DIVERSOS | G89: H | H89: 5.55 | I89: 28.7 | J89: 159.29
A90: Composição Auxiliar | B90: 88316 | C90: SINAPI | D90: SERVENTE COM ENCARGOS COMPLEMENTARES | E90: SEDI - SERVIÇOS DIVERSOS | G90: H | H90: 10 | I90: 19.43 | J90: 194.3
A91: Composição Auxiliar | B91: 88245 | C91: SINAPI | D91: ARMADOR COM ENCARGOS COMPLEMENTARES | E91: SEDI - SERVIÇOS DIVERSOS | G91: H | H91: 3 | I91: 28.48 | J91: 85.44
A92: Composição Auxiliar | B92: 88262 | C92: SINAPI | D92: CARPINTEIRO DE FORMAS COM ENCARGOS COMPLEMENTARES | E92: SEDI - SERVIÇOS DIVERSOS | G92: H | H92: 2 | I92: 28.3 | J92: 56.6
A93: Composição Auxiliar | B93: 87445 | C93: SINAPI | D93: BETONEIRA CAPACIDADE NOMINAL 400 L, CAPACIDADE DE MISTURA 310 L, MOTOR A DIESEL POTÊNCIA 5,0 HP, SEM CARREGADOR - CHP DIURNO. AF_05/2023 | E93: CHOR - CUSTOS HORÁRIOS DE MÁQUINAS E EQUIPAMENTOS | G93: CHP | H93: 2.8548 | I93: 5.45 | J93: 15.56
A94: Composição Auxiliar | B94: 88377 | C94: SINAPI | D94: OPERADOR DE BETONEIRA ESTACIONÁRIA/MISTURADOR COM ENCARGOS COMPLEMENTARES | E94: SEDI - SERVIÇOS DIVERSOS | G94: H | H94: 2.8548 | I94: 17.97 | J94: 51.3
A95: Insumo | B95: 00007155 | C95: SINAPI | D95: TELA DE ACO SOLDADA NERVURADA, CA-60, Q-138, (2,20 KG/M2), DIAMETRO DO FIO = 4,2 MM, LARGURA = 2,45 M, ESPACAMENTO DA MALHA = 10 X 10 CM | E95: Material | G95: m² | H95: 6 | I95: 15.98 | J95: 95.88
A96: Insumo | B96: 00000370 | C96: SINAPI | D96: AREIA MEDIA - POSTO JAZIDA/FORNECEDOR (RETIRADO NA JAZIDA, SEM TRANSPORTE) | E96: Material | G96: m³ | H96: 1.36 | I96: 150 | J96: 204
A97: Insumo | B97: 00001379 | C97: SINAPI | D97: CIMENTO PORTLAND COMPOSTO CP II-32 | E97: Material | G97: KG | H97: 565.75 | I97: 0.72 | J97: 407.34
A98: Insumo | B98: 00004718 | C98: SINAPI | D98: PEDRA BRITADA N. 2 (19 A 38 MM) POSTO PEDREIRA/FORNECEDOR, SEM FRETE | E98: Material | G98: m³ | H98: 0.33 | I98: 104.72 | J98: 34.56
A99: Insumo | B99: 00004721 | C99: SINAPI | D99: PEDRA BRITADA N. 1 (9,5 a 19 MM) POSTO PEDREIRA/FORNECEDOR, SEM FRETE | E99: Material | G99: m³ | H99: 0.98 | I99: 104.17 | J99: 102.09
A100: Insumo | B100: 00003767 | C100: SINAPI | D100: LIXA EM FOLHA PARA PAREDE OU MADEIRA, NUMERO 120, COR VERMELHA | E100: Material | G100: UN | H100: 0.12 | I100: 0.79 | J100: 0.09
A101: Insumo | B101: 00007356 | C101: SINAPI | D101: TINTA LATEX ACRILICA PREMIUM, COR BRANCO FOSCO | E101: Material | G101: L | H101: 0.18 | I101: 27.16 | J101: 4.89
A102: Insumo | B102: 00000032 | C102: SINAPI | D102: ACO CA-50, 6,3 MM, VERGALHAO | E102: Material | G102: KG | H102: 9.3 | I102: 7.9 | J102: 73.47
A103: Insumo | B103: 00043059 | C103: SINAPI | D103: ACO CA-60, 4,2 MM, OU 5,0 MM, OU 6,0 MM, OU 7,0 MM, VERGALHAO | E103: Material | G103: KG | H103: 3.04 | I103: 7.09 | J103: 21.55
A104: Insumo | B104: 00043681 | C104: SINAPI | D104: CHAPA/PAINEL DE MADEIRA COMPENSADA RESINADA (MADEIRITE RESINADO ROSA) PARA FORMA DE CONCRETO, DE 2200 x 1100 MM, E = 8 A 12 MM | E104: Material | G104: m² | H104: 17.46 | I104: 34.99 | J104: 610.93
A106: 6 | D106: BEBEDOURO | J106: 1996.18
A107: 6.1 | B107: Código | C107: Banco | D107: Descrição | E107: Tipo | G107: Und | H107: Quant. | I107: Valor Unit | J107: Total
A108: Composição | B108: COMPOSIÇÃO - 017 | C108: Próprio | D108: Serviço de execução do bebedouro em concreto armado, incluso materiais. | E108: SEDI - SERVIÇOS DIVERSOS | G108: un | H108: 1 | I108: 1590.96 | J108: 1590.96
A109: Composição Auxiliar | B109: 5928 | C109: SINAPI | D109: GUINDAUTO HIDRÁULICO, CAPACIDADE MÁXIMA DE CARGA 6200 KG, MOMENTO MÁXIMO DE CARGA 11,7 TM, ALCANCE MÁXIMO HORIZONTAL 9,70 M, INCLUSIVE CAMINHÃO TOCO PBT 16.000 KG, POTÊNCIA DE 189 CV - CHP DIURNO. AF_06/2014 | E109: CHOR - CUSTOS HORÁRIOS DE MÁQUINAS E EQUIPAMENTOS | G109: CHP | H109: 2 | I109: 282.26 | J109: 564.52
A110: Composição Auxiliar | B110: 87445 | C110: SINAPI | D110: BETONEIRA CAPACIDADE NOMINAL 400 L, CAPACIDADE DE MISTURA 310 L, MOTOR A DIESEL POTÊNCIA 5,0 HP, SEM CARREGADOR - CHP DIURNO. AF_05/2023 | E110: CHOR - CUSTOS HORÁRIOS DE MÁQUINAS E EQUIPAMENTOS | G110: CHP | H110: 0.5 | I110: 5.45 | J110: 2.73
A111: Composição Auxiliar | B111: 88377 | C111: SINAPI | D111: OPERADOR DE BETONEIRA ESTACIONÁRIA/MISTURADOR COM ENCARGOS COMPLEMENTARES | E111: SEDI - SERVIÇOS DIVERSOS | G111: H | H111: 0.5 | I111: 17.97 | J111: 8.99
A112: Composição Auxiliar | B112: 88310 | C112: SINAPI | D112: PINTOR COM ENCARGOS COMPLEMENTARES | E112: SEDI - SERVIÇOS DIVERSOS | G112: H | H112: 0.3 | I112: 29.9 | J112: 8.97
A113: Composição Auxiliar | B113: 100301 | C113: SINAPI | D113: AJUDANTE DE PINTOR COM ENCARGOS COMPLEMENTARES | E113: SEDI - SERVIÇOS DIVERSOS | G113: H | H113: 0.1 | I113: 21.17 | J113: 2.12
A114: Composição Auxiliar | B114: 88245 | C114: SINAPI | D114: ARMADOR COM ENCARGOS COMPLEMENTARES | E114: SEDI - SERVIÇOS DIVERSOS | G114: H | H114: 3 | I114: 28.48 | J114: 85.44
A115: Composição Auxiliar | B115: 88262 | C115: SINAPI | D115: CARPINTEIRO DE FORMAS COM ENCARGOS COMPLEMENTARES | E115: SEDI - SERVIÇOS DIVERSOS | G115: H | H115: 2 | I115: 28.3 | J115: 56.6
A116: Composição Auxiliar | B116: 88316 | C116: SINAPI | D116: SERVENTE COM ENCARGOS COMPLEMENTARES | E116: SEDI - SERVIÇOS DIVERSOS | G116: H | H116: 5 | I116: 19.43 | J116: 97.15
A117: Composição Auxiliar | B117: 88309 | C117: SINAPI | D117: PEDREIRO COM ENCARGOS COMPLEMENTARES | E117: SEDI - SERVIÇOS DIVERSOS | G117: H | H117: 4 | I117: 28.7 | J117: 114.8
A118: Insumo | B118: 00043055 | C118: SINAPI | D118: ACO CA-50, 12,5 MM OU 16,0 MM, VERGALHAO | E118: Material | G118: KG | H118: 12 | I118: 6.49 | J118: 77.88
A119: Insumo | B119: 00043059 | C119: SINAPI | D119: ACO CA-60, 4,2 MM, OU 5,0 MM, OU 6,0 MM, OU 7,0 MM, VERGALHAO | E119: Material | G119: KG | H119: 13 | I119: 7.09 | J119: 92.17
A120: Insumo | B120: 00000032 | C120: SINAPI | D120: ACO CA-50, 6,3 MM, VERGALHAO | E120: Material | G120: KG | H120: 6 | I120: 7.9 | J120: 47.4
A121: Insumo | B121: 00000370 | C121: SINAPI | D121: AREIA MEDIA - POSTO JAZIDA/FORNECEDOR (RETIRADO NA JAZIDA, SEM TRANSPORTE) | E121: Material | G121: m³ | H121: 0.32 | I121: 150 | J121: 48
A122: Insumo | B122: 00001379 | C122: SINAPI | D122: CIMENTO PORTLAND COMPOSTO CP II-32 | E122: Material | G122: KG | H122: 127 | I122: 0.72 | J122: 91.44
A123: Insumo | B123: 00004718 | C123: SINAPI | D123: PEDRA BRITADA N. 2 (19 A 38 MM) POSTO PEDREIRA/FORNECEDOR, SEM FRETE | E123: Material | G123: m³ | H123: 0.08 | I123: 104.72 | J123: 8.38
A124: Insumo | B124: 00004721 | C124: SINAPI | D124: PEDRA BRITADA N. 1 (9,5 a 19 MM) POSTO PEDREIRA/FORNECEDOR, SEM FRETE | E124: Material | G124: m³ | H124: 0.23 | I124: 104.17 | J124: 23.96
A125: Insumo | B125: 00003767 | C125: SINAPI | D125: LIXA EM FOLHA PARA PAREDE OU MADEIRA, NUMERO 120, COR VERMELHA | E125: Material | G125: UN | H125: 0.12 | I125: 0.79 | J125: 0.09
A126: Insumo | B126: 00007356 | C126: SINAPI | D126: TINTA LATEX ACRILICA PREMIUM, COR BRANCO FOSCO | E126: Material | G126: L | H126: 0.18 | I126: 27.16 | J126: 4.89
A127: Insumo | B127: 00043681 | C127: SINAPI | D127: CHAPA/PAINEL DE MADEIRA COMPENSADA RESINADA (MADEIRITE RESINADO ROSA) PARA FORMA DE CONCRETO, DE 2200 x 1100 MM, E = 8 A 12 MM | E127: Material | G127: m² | H127: 7.3 | I127: 34.99 | J127: 255.43
A129: 7 | D129: INSTALAÇÕES HIDRÁULICAS | J129: 3722.77
A130: 7.1 | D130: INSTALAÇÕES DE CAVALETE | J130: 1405.69
A131: 7.1.1 | B131: Código | C131: Banco | D131: Descrição | E131: Tipo | G131: Und | H131: Quant. | I131: Valor Unit | J131: Total
A132: Composição | B132: COMPOSIÇÃO - 018 | C132: Próprio | D132: Montagem e Instalação de Tubulação e Conexões Cavalete | E132: INHI - INSTALAÇÕES HIDROS SANITÁRIAS | G132: un | H132: 1 | I132: 280.91 | J132: 280.91
A133: Composição Auxiliar | B133: 88248 | C133: SINAPI | D133: AUXILIAR DE ENCANADOR OU BOMBEIRO HIDRÁULICO COM ENCARGOS COMPLEMENTARES | E133: SEDI - SERVIÇOS DIVERSOS | G133: H | H133: 3 | I133: 19.19 | J133: 57.57
A134: Composição Auxiliar | B134: 88267 | C134: SINAPI | D134: ENCANADOR OU BOMBEIRO HIDRÁULICO COM ENCARGOS COMPLEMENTARES | E134: SEDI - SERVIÇOS DIVERSOS | G134: H | H134: 3 | I134: 27.95 | J134: 83.85
A135: Insumo | B135: 00000122 | C135: SINAPI | D135: ADESIVO PLASTICO PARA PVC, FRASCO COM *850* GR | E135: Material | G135: UN | H135: 1 | I135: 65.4 | J135: 65.4
A136: Insumo | B136: 00020083 | C136: SINAPI | D136: SOLUCAO PREPARADORA / LIMPADORA PARA PVC, FRASCO COM 1000 CM3 | E136: Material | G136: UN | H136: 1 | I136: 74.09 | J136: 74.09
A138: 7.2 | D138: INSTALAÇÕES DE ADUTORA, RESERVATÓRIO E BEBEDOURO | J138: 2317.08
A139: 7.2.1 | B139: Código | C139: Banco | D139: Descrição | E139: Tipo | G139: Und | H139: Quant. | I139: Valor Unit | J139: Total
A140: Composição | B140: COMPOSIÇÃO - 020 | C140: Próprio | D140: Montagem e instalação da rede adutora poço-reservatório-bebedouro | E140: SEDI - SERVIÇOS DIVERSOS | G140: un | H140: 1 | I140: 1081.63 | J140: 1081.63
A141: Composição Auxiliar | B141: 88316 | C141: SINAPI | D141: SERVENTE COM ENCARGOS COMPLEMENTARES | E141: SEDI - SERVIÇOS DIVERSOS | G141: H | H141: 6 | I141: 19.43 | J141: 116.58
A142: Composição Auxiliar | B142: 93358 | C142: SINAPI | D142: ESCAVAÇÃO MANUAL DE VALA COM PROFUNDIDADE MENOR OU IGUAL A 1,30 M. AF_02/2021 | E142: MOVT - MOVIMENTO DE TERRA | G142: m³ | H142: 4.5 | I142: 76.87 | J142: 345.92
A143: Composição Auxiliar | B143: 88267 | C143: SINAPI | D143: ENCANADOR OU BOMBEIRO HIDRÁULICO COM ENCARGOS COMPLEMENTARES | E143: SEDI - SERVIÇOS DIVERSOS | G143: H | H143: 6 | I143: 27.95 | J143: 167.7
A144: Composição Auxiliar | B144: 93382 | C144: SINAPI | D144: REATERRO MANUAL DE VALAS, COM COMPACTADOR DE SOLOS DE PERCUSSÃO. AF_08/2023 | E144: MOVT - MOVIMENTO DE TERRA | G144: m³ | H144: 4.5 | I144: 22.72 | J144: 102.24
A145: Composição Auxiliar | B145: 96995 | C145: SINAPI | D145: REATERRO MANUAL APILOADO COM SOQUETE. AF_10/2017 | E145: MOVT - MOVIMENTO DE TERRA | G145: m³ | H145: 4.5 | I145: 46.6 | J145: 209.7
A146: Insumo | B146: 00000122 | C146: SINAPI | D146: ADESIVO PLASTICO PARA PVC, FRASCO COM *850* GR | E146: Material | G146: UN | H146: 1 | I146: 65.4 | J146: 65.4
A147: Insumo | B147: 00020083 | C147: SINAPI | D147: SOLUCAO PREPARADORA / LIMPADORA PARA PVC, FRASCO COM 1000 CM3 | E147: Material | G147: UN | H147: 1 | I147: 74.09 | J147: 74.09
A149: 8 | D149: FORNECIMENTO E INSTALAÇÃO DE SISTEMA FOTOVOLTAÍCO | J149: 36545.08
A150: 8.1 | D150: INSTALAÇÕES HIDRÁULICAS | J150: 4437.28
A151: 8.1.1 | B151: Código | C151: Banco | D151: Descrição | E151: Tipo | G151: Und | H151: Quant. | I151: Valor Unit | J151: Total
A152: Composição | B152: COMPOSIÇÃO - 019 | C152: Próprio | D152: Montagem e instalação hidráulica do kit de bombeamento | E152: INHI - INSTALAÇÕES HIDROS SANITÁRIAS | G152: un | H152: 1 | I152: 141.42 | J152: 141.42
A153: Composição Auxiliar | B153: 88267 | C153: SINAPI | D153: ENCANADOR OU BOMBEIRO HIDRÁULICO COM ENCARGOS COMPLEMENTARES | E153: SEDI - SERVIÇOS DIVERSOS | G153: H | H153: 3 | I153: 27.95 | J153: 83.85
A154: Composição Auxiliar | B154: 88248 | C154: SINAPI | D154: AUXILIAR DE ENCANADOR OU BOMBEIRO HIDRÁULICO COM ENCARGOS COMPLEMENTARES | E154: SEDI - SERVIÇOS DIVERSOS | G154: H | H154: 3 | I154: 19.19 | J154: 57.57
A156: 8.2 | D156: INSTALAÇÕES ELÉTRICAS | J156: 3552.31
A157: 8.2.1 | B157: Código | C157: Banco | D157: Descrição | E157: Tipo | G157: Und | H157: Quant. | I157: Valor Unit | J157: Total
A158: Composição | B158: COMPOSIÇÃO - 021 | C158: Próprio | D158: Montagem e instalação elétrica do kit de bombeamento e sistema fotovoltaico inclusive sistema de aterramento. | E158: INEL - INSTALAÇÃO ELÉTRICA/ELETRIFICAÇÃO E ILUMINAÇÃO EXTERNA | G158: un | H158: 1 | I158: 520.5 | J158: 520.5
A159: Composição Auxiliar | B159: 88264 | C159: SINAPI | D159: ELETRICISTA COM ENCARGOS COMPLEMENTARES | E159: SEDI - SERVIÇOS DIVERSOS | G159: H | H159: 8 | I159: 29.07 | J159: 232.56
A160: Composição Auxiliar | B160: 88247 | C160: SINAPI | D160: AUXILIAR DE ELETRICISTA COM ENCARGOS COMPLEMENTARES | E160: SEDI - SERVIÇOS DIVERSOS | G160: H | H160: 8 | I160: 20.13 | J160: 161.04
A161: Composição Auxiliar | B161: 90777 | C161: SINAPI | D161: ENGENHEIRO ELÉTRICO DE OBRA JUNIOR COM ENCARGOS COMPLEMENTARES | E161: SEDI - SERVIÇOS DIVERSOS | G161: H | H161: 1 | I161: 116.68 | J161: 116.68
A162: Insumo | B162: 00020111 | C162: SINAPI | D162: FITA ISOLANTE ADESIVA ANTICHAMA, USO ATE 750 V, EM ROLO DE 19 MM X 20 M | E162: Material | G162: UN | H162: 1 | I162: 9 | J162: 9
A163: Insumo | B163: 00000404 | C163: SINAPI | D163: FITA ISOLANTE DE BORRACHA AUTOFUSAO, USO ATE 69 KV (ALTA TENSAO) | E163: Material | G163: M | H163: 1 | I163: 1.22 | J163: 1.22
A165: 8.3 | D165: ESTRUTURA DE FIXAÇÃO PARA MÓDULOS FOTOVOLTÁICOS | J165: 3273.96
A166: 8.3.1 | B166: Código | C166: Banco | D166: Descrição | E166: Tipo | G166: Und | H166: Quant. | I166: Valor Unit | J166: Total
A167: Composição | B167: COMPOSIÇÃO - 022 | C167: Próprio | D167: Serviço de fixação de estruturas para os módulos fotovoltaicos e suportes de concreto, incluso materiais. | E167: SEDI - SERVIÇOS DIVERSOS | G167: m² | H167: 1 | I167: 217.45 | J167: 217.45
A168: Composição Auxiliar | B168: 94975 | C168: SINAPI | D168: CONCRETO FCK = 15MPA, TRAÇO 1:3,4:3,5 (EM MASSA SECA DE CIMENTO/ AREIA MÉDIA/ BRITA 1) - PREPARO MANUAL. AF_05/2021 | E168: FUES - FUNDAÇÕES E ESTRUTURAS | G168: m³ | H168: 0.0945 | I168: 504.86 | J168: 47.71
A169: Composição Auxiliar | B169: 93358 | C169: SINAPI | D169: ESCAVAÇÃO MANUAL DE VALA COM PROFUNDIDADE MENOR OU IGUAL A 1,30 M. AF_02/2021 | E169: MOVT - MOVIMENTO DE TERRA | G169: m³ | H169: 0.0625 | I169: 76.87 | J169: 4.8
A170: Composição Auxiliar | B170: 96534 | C170: SINAPI | D170: FABRICAÇÃO, MONTAGEM E DESMONTAGEM DE FÔRMA PARA BLOCO DE COROAMENTO, EM MADEIRA SERRADA, E=25 MM, 4 UTILIZAÇÕES. AF_06/2017 | E170: FUES - FUNDAÇÕES E ESTRUTURAS | G170: m² | H170: 0.032 | I170: 91.85 | J170: 2.94
A171: Insumo | B171: COTAÇÃO-003 | C171: Próprio | D171: Fornecimento suporte fabricado em material metálico resistente a corrosão e ataque químico do solo fabricado em alumínio ou aço galvanizado ou aço zincado ou similares, a ser fixado nos blocos de concreto | E171: Material | G171: m² | H171: 1 | I171: 162 | J171: 162
A173: 9 | D173: URBANIZAÇÃO | J173: 3714.54
A174: 9.1 | D174: CERCA | J174: 2779
A175: 9.1.1 | B175: Código | C175: Banco | D175: Descrição | E175: Tipo | G175: Und | H175: Quant. | I175: Valor Unit | J175: Total
A176: Composição | B176: COMPOSIÇÃO - 023 | C176: Próprio | D176: Cerca com mourões de concreto de 15x15cm, espaçados de 3m e cravados a 0,5m, escoras de 10x10cm nos cantos, e 9 fios de arame de aço ovalado 15x17. | E176: SEDI - SERVIÇOS DIVERSOS | G176: m | H176: 1 | I176: 79.1 | J176: 79.1
A177: Composição Auxiliar | B177: 88309 | C177: SINAPI | D177: PEDREIRO COM ENCARGOS COMPLEMENTARES | E177: SEDI - SERVIÇOS DIVERSOS | G177: H | H177: 0.335 | I177: 28.7 | J177: 9.61
A178: Composição Auxiliar | B178: 88316 | C178: SINAPI | D178: SERVENTE COM ENCARGOS COMPLEMENTARES | E178: SEDI - SERVIÇOS DIVERSOS | G178: H | H178: 0.671 | I178: 19.43 | J178: 13.04
A179: Composição Auxiliar | B179: 94975 | C179: SINAPI | D179: CONCRETO FCK = 15MPA, TRAÇO 1:3,4:3,5 (EM MASSA SECA DE CIMENTO/ AREIA MÉDIA/ BRITA 1) - PREPARO MANUAL. AF_05/2021 | E179: FUES - FUNDAÇÕES E ESTRUTURAS | G179: m³ | H179: 0.0288 | I179: 504.86 | J179: 14.54
A180: Insumo | B180: 00043130 | C180: SINAPI | D180: ARAME GALVANIZADO 12 BWG, D = 2,76 MM (0,048 KG/M) OU 14 BWG, D = 2,11 MM (0,026 KG/M) | E180: Material | G180: KG | H180: 0.098 | I180: 23 | J180: 2.25
A181: Insumo | B181: 00000346 | C181: SINAPI | D181: ARAME DE ACO OVALADO 15 X 17 ( 45,7 KG, 700 KGF), ROLO 1000 M | E181: Material | G181: KG | H181: 0.405 | I181: 27.24 | J181: 11.03
A182: Insumo | B182: 00004111 | C182: SINAPI | D182: ESCORA PRE-MOLDADA EM CONCRETO, *10 X 10* CM, H = 2,30M | E182: Material | G182: UN | H182: 0.16 | I182: 54.99 | J182: 8.8
A183: Insumo | B183: I1533 | C183: SEINFRA | D183: MOURÃO CONCRETO BASE 15X15CM H=2.3 C/ 12 FUROS | E183: Material | G183: UN | H183: 0.42 | I183: 47.22 | J183: 19.83
A185: 9.2 | D185: PORTÃO | J185: 935.54
A186: 9.2.1 | B186: Código | C186: Banco | D186: Descrição | E186: Tipo | G186: Und | H186: Quant. | I186: Valor Unit | J186: Total
A187: Composição | B187: COMPOSIÇÃO - 024 | C187: Próprio | D187: Serviço de instalação de portão de ferro com suporte e batedor conforme projeto, incluso material | E187: SEDI - SERVIÇOS DIVERSOS | G187: m² | H187: 1 | I187: 497.08 | J187: 497.08
A188: Composição Auxiliar | B188: 88309 | C188: SINAPI | D188: PEDREIRO COM ENCARGOS COMPLEMENTARES | E188: SEDI - SERVIÇOS DIVERSOS | G188: H | H188: 1.5 | I188: 28.7 | J188: 43.05
A189: Composição Auxiliar | B189: 88316 | C189: SINAPI | D189: SERVENTE COM ENCARGOS COMPLEMENTARES | E189: SEDI - SERVIÇOS DIVERSOS | G189: H | H189: 1.5 | I189: 19.43 | J189: 29.15
A190: Insumo | B190: 00000367 | C190: SINAPI | D190: AREIA GROSSA - POSTO JAZIDA/FORNECEDOR (RETIRADO NA JAZIDA, SEM TRANSPORTE) | E190: Material | G190: m³ | H190: 0.061 | I190: 151.96 | J190: 9.27
A191: Insumo | B191: 00001379 | C191: SINAPI | D191: CIMENTO PORTLAND COMPOSTO CP II-32 | E191: Material | G191: KG | H191: 4.83 | I191: 0.72 | J191: 3.48
A192: Insumo | B192: 00004948 | C192: SINAPI | D192: PORTAO DE ABRIR / GIRO, EM GRADIL DE METALON REDONDO DE 3/4" VERTICAL, COM REQUADRO, ACABAMENTO NATURAL - COMPLETO | E192: Material | G192: m² | H192: 1 | I192: 412.13 | J192: 412.13
A194: 10 | D194: OUTROS SERVIÇOS | J194: 3040.58
A195: 10.1 | B195: Código | C195: Banco | D195: Descrição | E195: Tipo | G195: Und | H195: Quant. | I195: Valor Unit | J195: Total
A196: Composição | B196: COMPOSIÇÃO - 025 | C196: Próprio | D196: Serviço de lançamento de concreto para acabamento do tamponamento, incluso material. | E196: SEDI - SERVIÇOS DIVERSOS | G196: m³ | H196: 1 | I196: 755.54 | J196: 755.54
A197: Composição Auxiliar | B197: 103670 | C197: SINAPI | D197: LANÇAMENTO COM USO DE BALDES, ADENSAMENTO E ACABAMENTO DE CONCRETO EM ESTRUTURAS. AF_02/2022 | E197: FUES - FUNDAÇÕES E ESTRUTURAS | G197: m³ | H197: 1 | I197: 285.51 | J197: 285.51
A198: Composição Auxiliar | B198: 94974 | C198: SINAPI | D198: CONCRETO MAGRO PARA LASTRO, TRAÇO 1:4,5:4,5 (EM MASSA SECA DE CIMENTO/ AREIA MÉDIA/ BRITA 1) - PREPARO MANUAL. AF_05/2021 | E198: FUES - FUNDAÇÕES E ESTRUTURAS | G198: m³ | H198: 1 | I198: 470.03 | J198: 470.03
A200: 10.2 | B200: Código | C200: Banco | D200: Descrição | E200: Tipo | G200: Und | H200: Quant. | I200: Valor Unit | J200: Total
A201: Composição | B201: COMPOSIÇÃO - 026 | C201: Próprio | D201: Serviço de execução do tamponamento, incluso pedra britada desinfectada. | E201: SEDI - SERVIÇOS DIVERSOS | G201: un | H201: 1 | I201: 143.21 | J201: 143.21
A202: Composição Auxiliar | B202: 88316 | C202: SINAPI | D202: SERVENTE COM ENCARGOS COMPLEMENTARES | E202: SEDI - SERVIÇOS DIVERSOS | G202: H | H202: 0.1 | I202: 19.43 | J202: 1.94
A203: Insumo | B203: 00004720 | C203: SINAPI | D203: PEDRA BRITADA N. 0, OU PEDRISCO (4,8 A 9,5 MM) POSTO PEDREIRA/FORNECEDOR, SEM FRETE | E203: Material | G203: m³ | H203: 1 | I203: 120.27 | J203: 120.27
A204: Insumo | B204: D240000003 | C204: EMBASA | D204: HIPOCLORITO DE SÓDIO | E204: Material | G204: L | H204: 5 | I204: 4.2 | J204: 21
A206: _______________________________________________________________ Cássio Oliveira Lopes Analista em Desenvolvimento Regional - AR/GSA/UAS CODEVASF – SEDE _______________________________________________________________ Catheriny Soares Andrade Moraes Analista em Desenvolvimento Regional - AR/GSA/UAS CODEVASF – SEDE _______________________________________________________________ Iago Guilherme dos Santos Engenheiro Pleno - AR/GSA/UAS Engeplus Engenharia e Consultoria LTDA _______________________________________________________________ Micheline Mirapalheta Dias Engenheiro Sênior - AR/GSA/UAS Engeplus Engenharia e Consultoria LTDA

Sheet Crono. GO - Total.Rev
C1: MINISTÉRIO DO DESENVOLVIMENTO REGIONAL - MDR COMPANHIA DE DESENVOLVIMENTO DOS VALES DO SÃO FRANCISCO E DO PARNAÍBA ÁREA DE REVITALIZAÇÃO E SUSTENTABILIDADE SOCIOAMBIENTAL
A5: ='Planilha Resumo GO'!B2 -> OBJETO: EXECUÇÃO DE SERVIÇOS DE PERFURAÇÃO E INSTALAÇÃO DE POÇOS TUBULARES EM MUNICÍPIOS LOCALIZADOS NOS ESTADOS DO GOIÁS, NA ÁREA DE ATUAÇÃO DA CODEVASF
A6: CRONOGRAMA FÍSICO-FINANCEIRO
A7: ITEM | B7: ESPECIFICAÇÃO DOS SERVIÇOS | C7: VALOR TOTAL (R$) | D7: Mês 01 | E7: Mês 02 | F7: Mês 03 | G7: Mês 04 | H7: Mês 05 | I7: Mês 06 | J7: Mês 07 | K7: Mês 08 | L7: Mês 09 | M7: Mês 10 | N7: Mês 11 | O7: Mês 12
A8: 1 | B8: ='Orç. GO - Tot. Rev - Sintético'!E6 -> SERVIÇOS PRELIMINARES | C8: =VLOOKUP(A8,'Orç. GO - Tot. Rev - Sintético'!A:J,10,FALSE) -> 105777.15 | D8: =$C$8/12 -> 8814.7625 | E8: =$C$8/12 -> 8814.7625 | F8: 8814.7625 | G8: 8814.7625 | H8: 8814.7625 | I8: 8814.7625 | J8: 8814.7625 | K8: 8814.7625 | L8: 8814.7625 | M8: 8814.7625 | N8: 8814.7625 | O8: 8814.7625
A9: 2 | B9: ='Orç. GO - Tot. Rev - Sintético'!E10 -> MOBILIZAÇÂO E DESMOBILIZAÇÂO EQUIPES PERFURAÇÂO E INSTALAÇÃO | C9: =VLOOKUP(A9,'Orç. GO - Tot. Rev - Sintético'!A:J,10,FALSE) -> 30470.4 | D9: =$C$9/12 -> 2539.2 | E9: =$C$9/12 -> 2539.2 | F9: 2539.2 | G9: 2539.2 | H9: 2539.2 | I9: 2539.2 | J9: 2539.2 | K9: 2539.2 | L9: 2539.2 | M9: 2539.2 | N9: 2539.2 | O9: 2539.2
A10: 3 | B10: ='Orç. GO - Tot. Rev - Sintético'!E14 -> PERFURAÇÃO E COMPLETAÇÃO DE POÇO TUBULAR | C10: =VLOOKUP(A10,'Orç. GO - Tot. Rev - Sintético'!A:J,10,FALSE) -> 953763.82 | D10: =$C$10/12 -> 79480.31833 | E10: =$C$10/12 -> 79480.31833 | F10: 79480.31833 | G10: 79480.31833 | H10: 79480.31833 | I10: 79480.31833 | J10: 79480.31833 | K10: 79480.31833 | L10: 79480.31833 | M10: 79480.31833 | N10: 79480.31833 | O10: 79480.31833
A11: 4 | B11: ='Orç. GO - Tot. Rev - Sintético'!E26 -> PÓS PERFURAÇÃO | C11: =VLOOKUP(A11,'Orç. GO - Tot. Rev - Sintético'!A:J,10,FALSE) -> 148977.24 | D11: =$C$11/12 -> 12414.77 | E11: =$C$11/12 -> 12414.77 | F11: 12414.77 | G11: 12414.77 | H11: 12414.77 | I11: 12414.77 | J11: 12414.77 | K11: 12414.77 | L11: 12414.77 | M11: 12414.77 | N11: 12414.77 | O11: 12414.77
A12: 5 | B12: ='Orç. GO - Tot. Rev - Sintético'!E31 -> RESERVAÇÃO | C12: =VLOOKUP(A12,'Orç. GO - Tot. Rev - Sintético'!A:J,10,FALSE) -> 75256.57 | D12: =$C$12/12 -> 6271.380833 | E12: =$C$12/12 -> 6271.380833 | F12: 6271.380833 | G12: 6271.380833 | H12: 6271.380833 | I12: 6271.380833 | J12: 6271.380833 | K12: 6271.380833 | L12: 6271.380833 | M12: 6271.380833 | N12: 6271.380833 | O12: 6271.380833
A13: 6 | B13: ='Orç. GO - Tot. Rev - Sintético'!E37 -> BEBEDOURO | C13: =VLOOKUP(A13,'Orç. GO - Tot. Rev - Sintético'!A:J,10,FALSE) -> 23954.16 | D13: =$C$13/12 -> 1996.18 | E13: =$C$13/12 -> 1996.18 | F13: 1996.18 | G13: 1996.18 | H13: 1996.18 | I13: 1996.18 | J13: 1996.18 | K13: 1996.18 | L13: 1996.18 | M13: 1996.18 | N13: 1996.18 | O13: 1996.18
A14: 7 | B14: ='Orç. GO - Tot. Rev - Sintético'!E39 -> INSTALAÇÕES HIDRÁULICAS | C14: =VLOOKUP(A14,'Orç. GO - Tot. Rev - Sintético'!A:J,10,FALSE) -> 44673.24 | D14: =$C$14/12 -> 3722.77 | E14: =$C$14/12 -> 3722.77 | F14: 3722.77 | G14: 3722.77 | H14: 3722.77 | I14: 3722.77 | J14: 3722.77 | K14: 3722.77 | L14: 3722.77 | M14: 3722.77 | N14: 3722.77 | O14: 3722.77
A15: 8 | B15: ='Orç. GO - Tot. Rev - Sintético'!E69 -> FORNECIMENTO E INSTALAÇÃO DE SISTEMA FOTOVOLTAÍCO | C15: =VLOOKUP(A15,'Orç. GO - Tot. Rev - Sintético'!A:J,10,FALSE) -> 438540.78 | D15: =$C$15/12 -> 36545.065 | E15: =$C$15/12 -> 36545.065 | F15: 36545.065 | G15: 36545.065 | H15: 36545.065 | I15: 36545.065 | J15: 36545.065 | K15: 36545.065 | L15: 36545.065 | M15: 36545.065 | N15: 36545.065 | O15: 36545.065
A16: 9 | B16: ='Orç. GO - Tot. Rev - Sintético'!E91 -> URBANIZAÇÃO | C16: =VLOOKUP(A16,'Orç. GO - Tot. Rev - Sintético'!A:J,10,FALSE) -> 44574.42 | D16: =$C$16/12 -> 3714.535 | E16: =$C$16/12 -> 3714.535 | F16: 3714.535 | G16: 3714.535 | H16: 3714.535 | I16: 3714.535 | J16: 3714.535 | K16: 3714.535 | L16: 3714.535 | M16: 3714.535 | N16: 3714.535 | O16: 3714.535
A17: 10 | B17: ='Orç. GO - Tot. Rev - Sintético'!E96 -> OUTROS SERVIÇOS | C17: =VLOOKUP(A17,'Orç. GO - Tot. Rev - Sintético'!A:J,10,FALSE) -> 63282.14 | D17: =$C$17/12 -> 5273.511667 | E17: =$C$17/12 -> 5273.511667 | F17: 5273.511667 | G17: 5273.511667 | H17: 5273.511667 | I17: 5273.511667 | J17: 5273.511667 | K17: 5273.511667 | L17: 5273.511667 | M17: 5273.511667 | N17: 5273.511667 | O17: 5273.511667
A18: TOTAL | C18: =SUM(C8:C17) -> 1929269.92 | D18: =SUM(D8:D17) -> 160772.4933 | E18: =SUM(E8:E17) -> 160772.4933 | F18: 160772.4933 | G18: 160772.4933 | H18: 160772.4933 | I18: 160772.4933 | J18: 160772.4933 | K18: 160772.4933 | L18: 160772.4933 | M18: 160772.4933 | N18: 160772.4933 | O18: 160772.4933
A19: PERCENTUAL | D19: =D18/$C$18 -> 0.08333333333 | E19: 0.08333333333 | F19: 0.08333333333 | G19: 0.08333333333 | H19: 0.08333333333 | I19: 0.08333333333 | J19: 0.08333333333 | K19: 0.08333333333 | L19: 0.08333333333 | M19: 0.08333333333 | N19: 0.08333333333 | O19: 0.08333333333
A20: CUSTO ACUMULADO | D20: =D18 -> 160772.4933 | E20: =E18+D20 -> 321544.9867 | F20: =F18+E20 -> 482317.48 | G20: 643089.9733 | H20: 803862.4667 | I20: 964634.96 | J20: 1125407.453 | K20: 1286179.947 | L20: 1446952.44 | M20: 1607724.933 | N20: 1768497.427 | O20: 1929269.92
A21: PERCENTUAL ACUMULADO | D21: =D19 -> 0.08333333333 | E21: =E19+D21 -> 0.1666666667 | F21: 0.25 | G21: 0.3333333333 | H21: 0.4166666667 | I21: 0.5 | J21: 0.5833333333 | K21: 0.6666666667 | L21: 0.75 | M21: 0.8333333333 | N21: 0.9166666667 | O21: 1

Sheet Cotações
B2: MINISTÉRIO DO DESENVOLVIMENTO REGIONAL - MDR COMPANHIA DE DESENVOLVIMENTO DOS VALES DO SÃO FRANCISCO E DO PARNAÍBA ÁREA DE REVITALIZAÇÃO E SUSTENTABILIDADE SOCIOAMBIENTAL
B5: QUADRO DE COTAÇÃO DE PREÇO
B6: ITEM | C6: Descrição do Material | D6: Und | E6: EMPRESA 01 | F6: EMPRESA 02 | G6: EMPRESA 03 | H6: EMPRESA 04 | I6: MÉDIA | J6: MEDIANA | K6: ADOTADO
B7: COTAÇÃO-001 | C7: Kit de bombeamento fotovoltaico, incluindo uma bomba CC de 2200W | D7: und | E7: 21913 | F7: 23319 | G7: 21930.54 | I7: =AVERAGE(E7:H7) -> 22387.51333 | J7: =MEDIAN(E7:H7) -> 21930.54 | K7: =IF(I7<J7,I7,J7) -> 21930.54
B8: COTAÇÃO-002 | C8: Kit de bombeamento fotovoltaico, incluindo uma bomba CC de 1500W | D8: und | E8: 18900 | F8: 19421.8 | G8: 21556 | I8: =AVERAGE(E8:H8) -> 19959.26667 | J8: =MEDIAN(E8:H8) -> 19421.8 | K8: =IF(I8<J8,I8,J8) -> 19421.8
B9: COTAÇÃO-003 | C9: Estrutura metálica para módulo fotovoltaico | D9: m² | E9: 337.23 | F9: 125 | G9: 162 | I9: 208.0766667 | J9: 162 | K9: 162
B10: COTAÇÃO-004 | C10: Tubo filtro geomecânico classe reforçado diâmetro Ø 4 1/2" com junta roscável | D10: m | E10: 125 | F10: 61.24 | G10: 81 | I10: 89.08 | J10: 81 | K10: 81
B11: COTAÇÃO-005 | C11: Tubo filtro geomecânico classe standart Ø 4" com junta roscável | D11: m | E11: 100 | F11: 98.58 | G11: 60 | H11: 85.49 | I11: 86.0175 | J11: 92.035 | K11: 86.0175
B12: COTAÇÃO-006 | C12: Tubo revestimento geomecânico classe reforçado Ø 4 1/2" com junta roscável | D12: m | E12: 112.5 | F12: 97.2 | G12: 67.5 | I12: 92.4 | J12: 97.2 | K12: =IF(I12<J12,I12,J12) -> 92.4
B13: COTAÇÃO-007 | C13: Tubo de revestimento geomecânico classe standart Ø 4" com junta roscável | D13: m | E13: 82.5 | F13: 70.01 | G13: 135.69 | I13: 96.06666667 | J13: 82.5 | K13: 82.5
B14: COTAÇÃO-008 | C14: Custos, taxas e seguro travessia hidroviária para perfuração dos poços totalmente revestidos | D14: und | E14: =D24 -> 15360 | F14: =G24 -> 12544 | G14: =J24 -> 11335.98 | H14: =M24 -> 11604.92 | I14: 12711.225 | J14: 12074.46 | K14: 12074.46
B15: COTAÇÃO-009 | C15: Custos, taxas e seguro travessia hidroviária para perfuração dos poços parcialmente revestidos | D15: und | E15: =D31 -> 15360 | F15: =G31 -> 12544 | G15: =J31 -> 11335.98 | H15: =M31 -> 11604.92 | I15: =AVERAGE(E15:H15) -> 12711.225 | J15: =MEDIAN(E15:H15) -> 12074.46 | K15: =IF(I15<J15,I15,J15) -> 12074.46
B20: Composição do transporte Hidroviário totalmente revestido
B21: EMPRESA 1 | C21: Seguro de 2 caminhões toco carroceria de madeira ANO 2023 R$ 590.000,00 (o valor é calculado é multiplicado por dois visto que existe o seguro na ida e na volta) | D21: =590000*0.001*2*2 -> 2360 | E21: EMPRESA 2 | F21: Seguro de 2 caminhões toco carroceria de madeira ANO 2023 R$ 590.000,00 (o valor é calculado é multiplicado por dois visto que existe o seguro na ida e na volta) | G21: =590000*0.001*2*2 -> 2360 | H21: EMPRESA 3 | I21: Seguro de 2 caminhões toco carroceria de madeira ANO 2023 R$ 590.000,00 (o valor é calculado é multiplicado por dois visto que existe o seguro na ida e na volta) | J21: =590000*0.001*2*2 -> 2360 | K21: EMPRESA 4 | L21: Seguro de 2 caminhões toco carroceria de madeira ANO 2023 R$ 590.000,00 (o valor é calculado é multiplicado por dois visto que existe o seguro na ida e na volta) | M21: =590000*0.001*2*2 -> 2360
C22: Custo Travessia BELEM- MACAPA/ MACAPA-BELEM | D22: =6500*2 -> 13000 | F22: Custo Travessia BELEM- MACAPA | G22: =3564.4*2 -> 7128.8 | I22: Custo Travessia BELEM- MACAPA/ MACAPA-BELEM | J22: =4487.99*2 -> 8975.98 | L22: Custo Travessia BELEM- MACAPA/ MACAPA-BELEM | M22: =4622.46*2 -> 9244.92
F23: Custo Travessia MACAPA- BELEM | G23: =1527.6*2 -> 3055.2
C24: Total | D24: =SUM(D21:D23) -> 15360 | F24: Total | G24: =SUM(G21:G23) -> 12544 | I24: Total | J24: =SUM(J21:J23) -> 11335.98 | L24: Total | M24: =SUM(M21:M23) -> 11604.92
B27: Composição do transporte Hidroviário parcialmente revestido
B28: EMPRESA 1 | C28: Seguro de 2 caminhões toco carroceria de madeira ANO 2023 R$ 590.000,00 (o valor é calculado é multiplicado por dois visto que existe o seguro na ida e na volta) | D28: =590000*0.001*2*2 -> 2360 | E28: EMPRESA 2 | F28: Seguro de 2 caminhões toco carroceria de madeira ANO 2023 R$ 590.000,00 (o valor é calculado é multiplicado por dois visto que existe o seguro na ida e na volta) | G28: =590000*0.001*2*2 -> 2360 | H28: EMPRESA 3 | I28: Seguro de 2 caminhões toco carroceria de madeira ANO 2023 R$ 590.000,00 (o valor é calculado é multiplicado por dois visto que existe o seguro na ida e na volta) | J28: =590000*0.001*2*2 -> 2360 | K28: EMPRESA 4 | L28: Seguro de 2 caminhões toco carroceria de madeira ANO 2023 R$ 590.000,00 (o valor é calculado é multiplicado por dois visto que existe o seguro na ida e na volta) | M28: =590000*0.001*2*2 -> 2360
C29: Custo Travessia BELEM- MACAPA/ MACAPA-BELEM | D29: =6500*2 -> 13000 | F29: Custo Travessia BELEM- MACAPA | G29: =3564.4*2 -> 7128.8 | I29: Custo Travessia BELEM- MACAPA/ MACAPA-BELEM | J29: =4487.99*2 -> 8975.98 | L29: Custo Travessia BELEM- MACAPA/ MACAPA-BELEM | M29: =4622.46*2 -> 9244.92
F30: Custo Travessia MACAPA- BELEM | G30: =1527.6*2 -> 3055.2
C31: Total | D31: =SUM(D28:D30) -> 15360 | F31: Total | G31: =SUM(G28:G30) -> 12544 | I31: Total | J31: =SUM(J28:J30) -> 11335.98 | L31: Total | M31: =SUM(M28:M30) -> 11604.92
